Workbook

Sheet Information

Sheet Substation in a building

Sheet Substation not in building
Y2: OVERALL PMI
Y3: ="Default: "&ROUND(SubstationNotBldgChartValues!G3,4) -> Default: 41.6101
Y4: ="Existing Overall PMI: "&ROUND(SubstationNotBldgChartValues!H3,4) -> Existing Overall PMI: 56.9785
Y5: ="Scenario Overall PMI: "&ROUND(SubstationNotBldgChartValues!I3,4) -> Scenario Overall PMI: 56.9785
Y6: For Scenario: 1 to check option . 0 to uncheck option

Sheet NOTES
A1: General
A2: Substation In Bldg SF
A3: Substation In Bldg SM
A4: Substation In Bldg FG
A5: Substation In Bldg CCTV
A6: Substation In Bldg P
A7: Substation In Bldg B
A8: Substation In Bldg I
A9: Substation In Bldg EC
A10: Substation In Bldg BE
A11: Substation Not In Bldg SF
A12: Substation Not In Bldg SM
A13: Substation Not In Bldg FG
A14: Substation Not In Bldg CCTV
A15: Substation Not In Bldg P
A16: Substation Not In Bldg B
A17: Substation Not In Bldg I
A18: Substation Not In Bldg EC

Sheet SubstationNotInBldgAnswers_LS (hidden)
Y2: OVERALL PMI
Y3: ="Default: "&ROUND(SubstationNotBldgChartValues!G3,4) -> Default: 41.6101
Y4: ="Existing Overall PMI: "&ROUND(SubstationNotBldgChartValues!H3,4) -> Existing Overall PMI: 56.9785
Y5: ="Scenario Overall PMI: "&ROUND(SubstationNotBldgChartValues!I3,4) -> Scenario Overall PMI: 56.9785
Y6: For Scenario: 1 to check option . 0 to uncheck option
B8: SECURITY FORCE | J8: Facility Existing | K8: Facility Scenario | Y8: ="Existing: "&ROUND(SubstationNotBldgChartValues!H22,3) -> Existing: 49.959
Y9: ="Scenario: "&ROUND(SubstationNotBldgChartValues!I22,3) -> Scenario: 49.959
B10: SECURITY FORCE - Staffing | I10: Default Answers | J10: Facility Existing | K10: Facility Scenario | L10: Master Option ID | M10: Weight | O10: =MIN(100,IF(I14=1,0,SUM(R31,R35,R39,R57,R79))) -> 0 | P10: =MIN(100,IF(J14=1,0,SUM(S31,S35,S39,S57,S79))) -> 45.90517241 | Q10: =MIN(100,IF(K14=1,0,SUM(T31,T35,T39,T57,T79))) -> 45.90517241 | R10: Facility Score | S10: Scenario Score | Y10: For Scenario: 1 to check option . 0 to uncheck option
C12: Staffing | L12: 11008
C13: Does the facility have a security force? | D13: =IF(SUM(I14:I15)=0,"",IF(I15=1,"Yes","No")) ->  | H13: 1 | I13: One check | J13: One check | O13: Default | P13: Existing | Q13: Scenario
G14: No | H14: 2 | I14: 0 | J14: =IF(H$14=1,1,0) -> 0 | K14: =IF(U$14=1,1,0) -> 0 | L14: 32 | N14: =IFERROR(VLOOKUP(L14,LU_WEIGHTS!$A$2:$B$1349,2,FALSE),"") ->  | O14: =M14*I14 -> 0 | P14: =M14*J14 -> 0 | Q14: =M14*K14 -> 0 | U14: 2
G15: Yes | I15: 0 | J15: =IF(H$14=2,1,0) -> 1 | K15: =IF(U$14=2,1,0) -> 1 | L15: 31 | M15: 100 | N15: =IFERROR(VLOOKUP(L15,LU_WEIGHTS!$A$2:$B$1349,2,FALSE),"") -> 0.4 | O15: =M15*I15 -> 0 | P15: =M15*J15 -> 100 | Q15: =M15*K15 -> 100
M16: 100 | O16: =SUM(O14:O15)*I15*M16/$M$31 -> 0 | P16: =SUM(P14:P15)*J15*M16/$M$31 -> 50 | Q16: =SUM(Q14:Q15)*K15*M16/$M$31 -> 50
C17: Onsite security force | I17: 0 | J17: =I17 -> 0 | L17: 4693 | M17: 100 | N17: =IFERROR(VLOOKUP(L17,LU_WEIGHTS!$A$2:$B$1349,2,FALSE),"") -> 1 | O17: =M17*I17 -> 0 | P17: =M17*J17 -> 0 | Q17: =M17*K17 -> 0
C18: Off site security force only (no onsite force) | I18: 1 | J18: =I18 -> 1 | K18: 1 | L18: 4694 | M18: 25 | N18: =IFERROR(VLOOKUP(L18,LU_WEIGHTS!$A$2:$B$1349,2,FALSE),"") -> 0.25 | O18: =M18*I18 -> 25 | P18: =M18*J18 -> 25 | Q18: =M18*K18 -> 25
M19: 75 | O19: =SUM(O17:O18)*$I$15*M19/$M$31 -> 0 | P19: =SUM(P17:P18)*J15*M19/$M$31 -> 9.375 | Q19: =SUM(Q17:Q18)*K15*M19/$M$31 -> 9.375
C20: If yes to either onsite or off-site security force, does the security force have or utilize: | N20: =IFERROR(VLOOKUP(L20,LU_WEIGHTS!$A$2:$B$1349,2,FALSE),"") -> 
N21: =IFERROR(VLOOKUP(L21,LU_WEIGHTS!$A$2:$B$1349,2,FALSE),"") ->  | V21: Note This is for the OFFsite Master Option IDs
C22: Is there a Surge Capacity Plan? | H22: OffSite Facility Answers | I22: One check | J22: One check
C23: No | I23: 0 | J23: =I23 -> 0 | L23: 8685 | V23: 8716
C24: Yes | I24: 1 | J24: =I24 -> 1 | K24: 1 | L24: 8686 | V24: 8718
C26: Surge Capacity Plan has the following Personnel: | H26: OffSite Facility Answers | I26: Multiples ok | J26: Multiples ok | L26: 4839 | N26: =IFERROR(VLOOKUP(L26,LU_WEIGHTS!$A$2:$B$1349,2,FALSE),"") ->  | V26: 8719
C27: Law Enforcement [MOA/Contract/Off-duty] | I27: 0 | J27: =I27 -> 0 | K27: 0 | L27: 8688 | M27: 100 | N27: =IFERROR(VLOOKUP(L27,LU_WEIGHTS!$A$2:$B$1349,2,FALSE),"") -> 0.5 | O27: =I27*N27*100*I24 -> 0 | P27: =J27*N27*100*J24 -> 0 | Q27: =K27*N27*100*K24 -> 0 | V27: 8682
C28: Contracted Security | I28: 1 | J28: 1 | K28: 1 | L28: 8689 | M28: 60 | N28: =IFERROR(VLOOKUP(L28,LU_WEIGHTS!$A$2:$B$1349,2,FALSE),"") -> 0.3 | O28: =I28*N28*100*I24 -> 30 | P28: =J28*N28*100*J24 -> 30 | Q28: =K28*N28*100*K24 -> 30 | V28: 8721
C29: Other organization/corporate | I29: 0 | J29: 0 | K29: 0 | L29: 8690 | M29: 40 | N29: =IFERROR(VLOOKUP(L29,LU_WEIGHTS!$A$2:$B$1349,2,FALSE),"") -> 0.2 | O29: =I29*N29*100*I24 -> 0 | P29: =J29*N29*100*J24 -> 0 | Q29: =K29*N29*100*K24 -> 0 | V29: 8683
M30: 25 | O30: =SUM(O27:O29)*$I$15*M30/$M$31 -> 0 | P30: =SUM(P27:P29)*$J$15*M30/$M$31 -> 3.75 | Q30: =SUM(Q27:Q29)*$J$15*M30/$M$31 -> 3.75
M31: =SUM(M16,M19,M30) -> 200 | N31: =100/290 -> 0.3448275862 | O31: =SUM(O30,O19,O16) -> 0 | P31: =SUM(P30,P19,P16) -> 63.125 | Q31: =SUM(Q30,Q19,Q16) -> 63.125 | R31: =N31*O31 -> 0 | S31: =N31*P31 -> 21.76724138 | T31: =N31*Q31 -> 21.76724138
C33: Arrest Authority | I33: One check | J33: One check | L33: 8731 | N33: =IFERROR(VLOOKUP(L33,LU_WEIGHTS!$A$2:$B$1349,2,FALSE),"") -> 
C34: No | I34: 1 | J34: =I34 -> 1 | K34: =J34 -> 1 | L34: 8732 | N34: =IFERROR(VLOOKUP(L34,LU_WEIGHTS!$A$2:$B$1349,2,FALSE),"") -> 
C35: Yes | I35: 0 | J35: =I35 -> 0 | K35: =J35 -> 0 | L35: 8733 | M35: 100 | N35: =20/290 -> 0.06896551724 | O35: =M35*I35 -> 0 | P35: =M35*J35 -> 0 | Q35: =M35*K35 -> 0 | R35: =N35*O35 -> 0 | S35: =N35*P35 -> 0 | T35: =N35*Q35 -> 0
N36: =IFERROR(VLOOKUP(L36,LU_WEIGHTS!$A$2:$B$1349,2,FALSE),"") -> 
C37: Detain Authority | I37: One check | J37: One check | L37: 1946 | N37: =IFERROR(VLOOKUP(L37,LU_WEIGHTS!$A$2:$B$1349,2,FALSE),"") -> 
C38: No | I38: 1 | J38: =I38 -> 1 | K38: =J38 -> 1 | L38: 1948 | N38: =IFERROR(VLOOKUP(L38,LU_WEIGHTS!$A$2:$B$1349,2,FALSE),"") -> 
C39: Yes | I39: 0 | J39: =I39 -> 0 | K39: =J39 -> 0 | L39: 1947 | M39: 100 | N39: =10/290 -> 0.03448275862 | O39: =M39*I39 -> 0 | P39: =M39*J39 -> 0 | Q39: =M39*K39 -> 0 | R39: =N39*O39 -> 0 | S39: =N39*P39 -> 0 | T39: =N39*Q39 -> 0
N40: =IFERROR(VLOOKUP(L40,LU_WEIGHTS!$A$2:$B$1349,2,FALSE),"") -> 
C41: Static Posts: | L41: 4755 | N41: =IFERROR(VLOOKUP(L41,LU_WEIGHTS!$A$2:$B$1349,2,FALSE),"") -> 
C42: Security staffing at different types of posts (select types of posts covered by security staff at the facility/SAA) | L42: 4756 | N42: =IFERROR(VLOOKUP(L42,LU_WEIGHTS!$A$2:$B$1349,2,FALSE),"") -> 
C43: Static Posts Exist | I43: 0 | J43: =I43 -> 0 | K43: =J43 -> 0 | L43: 7635 | N43: =IFERROR(VLOOKUP(L43,LU_WEIGHTS!$A$2:$B$1349,2,FALSE),"") -> 
N44: =IFERROR(VLOOKUP(L44,LU_WEIGHTS!$A$2:$B$1349,2,FALSE),"") -> 
C45: What percentage of Static posts are covered by security force personnel? | I45: One check | J45: One check | L45: 4758 | N45: =IFERROR(VLOOKUP(L45,LU_WEIGHTS!$A$2:$B$1349,2,FALSE),"") -> 
C46: 1-25% | H46: 0 | I46: 0 | J46: =IF(H$46=1,1,0) -> 0 | K46: =J46 -> 0 | L46: 4759 | M46: 5 | N46: =IFERROR(VLOOKUP(L46,LU_WEIGHTS!$A$2:$B$1349,2,FALSE),"") -> 0.03333333333 | O46: =M46*I46 -> 0 | P46: =M46*J46 -> 0 | Q46: =M46*K46 -> 0
C47: 26-50% | I47: 0 | J47: =IF(H$46=2,1,0) -> 0 | K47: =J47 -> 0 | L47: 4760 | M47: 15 | N47: =IFERROR(VLOOKUP(L47,LU_WEIGHTS!$A$2:$B$1349,2,FALSE),"") -> 0.1 | O47: =M47*I47 -> 0 | P47: =M47*J47 -> 0 | Q47: =M47*K47 -> 0
C48: 51-75% | I48: 0 | J48: =IF(H$46=3,1,0) -> 0 | K48: =J48 -> 0 | L48: 4761 | M48: 35 | N48: =IFERROR(VLOOKUP(L48,LU_WEIGHTS!$A$2:$B$1349,2,FALSE),"") -> 0.2333333333 | O48: =M48*I48 -> 0 | P48: =M48*J48 -> 0 | Q48: =M48*K48 -> 0
C49: 76-99% | I49: 0 | J49: =IF(H$46=4,1,0) -> 0 | K49: =J49 -> 0 | L49: 4762 | M49: 43 | N49: =IFERROR(VLOOKUP(L49,LU_WEIGHTS!$A$2:$B$1349,2,FALSE),"") -> 0.2866666667 | O49: =M49*I49 -> 0 | P49: =M49*J49 -> 0 | Q49: =M49*K49 -> 0
C50: 1 | I50: 0 | J50: =IF(H$46=5,1,0) -> 0 | K50: =J50 -> 0 | L50: 8125 | M50: 50 | N50: =IFERROR(VLOOKUP(L50,LU_WEIGHTS!$A$2:$B$1349,2,FALSE),"") -> 0.3333333333 | O50: =M50*I50 -> 0 | P50: =M50*J50 -> 0 | Q50: =M50*K50 -> 0
N51: =IFERROR(VLOOKUP(L51,LU_WEIGHTS!$A$2:$B$1349,2,FALSE),"") -> 
C52: Check the least number of hours any static post is covered by a security personnel: | I52: One check | J52: One check | L52: 4763 | N52: =IFERROR(VLOOKUP(L52,LU_WEIGHTS!$A$2:$B$1349,2,FALSE),"") -> 
C53: 8 hours or less | H53: 0 | I53: 0 | J53: =IF(H$53=1,1,0) -> 0 | K53: =J53 -> 0 | L53: 4764 | M53: 10 | N53: =IFERROR(VLOOKUP(L53,LU_WEIGHTS!$A$2:$B$1349,2,FALSE),"") -> 0.06666666667 | O53: =M53*I53 -> 0 | P53: =M53*J53 -> 0 | Q53: =M53*K53 -> 0
C54: 8-12 hours | I54: 0 | J54: =IF(H$53=2,1,0) -> 0 | K54: =J54 -> 0 | L54: 5296 | M54: 30 | N54: =IFERROR(VLOOKUP(L54,LU_WEIGHTS!$A$2:$B$1349,2,FALSE),"") -> 0.2 | O54: =M54*I54 -> 0 | P54: =M54*J54 -> 0 | Q54: =M54*K54 -> 0
C55: 12-18 hours | I55: 0 | J55: =IF(H$53=3,1,0) -> 0 | K55: =J55 -> 0 | L55: 5297 | M55: 70 | N55: =IFERROR(VLOOKUP(L55,LU_WEIGHTS!$A$2:$B$1349,2,FALSE),"") -> 0.4666666667 | O55: =M55*I55 -> 0 | P55: =M55*J55 -> 0 | Q55: =M55*K55 -> 0
C56: 18-24 hours | I56: 0 | J56: =IF(H$53=4,1,0) -> 0 | K56: =J56 -> 0 | L56: 5298 | M56: 100 | N56: =IFERROR(VLOOKUP(L56,LU_WEIGHTS!$A$2:$B$1349,2,FALSE),"") -> 0.6666666667 | O56: =M56*I56 -> 0 | P56: =M56*J56 -> 0 | Q56: =M56*K56 -> 0
M57: =MAX(M46:M50)+MAX(M53:M56) -> 150 | N57: =90/290 -> 0.3103448276 | O57: =SUM(O46:O56)/M57*100*I15*I43 -> 0 | P57: =SUM(P46:P56)/M57*100*J15*J43 -> 0 | Q57: =SUM(Q46:Q56)/M57*100*K15*K43 -> 0 | R57: =N57*O57 -> 0 | S57: =N57*P57 -> 0 | T57: =N57*Q57 -> 0
C58: Roving Patrols: | N58: =IFERROR(VLOOKUP(L58,LU_WEIGHTS!$A$2:$B$1349,2,FALSE),"") -> 
C59: Roving patrols exist | I59: 1 | J59: =IF(OR(AND(H$66<>6,H$66<>0),AND(H$74<>5,H$74<>0)),1,0) -> 1 | K59: =J59 -> 1 | L59: 5299 | N59: =IFERROR(VLOOKUP(L59,LU_WEIGHTS!$A$2:$B$1349,2,FALSE),"") -> 
C61: if Yes: | I61: One check | J61: One check
C62: Predetermined sequence | I62: 0 | J62: =I62 -> 0 | K62: =J62 -> 0 | L62: 4914 | N62: =IFERROR(VLOOKUP(L62,LU_WEIGHTS!$A$2:$B$1349,2,FALSE),"") -> 0.7 | O62: =I62*N62 -> 0 | P62: =J62*N62 -> 0 | Q62: =K62*N62 -> 0
C63: Random | I63: 1 | J63: =I63 -> 1 | K63: =J63 -> 1 | L63: 4915 | N63: =IFERROR(VLOOKUP(L63,LU_WEIGHTS!$A$2:$B$1349,2,FALSE),"") -> 1 | O63: =I63*N63 -> 1 | P63: =J63*N63 -> 1 | Q63: =K63*N63 -> 1
N64: =IFERROR(VLOOKUP(L64,LU_WEIGHTS!$A$2:$B$1349,2,FALSE),"") -> 
C65: What percentage of SAAs are covered by roving patrols? | I65: One check | J65: One check | L65: 5192 | N65: =IFERROR(VLOOKUP(L65,LU_WEIGHTS!$A$2:$B$1349,2,FALSE),"") -> 
H66: 5 | I66: 0 | J66: =IF(H$66=1,1,0) -> 0 | K66: =IF(U$66=1,1,0) -> 0 | L66: 8126 | M66: 5 | N66: =IFERROR(VLOOKUP(L66,LU_WEIGHTS!$A$2:$B$1349,2,FALSE),"") -> 0.05 | O66: =M66*I66 -> 0 | P66: =M66*J66 -> 0 | Q66: =M66*K66 -> 0 | U66: 5
I67: 0 | J67: =IF(H$66=2,1,0) -> 0 | K67: =IF(U$66=2,1,0) -> 0 | L67: 8127 | M67: 15 | N67: =IFERROR(VLOOKUP(L67,LU_WEIGHTS!$A$2:$B$1349,2,FALSE),"") -> 0.15 | O67: =M67*I67 -> 0 | P67: =M67*J67 -> 0 | Q67: =M67*K67 -> 0
I68: 0 | J68: =IF(H$66=3,1,0) -> 0 | K68: =IF(U$66=3,1,0) -> 0 | L68: 8128 | M68: 35 | N68: =IFERROR(VLOOKUP(L68,LU_WEIGHTS!$A$2:$B$1349,2,FALSE),"") -> 0.35 | O68: =M68*I68 -> 0 | P68: =M68*J68 -> 0 | Q68: =M68*K68 -> 0
I69: 0 | J69: =IF(H$66=4,1,0) -> 0 | K69: =IF(U$66=4,1,0) -> 0 | L69: 8129 | M69: 43 | N69: =IFERROR(VLOOKUP(L69,LU_WEIGHTS!$A$2:$B$1349,2,FALSE),"") -> 0.43 | O69: =M69*I69 -> 0 | P69: =M69*J69 -> 0 | Q69: =M69*K69 -> 0
I70: 1 | J70: =IF(H$66=5,1,0) -> 1 | K70: =IF(U$66=5,1,0) -> 1 | L70: 8130 | M70: 50 | N70: =IFERROR(VLOOKUP(L70,LU_WEIGHTS!$A$2:$B$1349,2,FALSE),"") -> 0.5 | O70: =M70*I70 -> 50 | P70: =M70*J70 -> 50 | Q70: =M70*K70 -> 50
J72: =IF( SUM(J66:J70) >1,"ERROR","") ->  | N72: =IFERROR(VLOOKUP(L72,LU_WEIGHTS!$A$2:$B$1349,2,FALSE),"") -> 
C73: Of those SAAs covered by roving patrols, provide the one with the least frequent patrol: | I73: One check | J73: One check | L73: 8131 | N73: =IFERROR(VLOOKUP(L73,LU_WEIGHTS!$A$2:$B$1349,2,FALSE),"") -> 
H74: 1 | I74: 0 | J74: =IF(H$74=1,1,0) -> 1 | K74: =IF(U$74=1,1,0) -> 1 | L74: 5193 | M74: 50 | N74: =IFERROR(VLOOKUP(L74,LU_WEIGHTS!$A$2:$B$1349,2,FALSE),"") -> 0.5 | O74: =M74*I74 -> 0 | P74: =M74*J74 -> 50 | Q74: =M74*K74 -> 50 | U74: 1
I75: 0 | J75: =IF(H$74=2,1,0) -> 0 | K75: =IF(U$74=2,1,0) -> 0 | L75: 5194 | M75: 37.5 | N75: =IFERROR(VLOOKUP(L75,LU_WEIGHTS!$A$2:$B$1349,2,FALSE),"") -> 0.375 | O75: =M75*I75 -> 0 | P75: =M75*J75 -> 0 | Q75: =M75*K75 -> 0
I76: 0 | J76: =IF(H$74=3,1,0) -> 0 | K76: =IF(U$74=3,1,0) -> 0 | L76: 5195 | M76: 12.5 | N76: =IFERROR(VLOOKUP(L76,LU_WEIGHTS!$A$2:$B$1349,2,FALSE),"") -> 0.125 | O76: =M76*I76 -> 0 | P76: =M76*J76 -> 0 | Q76: =M76*K76 -> 0
I77: 0 | J77: =IF(H$74=4,1,0) -> 0 | K77: =IF(U$74=4,1,0) -> 0 | L77: 5196 | M77: 5 | N77: =IFERROR(VLOOKUP(L77,LU_WEIGHTS!$A$2:$B$1349,2,FALSE),"") -> 0.05 | O77: =M77*I77 -> 0 | P77: =M77*J77 -> 0 | Q77: =M77*K77 -> 0
J79: =IF( SUM(J74:J77) >1,"ERROR","") ->  | N79: =70/290 -> 0.2413793103 | O79: =SUM(O66:O77)*M80*I15*I59 -> 0 | P79: =SUM(P66:P77)*N80*J15*J59 -> 100 | Q79: =SUM(Q66:Q77)*N80*K15*K59 -> 100 | R79: =N79*O79 -> 0 | S79: =N79*P79 -> 24.13793103 | T79: =N79*Q79 -> 24.13793103
M80: =MAX(O62:O63) -> 1 | N80: =MAX(P62:P63) -> 1
M81: 100 | N81: =70/290 -> 0.2413793103 | O81: =SUM(O62:O77) -> 51 | P81: =SUM(P62:P77) -> 101 | Q81: =SUM(Q62:Q77) -> 101 | R81: =N81*O81 -> 12.31034483 | S81: =N81*P81 -> 24.37931034 | T81: =N81*Q81 -> 24.37931034
M82: 100 | N82: =70/290 -> 0.2413793103 | O82: =SUM(O63:O79) -> 51 | P82: =SUM(P63:P79) -> 201 | Q82: =SUM(Q63:Q79) -> 201 | R82: =N82*O82 -> 12.31034483 | S82: =N82*P82 -> 48.51724138 | T82: =N82*Q82 -> 48.51724138
B84: SECURITY FORCE - Equipment | R84: =MIN(100,SUM(SubstationNotInBldgAnswers_LS!R89,SubstationNotInBldgAnswers_LS!R93,SubstationNotInBldgAnswers_LS!R103,SubstationNotInBldgAnswers_LS!R106,SubstationNotInBldgAnswers_LS!R110,SubstationNotInBldgAnswers_LS!R114,SubstationNotInBldgAnswers_LS!R126))*I15 -> 0 | S84: =MIN(100,SUM(SubstationNotInBldgAnswers_LS!S89,SubstationNotInBldgAnswers_LS!S93,SubstationNotInBldgAnswers_LS!S103,SubstationNotInBldgAnswers_LS!S106,SubstationNotInBldgAnswers_LS!S110,SubstationNotInBldgAnswers_LS!S114,SubstationNotInBldgAnswers_LS!S126))*J15 -> 37.96527085 | T84: =MIN(100,SUM(SubstationNotInBldgAnswers_LS!T89,SubstationNotInBldgAnswers_LS!T93,SubstationNotInBldgAnswers_LS!T103,SubstationNotInBldgAnswers_LS!T106,SubstationNotInBldgAnswers_LS!T110,SubstationNotInBldgAnswers_LS!T114,SubstationNotInBldgAnswers_LS!T126))*K15 -> 37.96527085
C85: Specify the equipment available to the security force | L85: 1992
C86: Uniformed | I86: One check | J86: One check | L86: 1993 | M86: =IFERROR(VLOOKUP(L86,LU_WEIGHTS!$A$2:$B$1349,2,), "") -> 
C87: No | I87: 0 | J87: =I87 -> 0 | K87: =J87 -> 0 | L87: 1995 | M87: =IFERROR(VLOOKUP(L87,LU_WEIGHTS!$A$2:$B$1349,2,), "") -> 0.076271186 | N87: 50 | O87: =N87*I87 -> 0 | P87: =N87*J87 -> 0 | Q87: =N87*K87 -> 0
C88: Yes | I88: 1 | J88: =I88 -> 1 | K88: =J88 -> 1 | L88: 1994 | M88: =IFERROR(VLOOKUP(L88,LU_WEIGHTS!$A$2:$B$1349,2,), "") -> 0.1525423729 | N88: 100 | O88: =N88*I88 -> 100 | P88: =N88*J88 -> 100 | Q88: =N88*K88 -> 100
M89: =90/M128 -> 0.1525423729 | O89: =SUM(O87:O88) -> 100 | P89: =SUM(P87:P88) -> 100 | Q89: =SUM(Q87:Q88) -> 100 | R89: =O89*M89 -> 15.25423729 | S89: =P89*M89 -> 15.25423729 | T89: =Q89*M89 -> 15.25423729
C90: Armed (i.e., gun) | I90: One check | J90: One check | L90: 1996 | M90: =IFERROR(VLOOKUP(L90,LU_WEIGHTS!$A$2:$B$1349,2,), "") -> 
C91: No | I91: 1 | J91: =I91 -> 1 | K91: =J91 -> 1 | L91: 1998 | M91: =IFERROR(VLOOKUP(L91,LU_WEIGHTS!$A$2:$B$1349,2,), "") -> 0.1207627119 | N91: 75 | O91: =N91*I91 -> 75 | P91: =N91*J91 -> 75 | Q91: =N91*K91 -> 75
C92: Yes | I92: 0 | J92: =I92 -> 0 | K92: =J92 -> 0 | L92: 1997 | M92: =IFERROR(VLOOKUP(L92,LU_WEIGHTS!$A$2:$B$1349,2,), "") -> 0.1610169492 | N92: 100 | O92: =N92*I92 -> 0 | P92: =N92*J92 -> 0 | Q92: =N92*K92 -> 0
M93: =95/M128 -> 0.1610169492 | O93: =SUM(O91:O92) -> 75 | P93: =SUM(P91:P92) -> 75 | Q93: =SUM(Q91:Q92) -> 75 | R93: =O93*M93 -> 12.07627119 | S93: =P93*M93 -> 12.07627119 | T93: =Q93*M93 -> 12.07627119
C94: Less than Lethal Weapons | I94: One check | J94: One check | L94: 2003 | M94: =IFERROR(VLOOKUP(L94,LU_WEIGHTS!$A$2:$B$1349,2,), "") -> 
C95: No | I95: 1 | J95: =I95 -> 1 | K95: =J95 -> 1 | L95: 2005 | M95: =IFERROR(VLOOKUP(L95,LU_WEIGHTS!$A$2:$B$1349,2,), "") -> 
C96: Yes | I96: 0 | J96: =I96 -> 0 | K96: =J96 -> 0 | L96: 2004 | M96: =IFERROR(VLOOKUP(L96,LU_WEIGHTS!$A$2:$B$1349,2,), "") -> 
M97: =IFERROR(VLOOKUP(L97,LU_WEIGHTS!$A$2:$B$1349,2,), "") -> 
C98: If yes: | M98: =IFERROR(VLOOKUP(L98,LU_WEIGHTS!$A$2:$B$1349,2,), "") -> 
C99: Taser | I99: 0 | J99: =I99 -> 0 | K99: 0 | L99: 2009 | M99: =IFERROR(VLOOKUP(L99,LU_WEIGHTS!$A$2:$B$1349,2,), "") -> 1 | N99: 100 | O99: =N99*I99 -> 0 | P99: =N99*J99 -> 0 | Q99: =N99*K99 -> 0
C100: Chemical Repellant | I100: 0 | J100: 0 | K100: 0 | L100: 2007 | M100: =IFERROR(VLOOKUP(L100,LU_WEIGHTS!$A$2:$B$1349,2,), "") -> 0.8 | N100: 80 | O100: =N100*I100 -> 0 | P100: =N100*J100 -> 0 | Q100: =N100*K100 -> 0
C101: Collapsible Baton/Baton | I101: 0 | J101: 0 | K101: 0 | L101: 2010 | M101: =IFERROR(VLOOKUP(L101,LU_WEIGHTS!$A$2:$B$1349,2,), "") -> 0.7 | N101: 70 | O101: =N101*I101 -> 0 | P101: =N101*J101 -> 0 | Q101: =N101*K101 -> 0
C102: Stun Gun | I102: 0 | J102: 0 | K102: 0 | L102: 2008 | M102: =IFERROR(VLOOKUP(L102,LU_WEIGHTS!$A$2:$B$1349,2,), "") -> 0.65 | N102: 65 | O102: =N102*I102 -> 0 | P102: =N102*J102 -> 0 | Q102: =N102*K102 -> 0
M103: =90/M128 -> 0.1525423729 | O103: =IF(I96=1, MIN(100,SUM(O99:O102)),0) -> 0 | P103: =IF(J96=1, MIN(100,SUM(P99:P102)),0) -> 0 | Q103: =IF(K96=1, MIN(100,SUM(Q99:Q102)),0) -> 0 | R103: =O103*M103 -> 0 | S103: =P103*M103 -> 0 | T103: =Q103*M103 -> 0
C104: Restraints | I104: One check | J104: One check | L104: 2012 | M104: =IFERROR(VLOOKUP(L104,LU_WEIGHTS!$A$2:$B$1349,2,), "") -> 
C105: No | I105: 1 | J105: =I105 -> 1 | K105: =J105 -> 1 | L105: 2014 | M105: =IFERROR(VLOOKUP(L105,LU_WEIGHTS!$A$2:$B$1349,2,), "") ->  | N105: 0 | O105: =N105*I105 -> 0 | P105: =N105*J105 -> 0 | Q105: =N105*K105 -> 0
C106: Yes | I106: 0 | J106: =I106 -> 0 | K106: =J106 -> 0 | L106: 2013 | M106: =IFERROR(VLOOKUP(L106,LU_WEIGHTS!$A$2:$B$1349,2,), "") -> 0.1440677966 | N106: 100 | O106: =N106*I106 -> 0 | P106: =N106*J106 -> 0 | Q106: =N106*K106 -> 0 | R106: =O106*M106 -> 0 | S106: =P106*M106 -> 0 | T106: =Q106*M106 -> 0
M107: =IFERROR(VLOOKUP(L107,LU_WEIGHTS!$A$2:$B$1349,2,), "") -> 
C108: Body Armor | I108: One check | J108: One check | L108: 2015 | M108: =IFERROR(VLOOKUP(L108,LU_WEIGHTS!$A$2:$B$1349,2,), "") -> 
C109: No | I109: 1 | J109: =I109 -> 1 | K109: =J109 -> 1 | L109: 2017 | M109: =IFERROR(VLOOKUP(L109,LU_WEIGHTS!$A$2:$B$1349,2,), "") ->  | N109: 0 | O109: =N109*I109 -> 0 | P109: =N109*J109 -> 0 | Q109: =N109*K109 -> 0
C110: Yes | I110: 0 | J110: =I110 -> 0 | K110: =J110 -> 0 | L110: 2016 | M110: =IFERROR(VLOOKUP(L110,LU_WEIGHTS!$A$2:$B$1349,2,), "") -> 0.1525423729 | N110: 100 | O110: =N110*I110 -> 0 | P110: =N110*J110 -> 0 | Q110: =N110*K110 -> 0 | R110: =O110*M110 -> 0 | S110: =P110*M110 -> 0 | T110: =Q110*M110 -> 0
M111: =IFERROR(VLOOKUP(L111,LU_WEIGHTS!$A$2:$B$1349,2,), "") -> 
C112: Canine Patrols | I112: One check | J112: One check | L112: 2018 | M112: =IFERROR(VLOOKUP(L112,LU_WEIGHTS!$A$2:$B$1349,2,), "") -> 
C113: No | I113: 1 | J113: =I113 -> 1 | K113: =J113 -> 1 | L113: 2020 | M113: =IFERROR(VLOOKUP(L113,LU_WEIGHTS!$A$2:$B$1349,2,), "") ->  | N113: 0 | O113: =N113*I113 -> 0 | P113: =N113*J113 -> 0 | Q113: =N113*K113 -> 0
C114: Yes | I114: 0 | J114: =I114 -> 0 | K114: =J114 -> 0 | L114: 2019 | M114: =IFERROR(VLOOKUP(L114,LU_WEIGHTS!$A$2:$B$1349,2,), "") -> 0.06779661017 | N114: 100 | O114: =N114*I114 -> 0 | P114: =N114*J114 -> 0 | Q114: =N114*K114 -> 0 | R114: =O114*M114 -> 0 | S114: =P114*M114 -> 0 | T114: =Q114*M114 -> 0
M115: =IFERROR(VLOOKUP(L115,LU_WEIGHTS!$A$2:$B$1349,2,), "") -> 
C116: Communications | I116: One check | J116: One check | L116: 2021 | M116: =IFERROR(VLOOKUP(L116,LU_WEIGHTS!$A$2:$B$1349,2,), "") -> 
C117: No | I117: 0 | J117: =I117 -> 0 | K117: =J117 -> 0 | L117: 2023 | M117: =IFERROR(VLOOKUP(L117,LU_WEIGHTS!$A$2:$B$1349,2,), "") -> 
C118: Yes | I118: 1 | J118: =I118 -> 1 | K118: =J118 -> 1 | L118: 2022 | M118: =IFERROR(VLOOKUP(L118,LU_WEIGHTS!$A$2:$B$1349,2,), "") -> 
M119: =IFERROR(VLOOKUP(L119,LU_WEIGHTS!$A$2:$B$1349,2,), "") -> 
C120: If yes: | M120: =IFERROR(VLOOKUP(L120,LU_WEIGHTS!$A$2:$B$1349,2,), "") -> 
C121: Radio | I121: 1 | J121: =I121 -> 1 | K121: 1 | L121: 2025 | M121: =IFERROR(VLOOKUP(L121,LU_WEIGHTS!$A$2:$B$1349,2,), "") -> 0.392156863 | N121: 100 | O121: =N121*I121 -> 100 | P121: =N121*J121 -> 100 | Q121: =N121*K121 -> 100
C122: Cell Phone with Walkie-Talkie Capability | I122: 0 | J122: 0 | K122: 0 | L122: 2027 | M122: =IFERROR(VLOOKUP(L122,LU_WEIGHTS!$A$2:$B$1349,2,), "") -> 0.333333333 | N122: 85 | O122: =N122*I122 -> 0 | P122: =N122*J122 -> 0 | Q122: =N122*K122 -> 0
C123: Duress Alarms / *Panic* Buttons: Portable | I123: 0 | J123: 0 | K123: 0 | L123: 2029 | M123: =IFERROR(VLOOKUP(L123,LU_WEIGHTS!$A$2:$B$1349,2,), "") -> 0.274509804 | N123: 70 | O123: =N123*I123 -> 0 | P123: =N123*J123 -> 0 | Q123: =N123*K123 -> 0
C124: Cell Phone | I124: 1 | J124: 1 | K124: 1 | L124: 2026 | M124: =IFERROR(VLOOKUP(L124,LU_WEIGHTS!$A$2:$B$1349,2,), "") -> 0.235294118 | N124: 60 | O124: =N124*I124 -> 60 | P124: =N124*J124 -> 60 | Q124: =N124*K124 -> 60
C125: Duress Alarms / *Panic* Buttons: Fixed | I125: 0 | J125: 0 | K125: 0 | L125: 2028 | M125: =IFERROR(VLOOKUP(L125,LU_WEIGHTS!$A$2:$B$1349,2,), "") -> 0.196078431 | N125: 50 | O125: =N125*I125 -> 0 | P125: =N125*J125 -> 0 | Q125: =N125*K125 -> 0
M126: =100/M128 -> 0.1694915254 | N126: =SUM(N121:N125) -> 365 | O126: =IF(I118=1,MIN(100, SUM(O121:O125)/M127*100),0) -> 62.74509804 | P126: =IF(J118=1, MIN(100, SUM(P121:P125)/M127*100),0) -> 62.74509804 | Q126: =IF(K118=1, MIN(100, SUM(Q121:Q125)/M127*100),0) -> 62.74509804 | R126: =O126*M126 -> 10.63476238 | S126: =P126*M126 -> 10.63476238 | T126: =Q126*M126 -> 10.63476238
L127: A++ | M127: =SUM(N122,N123,N121) -> 255
L128: Total Equipment weight | M128: 590
B130: SECURITY FORCE - Training | R130: =MIN(100,SUM(SubstationNotInBldgAnswers_LS!R142,SubstationNotInBldgAnswers_LS!R152,SubstationNotInBldgAnswers_LS!R195)*I133)*I15 -> 0 | S130: =MIN(100,SUM(SubstationNotInBldgAnswers_LS!S142,SubstationNotInBldgAnswers_LS!S152,SubstationNotInBldgAnswers_LS!S195)*J133)*J15 -> 20.34255208 | T130: =MIN(100,SUM(SubstationNotInBldgAnswers_LS!T142,SubstationNotInBldgAnswers_LS!T152,SubstationNotInBldgAnswers_LS!T195)*K133)*K15 -> 20.34255208
C131: Does the security force receive training? | I131: One check | J131: One check | L131: 2035
C132: No | I132: 0 | J132: =IF(H$145=7,1,0) -> 0 | K132: =J132 -> 0 | L132: 2037 | M132: =IFERROR(VLOOKUP(L132,LU_WEIGHTS!$A$2:$B$1349,2,), "") -> 
C133: Yes | I133: 1 | J133: =IF(AND(H$145<>7,H$145<>0),1,0) -> 1 | K133: =J133 -> 1 | L133: 2036 | M133: =IFERROR(VLOOKUP(L133,LU_WEIGHTS!$A$2:$B$1349,2,), "") -> 0.3333333333
M134: =IFERROR(VLOOKUP(L134,LU_WEIGHTS!$A$2:$B$1349,2,), "") -> 
C135: Training Programs: | I135: Multiples ok | J135: Multiples ok | L135: 2039 | M135: =IFERROR(VLOOKUP(L135,LU_WEIGHTS!$A$2:$B$1349,2,), "") -> 
C136: Federal/State recognized certification | I136: 0 | J136: =I136 -> 0 | K136: 0 | L136: 2040 | M136: =IFERROR(VLOOKUP(L136,LU_WEIGHTS!$A$2:$B$1349,2,), "") -> 0.2469135802 | N136: 100 | O136: =I136*M136*100 -> 0 | P136: =J136*M136*100 -> 0 | Q136: =K136*M136*100 -> 0
C137: Formal | I137: 1 | J137: 1 | K137: 1 | L137: 2041 | M137: =IFERROR(VLOOKUP(L137,LU_WEIGHTS!$A$2:$B$1349,2,), "") -> 0.2098765432 | N137: 85 | O137: 20.98765432 | P137: 20.98765432 | Q137: 20.98765432
C138: In House/Informal | I138: 1 | J138: 1 | K138: 1 | L138: 2042 | M138: =IFERROR(VLOOKUP(L138,LU_WEIGHTS!$A$2:$B$1349,2,), "") -> 0.1481481481 | N138: 60 | O138: 14.81481481 | P138: 14.81481481 | Q138: 14.81481481
C139: Video | I139: 0 | J139: 0 | K139: 0 | L139: 2043 | M139: =IFERROR(VLOOKUP(L139,LU_WEIGHTS!$A$2:$B$1349,2,), "") -> 0.1481481481 | N139: 60 | O139: 0 | P139: 0 | Q139: 0
C140: Web-based | I140: 0 | J140: 0 | K140: 0 | L140: 2044 | M140: =IFERROR(VLOOKUP(L140,LU_WEIGHTS!$A$2:$B$1349,2,), "") -> 0.1481481481 | N140: 60 | O140: 0 | P140: 0 | Q140: 0
C141: OJT (on-the-job training) | I141: 1 | J141: 1 | K141: 1 | L141: 2045 | M141: =IFERROR(VLOOKUP(L141,LU_WEIGHTS!$A$2:$B$1349,2,), "") -> 0.0987654321 | N141: 40 | O141: 9.87654321 | P141: 9.87654321 | Q141: 9.87654321
L142: 8934 | M142: 0.333 | O142: =IF(I133=1, SUM(O136:O141),0) -> 45.67901235 | P142: =IF(J133=1,SUM(P136:P141),0) -> 45.67901235 | Q142: =IF(K133=1,SUM(Q136:Q141),0) -> 45.67901235 | R142: =O142*M142 -> 15.21111111 | S142: =P142*M142 -> 15.21111111 | T142: =Q142*M142 -> 15.21111111
M143: =IFERROR(VLOOKUP(L143,LU_WEIGHTS!$A$2:$B$1349,2,), "") ->  | N143: =SUM(N136:N141) -> 405
C144: Continuation/In service training for the security force: | I144: One check | J144: One check | L144: 2046 | M144: =IFERROR(VLOOKUP(L144,LU_WEIGHTS!$A$2:$B$1349,2,), "") -> 
H145: 6 | I145: 0 | J145: =IF(H$145=1,1,0) -> 0 | K145: =IF(U$145=1,1,0) -> 0 | L145: 2048 | M145: =IFERROR(VLOOKUP(L145,LU_WEIGHTS!$A$2:$B$1349,2,), "") -> 1 | N145: 100 | O145: =N145*I145 -> 0 | P145: =N145*J145 -> 0 | Q145: =N145*K145 -> 0 | U145: 6
I146: 0 | J146: =IF(H$145=2,1,0) -> 0 | K146: =IF(U$145=2,1,0) -> 0 | L146: 2049 | M146: =IFERROR(VLOOKUP(L146,LU_WEIGHTS!$A$2:$B$1349,2,), "") -> 0.9 | N146: 90 | O146: 0 | P146: 0 | Q146: 0
I147: 0 | J147: =IF(H$145=3,1,0) -> 0 | K147: =IF(U$145=3,1,0) -> 0 | L147: 2050 | M147: =IFERROR(VLOOKUP(L147,LU_WEIGHTS!$A$2:$B$1349,2,), "") -> 0.8 | N147: 80 | O147: 0 | P147: 0 | Q147: 0
I148: 0 | J148: =IF(H$145=4,1,0) -> 0 | K148: =IF(U$145=4,1,0) -> 0 | L148: 2051 | M148: =IFERROR(VLOOKUP(L148,LU_WEIGHTS!$A$2:$B$1349,2,), "") -> 0.7 | N148: 70 | O148: 0 | P148: 0 | Q148: 0
I149: 0 | J149: =IF(H$145=5,1,0) -> 0 | K149: =IF(U$145=5,1,0) -> 0 | L149: 2052 | M149: =IFERROR(VLOOKUP(L149,LU_WEIGHTS!$A$2:$B$1349,2,), "") -> 0.6 | N149: 60 | O149: 0 | P149: 0 | Q149: 0
I150: 0 | J150: =IF(H$145=6,1,0) -> 1 | K150: =IF(U$145=6,1,0) -> 1 | L150: 2047 | M150: =IFERROR(VLOOKUP(L150,LU_WEIGHTS!$A$2:$B$1349,2,), "") ->  | N150: 0 | O150: 0 | P150: 0 | Q150: 0
M152: 0.556 | O152: =IF(I133=1,SUM(O145:O150),0) -> 0 | P152: =IF(J133=1,SUM(P145:P150),0) -> 0 | Q152: =IF(K133=1,SUM(Q145:Q150),0) -> 0 | R152: =O152*M152 -> 0 | S152: =P152*M152 -> 0 | T152: =Q152*M152 -> 0
C153: Security force receives training in the following topics: | L153: 2053 | M153: =IFERROR(VLOOKUP(L153,LU_WEIGHTS!$A$2:$B$1349,2,), "") -> 
C154: Emergency Response | I154: Multiples ok | J154: Multiples ok | L154: 5141 | M154: =IFERROR(VLOOKUP(L154,LU_WEIGHTS!$A$2:$B$1349,2,), "") -> 
C155: Bomb Threat | I155: 1 | J155: =I155 -> 1 | K155: 1 | L155: 2071 | M155: =IFERROR(VLOOKUP(L155,LU_WEIGHTS!$A$2:$B$1349,2,), "") -> 0.2142857143 | N155: 90 | O155: =I155*M155*100 -> 21.42857143 | P155: =J155*M155*100 -> 21.42857143 | Q155: =K155*M155*100 -> 21.42857143
C156: Break-in | I156: 1 | J156: 1 | K156: 1 | L156: 2072 | M156: =IFERROR(VLOOKUP(L156,LU_WEIGHTS!$A$2:$B$1349,2,), "") -> 0.119047619 | N156: 50 | O156: 11.9047619 | P156: 11.9047619 | Q156: 11.9047619
C157: Hostage/Barricade | I157: 0 | J157: 0 | K157: 0 | L157: 2073 | M157: =IFERROR(VLOOKUP(L157,LU_WEIGHTS!$A$2:$B$1349,2,), "") -> 0.07142857143 | N157: 30 | O157: 0 | P157: 0 | Q157: 0
C158: Fire | I158: 1 | J158: 1 | K158: 1 | L158: 2075 | M158: =IFERROR(VLOOKUP(L158,LU_WEIGHTS!$A$2:$B$1349,2,), "") -> 0.1428571429 | N158: 60 | O158: 14.28571429 | P158: 14.28571429 | Q158: 14.28571429
C159: Chemical HAZMAT release | I159: 1 | J159: 1 | K159: 1 | L159: 2077 | M159: =IFERROR(VLOOKUP(L159,LU_WEIGHTS!$A$2:$B$1349,2,), "") -> 0.1666666667 | N159: 70 | O159: 16.66666667 | P159: 16.66666667 | Q159: 16.66666667
C160: Natural Disaster | I160: 1 | J160: 1 | K160: 1 | L160: 2078 | M160: =IFERROR(VLOOKUP(L160,LU_WEIGHTS!$A$2:$B$1349,2,), "") -> 0.04761904762 | N160: 20 | O160: 4.761904762 | P160: 4.761904762 | Q160: 4.761904762
C161: CPR/First aid | I161: 1 | J161: 1 | K161: 1 | L161: 2079 | M161: =IFERROR(VLOOKUP(L161,LU_WEIGHTS!$A$2:$B$1349,2,), "") -> 0.04761904762 | N161: 20 | O161: 4.761904762 | P161: 4.761904762 | Q161: 4.761904762
C162: Active shooter | I162: 1 | J162: 1 | K162: 1 | L162: 2080 | M162: =IFERROR(VLOOKUP(L162,LU_WEIGHTS!$A$2:$B$1349,2,), "") -> 0.1904761905 | N162: 80 | O162: 19.04761905 | P162: 19.04761905 | Q162: 19.04761905
C163: All of the above | I163: 0 | J163: 0 | K163: 0 | L163: 5143 | M163: =IFERROR(VLOOKUP(L163,LU_WEIGHTS!$A$2:$B$1349,2,), "") -> 1 | N163: 100 | O163: 0 | P163: 0 | Q163: 0
M164: 0.3 | O164: =MIN(100,SUM(O155:O163)) -> 92.85714286 | P164: =MIN(100,SUM(P155:P163)) -> 92.85714286 | Q164: =MIN(100,SUM(Q155:Q163)) -> 92.85714286 | R164: =M164*O164 -> 27.85714286 | S164: =M164*P164 -> 27.85714286 | T164: =M164*Q164 -> 27.85714286
C166: Weapons and Self-Defense | I166: Multiples ok | J166: Multiples ok | L166: 5149 | M166: =IFERROR(VLOOKUP(L166,LU_WEIGHTS!$A$2:$B$1349,2,), "") -> 
C167: Weapons | I167: 0 | J167: =I167 -> 0 | K167: 0 | L167: 2055 | M167: =IFERROR(VLOOKUP(L167,LU_WEIGHTS!$A$2:$B$1349,2,), "") -> 0.3913043478 | N167: 90 | O167: =I167*M167*100 -> 0 | P167: =J167*M167*100 -> 0 | Q167: =K167*M167*100 -> 0
C168: Less Than Lethal Response | I168: 0 | J168: 0 | K168: 0 | L168: 2056 | M168: =IFERROR(VLOOKUP(L168,LU_WEIGHTS!$A$2:$B$1349,2,), "") -> 0.3043478261 | N168: 70 | O168: 0 | P168: 0 | Q168: 0
C169: Force Continuum | I169: 0 | J169: 0 | K169: 0 | L169: 2069 | M169: =IFERROR(VLOOKUP(L169,LU_WEIGHTS!$A$2:$B$1349,2,), "") -> 0.08695652174 | N169: 20 | O169: 0 | P169: 0 | Q169: 0
C170: Self Defense | I170: 0 | J170: 0 | K170: 0 | L170: 2057 | M170: =IFERROR(VLOOKUP(L170,LU_WEIGHTS!$A$2:$B$1349,2,), "") -> 0.1739130435 | N170: 40 | O170: 0 | P170: 0 | Q170: 0
C171: Use of restraints | I171: 0 | J171: 0 | K171: 0 | L171: 2058 | M171: =IFERROR(VLOOKUP(L171,LU_WEIGHTS!$A$2:$B$1349,2,), "") -> 0.04347826087 | N171: 10 | O171: 0 | P171: 0 | Q171: 0
C172: All of the above | I172: 0 | J172: 0 | K172: 0 | L172: 5113 | M172: =IFERROR(VLOOKUP(L172,LU_WEIGHTS!$A$2:$B$1349,2,), "") -> 1 | N172: 100 | O172: 0 | P172: 0 | Q172: 0
M173: 0.4 | O173: =MIN(100,SUM(O167:O172)) -> 0 | P173: =MIN(100,SUM(P167:P172)) -> 0 | Q173: =MIN(100,SUM(Q167:Q172)) -> 0 | R173: =M173*O173 -> 0 | S173: =M173*P173 -> 0 | T173: =M173*Q173 -> 0
C175: Standard Operating Procedures | I175: Multiples ok | J175: Multiples ok | L175: 5150 | M175: =IFERROR(VLOOKUP(L175,LU_WEIGHTS!$A$2:$B$1349,2,), "") -> 
C176: Facility-specific SOPS | I176: 1 | J176: =I176 -> 1 | K176: 1 | L176: 2054 | M176: =IFERROR(VLOOKUP(L176,LU_WEIGHTS!$A$2:$B$1349,2,), "") -> 0.25 | N176: 90 | O176: =I176*N176 -> 90 | P176: =J176*N176 -> 90 | Q176: =K176*N176 -> 90
C177: Communications | I177: 1 | J177: 1 | K177: 1 | L177: 2060 | M177: =IFERROR(VLOOKUP(L177,LU_WEIGHTS!$A$2:$B$1349,2,), "") -> 0.25 | N177: 90 | O177: 90 | P177: 90 | Q177: 90
C178: ICS/NIMS | I178: 0 | J178: 0 | K178: 0 | L178: 2061 | M178: =IFERROR(VLOOKUP(L178,LU_WEIGHTS!$A$2:$B$1349,2,), "") -> 0.1944444444 | N178: 70 | O178: 0 | P178: 0 | Q178: 0
C179: Public Relations | I179: 0 | J179: 0 | K179: 0 | L179: 2066 | M179: =IFERROR(VLOOKUP(L179,LU_WEIGHTS!$A$2:$B$1349,2,), "") -> 0.05555555556 | N179: 20 | O179: 0 | P179: 0 | Q179: 0
C180: Legal Implications | I180: 1 | J180: 1 | K180: 1 | L180: 2067 | M180: =IFERROR(VLOOKUP(L180,LU_WEIGHTS!$A$2:$B$1349,2,), "") -> 0.05555555556 | N180: 20 | O180: 20 | P180: 20 | Q180: 20
C181: NTAS Increase | I181: 0 | J181: 0 | K181: 0 | L181: 2074 | M181: =IFERROR(VLOOKUP(L181,LU_WEIGHTS!$A$2:$B$1349,2,), "") -> 0.25 | N181: 90 | O181: 0 | P181: 0 | Q181: 0
C182: Threat Awareness | I182: 1 | J182: 1 | K182: 1 | L182: 2076 | M182: =IFERROR(VLOOKUP(L182,LU_WEIGHTS!$A$2:$B$1349,2,), "") -> 0.25 | N182: 90 | O182: 90 | P182: 90 | Q182: 90
C183: All of the above | I183: 0 | J183: 0 | K183: 0 | L183: 5159 | M183: =IFERROR(VLOOKUP(L183,LU_WEIGHTS!$A$2:$B$1349,2,), "") -> 1 | N183: 360 | O183: 0 | P183: 0 | Q183: 0
M184: 0.1 | N184: 360 | O184: =MIN(100, SUM(O176:O183)/N184*100) -> 80.55555556 | P184: =MIN(100, SUM(P176:P183)/N184*100) -> 80.55555556 | Q184: =MIN(100, SUM(Q176:Q183)/N184*100) -> 80.55555556 | R184: =M184*O184 -> 8.055555556 | S184: =M184*P184 -> 8.055555556 | T184: =M184*Q184 -> 8.055555556
C186: Screening and Access | I186: Multiples ok | J186: Multiples ok | L186: 4968 | M186: =IFERROR(VLOOKUP(L186,LU_WEIGHTS!$A$2:$B$1349,2,), "") -> 
C187: Screening | I187: 1 | J187: =I187 -> 1 | K187: 1 | L187: 2059 | M187: =IFERROR(VLOOKUP(L187,LU_WEIGHTS!$A$2:$B$1349,2,), "") -> 0.1891891892 | N187: 70 | O187: =I187*M187*100 -> 18.91891892 | P187: =J187*M187*100 -> 18.91891892 | Q187: =K187*M187*100 -> 18.91891892
C188: Search Procedures | I188: 0 | J188: 0 | K188: 0 | L188: 2070 | M188: =IFERROR(VLOOKUP(L188,LU_WEIGHTS!$A$2:$B$1349,2,), "") -> 0.2432432432 | N188: 90 | O188: 0 | P188: 0 | Q188: 0
C189: IDS | I189: 1 | J189: 1 | K189: 1 | L189: 2065 | M189: =IFERROR(VLOOKUP(L189,LU_WEIGHTS!$A$2:$B$1349,2,), "") -> 0.1351351351 | N189: 50 | O189: 13.51351351 | P189: 13.51351351 | Q189: 13.51351351
C190: IED recognition | I190: 0 | J190: 0 | K190: 0 | L190: 2081 | M190: =IFERROR(VLOOKUP(L190,LU_WEIGHTS!$A$2:$B$1349,2,), "") -> 0.2432432432 | N190: 90 | O190: 0 | P190: 0 | Q190: 0
C191: Surveillance Detection | I191: 1 | J191: 1 | K191: 1 | L191: 2082 | M191: =IFERROR(VLOOKUP(L191,LU_WEIGHTS!$A$2:$B$1349,2,), "") -> 0.1891891892 | N191: 70 | O191: 18.91891892 | P191: 18.91891892 | Q191: 18.91891892
C192: All of the above | I192: 0 | J192: 0 | K192: 0 | L192: 5270 | M192: =IFERROR(VLOOKUP(L192,LU_WEIGHTS!$A$2:$B$1349,2,), "") -> 1 | N192: 100 | O192: 0 | P192: 0 | Q192: 0
M193: 0.2 | O193: =MIN(100,SUM(O187:O192)) -> 51.35135135 | P193: =MIN(100,SUM(P187:P192)) -> 51.35135135 | Q193: =MIN(100,SUM(Q187:Q192)) -> 51.35135135 | R193: =M193*O193 -> 10.27027027 | S193: =M193*P193 -> 10.27027027 | T193: =M193*Q193 -> 10.27027027
Q194: raw training | R194: =SUM(R193,R184,R173,R164)*I133 -> 46.18296868 | S194: =SUM(S193,S184,S173,S164)*J133 -> 46.18296868 | T194: =SUM(T193,T184,T173,T164)*K133 -> 46.18296868
Q195: Weighted training | R195: =R194*20/180 -> 5.131440965 | S195: =S194*20/180 -> 5.131440965 | T195: =T194*20/180 -> 5.131440965
B197: SECURITY FORCE - Post Orders; Command and Control
C198: Do comprehensive post orders exist? | I198: One check | J198: One check | L198: 2085
C199: No | I199: 0 | J199: =I199 -> 0 | K199: =J199 -> 0 | L199: 2087 | M199: =IFERROR(VLOOKUP(L199,LU_WEIGHTS!$A$2:$B$1349,2,), "") ->  | N199: 0 | O199: =I199*N199 -> 0 | P199: =J199*N199 -> 0 | Q199: =K199*N199 -> 0
C200: Yes | I200: 1 | J200: =I200 -> 1 | K200: =J200 -> 1 | L200: 2086 | M200: =IFERROR(VLOOKUP(L200,LU_WEIGHTS!$A$2:$B$1349,2,), "") -> 0.09230769231 | N200: 100 | O200: =I200*N200 -> 100 | P200: =J200*N200 -> 100 | Q200: =K200*N200 -> 100
M201: =IFERROR(VLOOKUP(L201,LU_WEIGHTS!$A$2:$B$1349,2,), "") ->  | O201: =SUM(O199:O200)*I15 -> 0 | P201: =SUM(P199:P200)*J15 -> 100 | Q201: =SUM(Q199:Q200)*K15 -> 100
C202: Is there a dedicated command and control or operation center for the guard force? | I202: One check | J202: One check | L202: 2100 | M202: =IFERROR(VLOOKUP(L202,LU_WEIGHTS!$A$2:$B$1349,2,), "") -> 
C203: No | I203: 0 | J203: =I203 -> 0 | K203: =J203 -> 0 | L203: 2102 | M203: =IFERROR(VLOOKUP(L203,LU_WEIGHTS!$A$2:$B$1349,2,), "") ->  | N203: 0 | O203: =I203*N203 -> 0 | P203: =J203*N203 -> 0 | Q203: =K203*N203 -> 0
C204: Yes | I204: 1 | J204: =I204 -> 1 | K204: =J204 -> 1 | L204: 2101 | M204: =IFERROR(VLOOKUP(L204,LU_WEIGHTS!$A$2:$B$1349,2,), "") -> 0.1153846154 | N204: 100 | O204: =I204*N204 -> 100 | P204: =J204*N204 -> 100 | Q204: =K204*N204 -> 100
O205: =SUM(O203:O204)*I15 -> 0 | P205: =SUM(P203:P204)*J15 -> 100 | Q205: =SUM(Q203:Q204)*K15 -> 100
B209: SECURITY MANAGEMENT | Y209: ="Existing: "&ROUND(SubstationNotBldgChartValues!H14,3) -> Existing: 84.81
Y210: ="Scenario: "&ROUND(SubstationNotBldgChartValues!I14,3) -> Scenario: 84.81
B211: SECURITY MANAGEMENT - Security Manager | R211: =MIN(100,SUM(SubstationNotInBldgAnswers_LS!R214,SubstationNotInBldgAnswers_LS!R218)) -> 100 | S211: =MIN(100,SUM(SubstationNotInBldgAnswers_LS!S214,SubstationNotInBldgAnswers_LS!S218)) -> 100 | T211: =MIN(100,SUM(SubstationNotInBldgAnswers_LS!T214,SubstationNotInBldgAnswers_LS!T218)) -> 100
C212: Is there a manger/department in charge of security management? | I212: One Check | J212: One Check | L212: 1752
C213: No | I213: 0 | J213: =I213 -> 0 | K213: =J213 -> 0 | L213: 1754 | M213: =IFERROR(VLOOKUP(L213,LU_WEIGHTS!$A$2:$B$1349,2,FALSE),"") -> 
C214: Yes | I214: 1 | J214: =I214 -> 1 | K214: =J214 -> 1 | L214: 1753 | M214: 100 | N214: =M214/$M$219 -> 0.5 | O214: =$M214*I214 -> 100 | P214: =$M214*J214 -> 100 | Q214: =$M214*K214 -> 100 | R214: =$N214*O214 -> 50 | S214: =$N214*P214 -> 50 | T214: =$N214*Q214 -> 50
M215: =IFERROR(VLOOKUP(L215,LU_WEIGHTS!$A$2:$B$1349,2,FALSE),"") -> 
C216: Is this the primary function of that manager/department? | I216: One Check | J216: One Check | L216: 11056 | M216: =IFERROR(VLOOKUP(L216,LU_WEIGHTS!$A$2:$B$1349,2,FALSE),"") -> 
C217: No | I217: 0 | J217: =I217 -> 0 | K217: =J217 -> 0 | L217: 11090 | M217: =IFERROR(VLOOKUP(L217,LU_WEIGHTS!$A$2:$B$1349,2,FALSE),"") -> 
C218: Yes | I218: 1 | J218: =I218 -> 1 | K218: =J218 -> 1 | L218: 11091 | M218: 100 | N218: =M218/$M$219 -> 0.5 | O218: =$M218*I218 -> 100 | P218: =$M218*J218 -> 100 | Q218: =$M218*K218 -> 100 | R218: =$N218*O218 -> 50 | S218: =$N218*P218 -> 50 | T218: =$N218*Q218 -> 50
... 1516 more rows

Sheet SubstationNotInBldgAnswers (hidden)
Y2: OVERALL PMI
Y3: ="Default: "&ROUND(SubstationNotBldgChartValues!G3,4) -> Default: 41.6101
Y4: ="Existing Overall PMI: "&ROUND(SubstationNotBldgChartValues!H3,4) -> Existing Overall PMI: 56.9785
Y5: ="Scenario Overall PMI: "&ROUND(SubstationNotBldgChartValues!I3,4) -> Scenario Overall PMI: 56.9785
Y6: For Scenario: 1 to check option . 0 to uncheck option
B8: SECURITY FORCE | J8: Facility Existing | K8: Facility Scenario | Y8: ="Existing: "&ROUND(SubstationNotBldgChartValues!H22,3) -> Existing: 49.959
Y9: ="Scenario: "&ROUND(SubstationNotBldgChartValues!I22,3) -> Scenario: 49.959
B10: SECURITY FORCE - Staffing | I10: Default Answers | J10: Facility Existing | K10: Facility Scenario | L10: Master Option ID | M10: Weight | O10: =MIN(100,IF(I14=1,0,SUM(R31,R35,R39,R57,R79))) -> 0 | P10: =MIN(100,IF(J14=1,0,SUM(S31,S35,S39,S57,S79))) -> 45.90517241 | Q10: =MIN(100,IF(K14=1,0,SUM(T31,T35,T39,T57,T79))) -> 45.90517241 | R10: Facility Score | S10: Scenario Score | Y10: For Scenario: 1 to check option . 0 to uncheck option
C12: Staffing | L12: 11008
C13: Does the facility have a security force? | D13: =IF(SUM(I14:I15)=0,"",IF(I15=1,"Yes","No")) ->  | H13: 1 | I13: One check | J13: One check | O13: Default | P13: Existing | Q13: Scenario
G14: No | H14: 2 | I14: 0 | J14: =IF(H$14=1,1,0) -> 0 | K14: =IF(U$14=1,1,0) -> 0 | L14: 32 | N14: =IFERROR(VLOOKUP(L14,LU_WEIGHTS!$A$2:$B$1349,2,FALSE),"") ->  | O14: =M14*I14 -> 0 | P14: =M14*J14 -> 0 | Q14: =M14*K14 -> 0 | U14: 2
G15: Yes | I15: 0 | J15: =IF(H$14=2,1,0) -> 1 | K15: =IF(U$14=2,1,0) -> 1 | L15: 31 | M15: 100 | N15: =IFERROR(VLOOKUP(L15,LU_WEIGHTS!$A$2:$B$1349,2,FALSE),"") -> 0.4 | O15: =M15*I15 -> 0 | P15: =M15*J15 -> 100 | Q15: =M15*K15 -> 100
M16: 100 | O16: =SUM(O14:O15)*I15*M16/$M$31 -> 0 | P16: =SUM(P14:P15)*J15*M16/$M$31 -> 50 | Q16: =SUM(Q14:Q15)*K15*M16/$M$31 -> 50
C17: Onsite security force | I17: 0 | J17: =I17 -> 0 | L17: 4693 | M17: 100 | N17: =IFERROR(VLOOKUP(L17,LU_WEIGHTS!$A$2:$B$1349,2,FALSE),"") -> 1 | O17: =M17*I17 -> 0 | P17: =M17*J17 -> 0 | Q17: =M17*K17 -> 0
C18: Off site security force only (no onsite force) | I18: 1 | J18: =I18 -> 1 | K18: 1 | L18: 4694 | M18: 25 | N18: =IFERROR(VLOOKUP(L18,LU_WEIGHTS!$A$2:$B$1349,2,FALSE),"") -> 0.25 | O18: =M18*I18 -> 25 | P18: =M18*J18 -> 25 | Q18: =M18*K18 -> 25
M19: 75 | O19: =SUM(O17:O18)*$I$15*M19/$M$31 -> 0 | P19: =SUM(P17:P18)*J15*M19/$M$31 -> 9.375 | Q19: =SUM(Q17:Q18)*K15*M19/$M$31 -> 9.375
C20: If yes to either onsite or off-site security force, does the security force have or utilize: | N20: =IFERROR(VLOOKUP(L20,LU_WEIGHTS!$A$2:$B$1349,2,FALSE),"") -> 
N21: =IFERROR(VLOOKUP(L21,LU_WEIGHTS!$A$2:$B$1349,2,FALSE),"") ->  | V21: Note This is for the OFFsite Master Option IDs
C22: Is there a Surge Capacity Plan? | H22: OffSite Facility Answers | I22: One check | J22: One check
C23: No | I23: 0 | J23: =I23 -> 0 | L23: 8685 | V23: 8716
C24: Yes | I24: 1 | J24: =I24 -> 1 | K24: 1 | L24: 8686 | V24: 8718
C26: Surge Capacity Plan has the following Personnel: | H26: OffSite Facility Answers | I26: Multiples ok | J26: Multiples ok | L26: 4839 | N26: =IFERROR(VLOOKUP(L26,LU_WEIGHTS!$A$2:$B$1349,2,FALSE),"") ->  | V26: 8719
C27: Law Enforcement [MOA/Contract/Off-duty] | I27: 0 | J27: =I27 -> 0 | K27: 0 | L27: 8688 | M27: 100 | N27: =IFERROR(VLOOKUP(L27,LU_WEIGHTS!$A$2:$B$1349,2,FALSE),"") -> 0.5 | O27: =I27*N27*100*I24 -> 0 | P27: =J27*N27*100*J24 -> 0 | Q27: =K27*N27*100*K24 -> 0 | V27: 8682
C28: Contracted Security | I28: 1 | J28: 1 | K28: 1 | L28: 8689 | M28: 60 | N28: =IFERROR(VLOOKUP(L28,LU_WEIGHTS!$A$2:$B$1349,2,FALSE),"") -> 0.3 | O28: =I28*N28*100*I24 -> 30 | P28: =J28*N28*100*J24 -> 30 | Q28: =K28*N28*100*K24 -> 30 | V28: 8721
C29: Other organization/corporate | I29: 0 | J29: 0 | K29: 0 | L29: 8690 | M29: 40 | N29: =IFERROR(VLOOKUP(L29,LU_WEIGHTS!$A$2:$B$1349,2,FALSE),"") -> 0.2 | O29: =I29*N29*100*I24 -> 0 | P29: =J29*N29*100*J24 -> 0 | Q29: =K29*N29*100*K24 -> 0 | V29: 8683
M30: 25 | O30: =SUM(O27:O29)*$I$15*M30/$M$31 -> 0 | P30: =SUM(P27:P29)*$J$15*M30/$M$31 -> 3.75 | Q30: =SUM(Q27:Q29)*$J$15*M30/$M$31 -> 3.75
M31: =SUM(M16,M19,M30) -> 200 | N31: =100/290 -> 0.3448275862 | O31: =SUM(O30,O19,O16) -> 0 | P31: =SUM(P30,P19,P16) -> 63.125 | Q31: =SUM(Q30,Q19,Q16) -> 63.125 | R31: =N31*O31 -> 0 | S31: =N31*P31 -> 21.76724138 | T31: =N31*Q31 -> 21.76724138
C33: Arrest Authority | I33: One check | J33: One check | L33: 8731 | N33: =IFERROR(VLOOKUP(L33,LU_WEIGHTS!$A$2:$B$1349,2,FALSE),"") -> 
C34: No | I34: 1 | J34: =I34 -> 1 | K34: =J34 -> 1 | L34: 8732 | N34: =IFERROR(VLOOKUP(L34,LU_WEIGHTS!$A$2:$B$1349,2,FALSE),"") -> 
C35: Yes | I35: 0 | J35: =I35 -> 0 | K35: =J35 -> 0 | L35: 8733 | M35: 100 | N35: =20/290 -> 0.06896551724 | O35: =M35*I35 -> 0 | P35: =M35*J35 -> 0 | Q35: =M35*K35 -> 0 | R35: =N35*O35 -> 0 | S35: =N35*P35 -> 0 | T35: =N35*Q35 -> 0
N36: =IFERROR(VLOOKUP(L36,LU_WEIGHTS!$A$2:$B$1349,2,FALSE),"") -> 
C37: Detain Authority | I37: One check | J37: One check | L37: 1946 | N37: =IFERROR(VLOOKUP(L37,LU_WEIGHTS!$A$2:$B$1349,2,FALSE),"") -> 
C38: No | I38: 1 | J38: =I38 -> 1 | K38: =J38 -> 1 | L38: 1948 | N38: =IFERROR(VLOOKUP(L38,LU_WEIGHTS!$A$2:$B$1349,2,FALSE),"") -> 
C39: Yes | I39: 0 | J39: =I39 -> 0 | K39: =J39 -> 0 | L39: 1947 | M39: 100 | N39: =10/290 -> 0.03448275862 | O39: =M39*I39 -> 0 | P39: =M39*J39 -> 0 | Q39: =M39*K39 -> 0 | R39: =N39*O39 -> 0 | S39: =N39*P39 -> 0 | T39: =N39*Q39 -> 0
N40: =IFERROR(VLOOKUP(L40,LU_WEIGHTS!$A$2:$B$1349,2,FALSE),"") -> 
C41: Static Posts: | L41: 4755 | N41: =IFERROR(VLOOKUP(L41,LU_WEIGHTS!$A$2:$B$1349,2,FALSE),"") -> 
C42: Security staffing at different types of posts (select types of posts covered by security staff at the facility/SAA) | L42: 4756 | N42: =IFERROR(VLOOKUP(L42,LU_WEIGHTS!$A$2:$B$1349,2,FALSE),"") -> 
C43: Static Posts Exist | I43: 0 | J43: =I43 -> 0 | K43: =J43 -> 0 | L43: 7635 | N43: =IFERROR(VLOOKUP(L43,LU_WEIGHTS!$A$2:$B$1349,2,FALSE),"") -> 
N44: =IFERROR(VLOOKUP(L44,LU_WEIGHTS!$A$2:$B$1349,2,FALSE),"") -> 
C45: What percentage of Static posts are covered by security force personnel? | I45: One check | J45: One check | L45: 4758 | N45: =IFERROR(VLOOKUP(L45,LU_WEIGHTS!$A$2:$B$1349,2,FALSE),"") -> 
C46: 1-25% | H46: 0 | I46: 0 | J46: =IF(H$46=1,1,0) -> 0 | K46: =J46 -> 0 | L46: 4759 | M46: 5 | N46: =IFERROR(VLOOKUP(L46,LU_WEIGHTS!$A$2:$B$1349,2,FALSE),"") -> 0.03333333333 | O46: =M46*I46 -> 0 | P46: =M46*J46 -> 0 | Q46: =M46*K46 -> 0
C47: 26-50% | I47: 0 | J47: =IF(H$46=2,1,0) -> 0 | K47: =J47 -> 0 | L47: 4760 | M47: 15 | N47: =IFERROR(VLOOKUP(L47,LU_WEIGHTS!$A$2:$B$1349,2,FALSE),"") -> 0.1 | O47: =M47*I47 -> 0 | P47: =M47*J47 -> 0 | Q47: =M47*K47 -> 0
C48: 51-75% | I48: 0 | J48: =IF(H$46=3,1,0) -> 0 | K48: =J48 -> 0 | L48: 4761 | M48: 35 | N48: =IFERROR(VLOOKUP(L48,LU_WEIGHTS!$A$2:$B$1349,2,FALSE),"") -> 0.2333333333 | O48: =M48*I48 -> 0 | P48: =M48*J48 -> 0 | Q48: =M48*K48 -> 0
C49: 76-99% | I49: 0 | J49: =IF(H$46=4,1,0) -> 0 | K49: =J49 -> 0 | L49: 4762 | M49: 43 | N49: =IFERROR(VLOOKUP(L49,LU_WEIGHTS!$A$2:$B$1349,2,FALSE),"") -> 0.2866666667 | O49: =M49*I49 -> 0 | P49: =M49*J49 -> 0 | Q49: =M49*K49 -> 0
C50: 1 | I50: 0 | J50: =IF(H$46=5,1,0) -> 0 | K50: =J50 -> 0 | L50: 8125 | M50: 50 | N50: =IFERROR(VLOOKUP(L50,LU_WEIGHTS!$A$2:$B$1349,2,FALSE),"") -> 0.3333333333 | O50: =M50*I50 -> 0 | P50: =M50*J50 -> 0 | Q50: =M50*K50 -> 0
N51: =IFERROR(VLOOKUP(L51,LU_WEIGHTS!$A$2:$B$1349,2,FALSE),"") -> 
C52: Check the least number of hours any static post is covered by a security personnel: | I52: One check | J52: One check | L52: 4763 | N52: =IFERROR(VLOOKUP(L52,LU_WEIGHTS!$A$2:$B$1349,2,FALSE),"") -> 
C53: 8 hours or less | H53: 0 | I53: 0 | J53: =IF(H$53=1,1,0) -> 0 | K53: =J53 -> 0 | L53: 4764 | M53: 10 | N53: =IFERROR(VLOOKUP(L53,LU_WEIGHTS!$A$2:$B$1349,2,FALSE),"") -> 0.06666666667 | O53: =M53*I53 -> 0 | P53: =M53*J53 -> 0 | Q53: =M53*K53 -> 0
C54: 8-12 hours | I54: 0 | J54: =IF(H$53=2,1,0) -> 0 | K54: =J54 -> 0 | L54: 5296 | M54: 30 | N54: =IFERROR(VLOOKUP(L54,LU_WEIGHTS!$A$2:$B$1349,2,FALSE),"") -> 0.2 | O54: =M54*I54 -> 0 | P54: =M54*J54 -> 0 | Q54: =M54*K54 -> 0
C55: 12-18 hours | I55: 0 | J55: =IF(H$53=3,1,0) -> 0 | K55: =J55 -> 0 | L55: 5297 | M55: 70 | N55: =IFERROR(VLOOKUP(L55,LU_WEIGHTS!$A$2:$B$1349,2,FALSE),"") -> 0.4666666667 | O55: =M55*I55 -> 0 | P55: =M55*J55 -> 0 | Q55: =M55*K55 -> 0
C56: 18-24 hours | I56: 0 | J56: =IF(H$53=4,1,0) -> 0 | K56: =J56 -> 0 | L56: 5298 | M56: 100 | N56: =IFERROR(VLOOKUP(L56,LU_WEIGHTS!$A$2:$B$1349,2,FALSE),"") -> 0.6666666667 | O56: =M56*I56 -> 0 | P56: =M56*J56 -> 0 | Q56: =M56*K56 -> 0
M57: =MAX(M46:M50)+MAX(M53:M56) -> 150 | N57: =90/290 -> 0.3103448276 | O57: =SUM(O46:O56)/M57*100*I15*I43 -> 0 | P57: =SUM(P46:P56)/M57*100*J15*J43 -> 0 | Q57: =SUM(Q46:Q56)/M57*100*K15*K43 -> 0 | R57: =N57*O57 -> 0 | S57: =N57*P57 -> 0 | T57: =N57*Q57 -> 0
C58: Roving Patrols: | N58: =IFERROR(VLOOKUP(L58,LU_WEIGHTS!$A$2:$B$1349,2,FALSE),"") -> 
C59: Roving patrols exist | I59: 1 | J59: =IF(OR(AND(H$66<>6,H$66<>0),AND(H$74<>5,H$74<>0)),1,0) -> 1 | K59: =J59 -> 1 | L59: 5299 | N59: =IFERROR(VLOOKUP(L59,LU_WEIGHTS!$A$2:$B$1349,2,FALSE),"") -> 
C61: if Yes: | I61: One check | J61: One check
C62: Predetermined sequence | I62: 0 | J62: =I62 -> 0 | K62: =J62 -> 0 | L62: 4914 | N62: =IFERROR(VLOOKUP(L62,LU_WEIGHTS!$A$2:$B$1349,2,FALSE),"") -> 0.7 | O62: =I62*N62 -> 0 | P62: =J62*N62 -> 0 | Q62: =K62*N62 -> 0
C63: Random | I63: 1 | J63: =I63 -> 1 | K63: =J63 -> 1 | L63: 4915 | N63: =IFERROR(VLOOKUP(L63,LU_WEIGHTS!$A$2:$B$1349,2,FALSE),"") -> 1 | O63: =I63*N63 -> 1 | P63: =J63*N63 -> 1 | Q63: =K63*N63 -> 1
N64: =IFERROR(VLOOKUP(L64,LU_WEIGHTS!$A$2:$B$1349,2,FALSE),"") -> 
C65: What percentage of SAAs are covered by roving patrols? | I65: One check | J65: One check | L65: 5192 | N65: =IFERROR(VLOOKUP(L65,LU_WEIGHTS!$A$2:$B$1349,2,FALSE),"") -> 
H66: 5 | I66: 0 | J66: =IF(H$66=1,1,0) -> 0 | K66: =IF(U$66=1,1,0) -> 0 | L66: 8126 | M66: 5 | N66: =IFERROR(VLOOKUP(L66,LU_WEIGHTS!$A$2:$B$1349,2,FALSE),"") -> 0.05 | O66: =M66*I66 -> 0 | P66: =M66*J66 -> 0 | Q66: =M66*K66 -> 0 | U66: 5
I67: 0 | J67: =IF(H$66=2,1,0) -> 0 | K67: =IF(U$66=2,1,0) -> 0 | L67: 8127 | M67: 15 | N67: =IFERROR(VLOOKUP(L67,LU_WEIGHTS!$A$2:$B$1349,2,FALSE),"") -> 0.15 | O67: =M67*I67 -> 0 | P67: =M67*J67 -> 0 | Q67: =M67*K67 -> 0
I68: 0 | J68: =IF(H$66=3,1,0) -> 0 | K68: =IF(U$66=3,1,0) -> 0 | L68: 8128 | M68: 35 | N68: =IFERROR(VLOOKUP(L68,LU_WEIGHTS!$A$2:$B$1349,2,FALSE),"") -> 0.35 | O68: =M68*I68 -> 0 | P68: =M68*J68 -> 0 | Q68: =M68*K68 -> 0
I69: 0 | J69: =IF(H$66=4,1,0) -> 0 | K69: =IF(U$66=4,1,0) -> 0 | L69: 8129 | M69: 43 | N69: =IFERROR(VLOOKUP(L69,LU_WEIGHTS!$A$2:$B$1349,2,FALSE),"") -> 0.43 | O69: =M69*I69 -> 0 | P69: =M69*J69 -> 0 | Q69: =M69*K69 -> 0
I70: 1 | J70: =IF(H$66=5,1,0) -> 1 | K70: =IF(U$66=5,1,0) -> 1 | L70: 8130 | M70: 50 | N70: =IFERROR(VLOOKUP(L70,LU_WEIGHTS!$A$2:$B$1349,2,FALSE),"") -> 0.5 | O70: =M70*I70 -> 50 | P70: =M70*J70 -> 50 | Q70: =M70*K70 -> 50
J72: =IF( SUM(J66:J70) >1,"ERROR","") ->  | N72: =IFERROR(VLOOKUP(L72,LU_WEIGHTS!$A$2:$B$1349,2,FALSE),"") -> 
C73: Of those SAAs covered by roving patrols, provide the one with the least frequent patrol: | I73: One check | J73: One check | L73: 8131 | N73: =IFERROR(VLOOKUP(L73,LU_WEIGHTS!$A$2:$B$1349,2,FALSE),"") -> 
H74: 1 | I74: 0 | J74: =IF(H$74=1,1,0) -> 1 | K74: =IF(U$74=1,1,0) -> 1 | L74: 5193 | M74: 50 | N74: =IFERROR(VLOOKUP(L74,LU_WEIGHTS!$A$2:$B$1349,2,FALSE),"") -> 0.5 | O74: =M74*I74 -> 0 | P74: =M74*J74 -> 50 | Q74: =M74*K74 -> 50 | U74: 1
I75: 0 | J75: =IF(H$74=2,1,0) -> 0 | K75: =IF(U$74=2,1,0) -> 0 | L75: 5194 | M75: 37.5 | N75: =IFERROR(VLOOKUP(L75,LU_WEIGHTS!$A$2:$B$1349,2,FALSE),"") -> 0.375 | O75: =M75*I75 -> 0 | P75: =M75*J75 -> 0 | Q75: =M75*K75 -> 0
I76: 0 | J76: =IF(H$74=3,1,0) -> 0 | K76: =IF(U$74=3,1,0) -> 0 | L76: 5195 | M76: 12.5 | N76: =IFERROR(VLOOKUP(L76,LU_WEIGHTS!$A$2:$B$1349,2,FALSE),"") -> 0.125 | O76: =M76*I76 -> 0 | P76: =M76*J76 -> 0 | Q76: =M76*K76 -> 0
I77: 0 | J77: =IF(H$74=4,1,0) -> 0 | K77: =IF(U$74=4,1,0) -> 0 | L77: 5196 | M77: 5 | N77: =IFERROR(VLOOKUP(L77,LU_WEIGHTS!$A$2:$B$1349,2,FALSE),"") -> 0.05 | O77: =M77*I77 -> 0 | P77: =M77*J77 -> 0 | Q77: =M77*K77 -> 0
J79: =IF( SUM(J74:J77) >1,"ERROR","") ->  | N79: =70/290 -> 0.2413793103 | O79: =SUM(O66:O77)*M80*I15*I59 -> 0 | P79: =SUM(P66:P77)*N80*J15*J59 -> 100 | Q79: =SUM(Q66:Q77)*N80*K15*K59 -> 100 | R79: =N79*O79 -> 0 | S79: =N79*P79 -> 24.13793103 | T79: =N79*Q79 -> 24.13793103
M80: =MAX(O62:O63) -> 1 | N80: =MAX(P62:P63) -> 1
M81: 100 | N81: =70/290 -> 0.2413793103 | O81: =SUM(O62:O77) -> 51 | P81: =SUM(P62:P77) -> 101 | Q81: =SUM(Q62:Q77) -> 101 | R81: =N81*O81 -> 12.31034483 | S81: =N81*P81 -> 24.37931034 | T81: =N81*Q81 -> 24.37931034
M82: 100 | N82: =70/290 -> 0.2413793103 | O82: =SUM(O63:O79) -> 51 | P82: =SUM(P63:P79) -> 201 | Q82: =SUM(Q63:Q79) -> 201 | R82: =N82*O82 -> 12.31034483 | S82: =N82*P82 -> 48.51724138 | T82: =N82*Q82 -> 48.51724138
B84: SECURITY FORCE - Equipment | R84: =MIN(100,SUM(SubstationNotInBldgAnswers!R89,SubstationNotInBldgAnswers!R93,SubstationNotInBldgAnswers!R103,SubstationNotInBldgAnswers!R106,SubstationNotInBldgAnswers!R110,SubstationNotInBldgAnswers!R114,SubstationNotInBldgAnswers!R126))*I15 -> 0 | S84: =MIN(100,SUM(SubstationNotInBldgAnswers!S89,SubstationNotInBldgAnswers!S93,SubstationNotInBldgAnswers!S103,SubstationNotInBldgAnswers!S106,SubstationNotInBldgAnswers!S110,SubstationNotInBldgAnswers!S114,SubstationNotInBldgAnswers!S126))*J15 -> 37.96527085 | T84: =MIN(100,SUM(SubstationNotInBldgAnswers!T89,SubstationNotInBldgAnswers!T93,SubstationNotInBldgAnswers!T103,SubstationNotInBldgAnswers!T106,SubstationNotInBldgAnswers!T110,SubstationNotInBldgAnswers!T114,SubstationNotInBldgAnswers!T126))*K15 -> 37.96527085
C85: Specify the equipment available to the security force | L85: 1992
C86: Uniformed | I86: One check | J86: One check | L86: 1993 | M86: =IFERROR(VLOOKUP(L86,LU_WEIGHTS!$A$2:$B$1349,2,), "") -> 
C87: No | I87: 0 | J87: =I87 -> 0 | K87: =J87 -> 0 | L87: 1995 | M87: =IFERROR(VLOOKUP(L87,LU_WEIGHTS!$A$2:$B$1349,2,), "") -> 0.076271186 | N87: 50 | O87: =N87*I87 -> 0 | P87: =N87*J87 -> 0 | Q87: =N87*K87 -> 0
C88: Yes | I88: 1 | J88: =I88 -> 1 | K88: =J88 -> 1 | L88: 1994 | M88: =IFERROR(VLOOKUP(L88,LU_WEIGHTS!$A$2:$B$1349,2,), "") -> 0.1525423729 | N88: 100 | O88: =N88*I88 -> 100 | P88: =N88*J88 -> 100 | Q88: =N88*K88 -> 100
M89: =90/M128 -> 0.1525423729 | O89: =SUM(O87:O88) -> 100 | P89: =SUM(P87:P88) -> 100 | Q89: =SUM(Q87:Q88) -> 100 | R89: =O89*M89 -> 15.25423729 | S89: =P89*M89 -> 15.25423729 | T89: =Q89*M89 -> 15.25423729
C90: Armed (i.e., gun) | I90: One check | J90: One check | L90: 1996 | M90: =IFERROR(VLOOKUP(L90,LU_WEIGHTS!$A$2:$B$1349,2,), "") -> 
C91: No | I91: 1 | J91: =I91 -> 1 | K91: =J91 -> 1 | L91: 1998 | M91: =IFERROR(VLOOKUP(L91,LU_WEIGHTS!$A$2:$B$1349,2,), "") -> 0.1207627119 | N91: 75 | O91: =N91*I91 -> 75 | P91: =N91*J91 -> 75 | Q91: =N91*K91 -> 75
C92: Yes | I92: 0 | J92: =I92 -> 0 | K92: =J92 -> 0 | L92: 1997 | M92: =IFERROR(VLOOKUP(L92,LU_WEIGHTS!$A$2:$B$1349,2,), "") -> 0.1610169492 | N92: 100 | O92: =N92*I92 -> 0 | P92: =N92*J92 -> 0 | Q92: =N92*K92 -> 0
M93: =95/M128 -> 0.1610169492 | O93: =SUM(O91:O92) -> 75 | P93: =SUM(P91:P92) -> 75 | Q93: =SUM(Q91:Q92) -> 75 | R93: =O93*M93 -> 12.07627119 | S93: =P93*M93 -> 12.07627119 | T93: =Q93*M93 -> 12.07627119
C94: Less than Lethal Weapons | I94: One check | J94: One check | L94: 2003 | M94: =IFERROR(VLOOKUP(L94,LU_WEIGHTS!$A$2:$B$1349,2,), "") -> 
C95: No | I95: 1 | J95: =I95 -> 1 | K95: =J95 -> 1 | L95: 2005 | M95: =IFERROR(VLOOKUP(L95,LU_WEIGHTS!$A$2:$B$1349,2,), "") -> 
C96: Yes | I96: 0 | J96: =I96 -> 0 | K96: =J96 -> 0 | L96: 2004 | M96: =IFERROR(VLOOKUP(L96,LU_WEIGHTS!$A$2:$B$1349,2,), "") -> 
M97: =IFERROR(VLOOKUP(L97,LU_WEIGHTS!$A$2:$B$1349,2,), "") -> 
C98: If yes: | M98: =IFERROR(VLOOKUP(L98,LU_WEIGHTS!$A$2:$B$1349,2,), "") -> 
C99: Taser | I99: 0 | J99: =I99 -> 0 | K99: 0 | L99: 2009 | M99: =IFERROR(VLOOKUP(L99,LU_WEIGHTS!$A$2:$B$1349,2,), "") -> 1 | N99: 100 | O99: =N99*I99 -> 0 | P99: =N99*J99 -> 0 | Q99: =N99*K99 -> 0
C100: Chemical Repellant | I100: 0 | J100: 0 | K100: 0 | L100: 2007 | M100: =IFERROR(VLOOKUP(L100,LU_WEIGHTS!$A$2:$B$1349,2,), "") -> 0.8 | N100: 80 | O100: =N100*I100 -> 0 | P100: =N100*J100 -> 0 | Q100: =N100*K100 -> 0
C101: Collapsible Baton/Baton | I101: 0 | J101: 0 | K101: 0 | L101: 2010 | M101: =IFERROR(VLOOKUP(L101,LU_WEIGHTS!$A$2:$B$1349,2,), "") -> 0.7 | N101: 70 | O101: =N101*I101 -> 0 | P101: =N101*J101 -> 0 | Q101: =N101*K101 -> 0
C102: Stun Gun | I102: 0 | J102: 0 | K102: 0 | L102: 2008 | M102: =IFERROR(VLOOKUP(L102,LU_WEIGHTS!$A$2:$B$1349,2,), "") -> 0.65 | N102: 65 | O102: =N102*I102 -> 0 | P102: =N102*J102 -> 0 | Q102: =N102*K102 -> 0
M103: =90/M128 -> 0.1525423729 | O103: =IF(I96=1, MIN(100,SUM(O99:O102)),0) -> 0 | P103: =IF(J96=1, MIN(100,SUM(P99:P102)),0) -> 0 | Q103: =IF(K96=1, MIN(100,SUM(Q99:Q102)),0) -> 0 | R103: =O103*M103 -> 0 | S103: =P103*M103 -> 0 | T103: =Q103*M103 -> 0
C104: Restraints | I104: One check | J104: One check | L104: 2012 | M104: =IFERROR(VLOOKUP(L104,LU_WEIGHTS!$A$2:$B$1349,2,), "") -> 
C105: No | I105: 1 | J105: =I105 -> 1 | K105: =J105 -> 1 | L105: 2014 | M105: =IFERROR(VLOOKUP(L105,LU_WEIGHTS!$A$2:$B$1349,2,), "") ->  | N105: 0 | O105: =N105*I105 -> 0 | P105: =N105*J105 -> 0 | Q105: =N105*K105 -> 0
C106: Yes | I106: 0 | J106: =I106 -> 0 | K106: =J106 -> 0 | L106: 2013 | M106: =IFERROR(VLOOKUP(L106,LU_WEIGHTS!$A$2:$B$1349,2,), "") -> 0.1440677966 | N106: 100 | O106: =N106*I106 -> 0 | P106: =N106*J106 -> 0 | Q106: =N106*K106 -> 0 | R106: =O106*M106 -> 0 | S106: =P106*M106 -> 0 | T106: =Q106*M106 -> 0
M107: =IFERROR(VLOOKUP(L107,LU_WEIGHTS!$A$2:$B$1349,2,), "") -> 
C108: Body Armor | I108: One check | J108: One check | L108: 2015 | M108: =IFERROR(VLOOKUP(L108,LU_WEIGHTS!$A$2:$B$1349,2,), "") -> 
C109: No | I109: 1 | J109: =I109 -> 1 | K109: =J109 -> 1 | L109: 2017 | M109: =IFERROR(VLOOKUP(L109,LU_WEIGHTS!$A$2:$B$1349,2,), "") ->  | N109: 0 | O109: =N109*I109 -> 0 | P109: =N109*J109 -> 0 | Q109: =N109*K109 -> 0
C110: Yes | I110: 0 | J110: =I110 -> 0 | K110: =J110 -> 0 | L110: 2016 | M110: =IFERROR(VLOOKUP(L110,LU_WEIGHTS!$A$2:$B$1349,2,), "") -> 0.1525423729 | N110: 100 | O110: =N110*I110 -> 0 | P110: =N110*J110 -> 0 | Q110: =N110*K110 -> 0 | R110: =O110*M110 -> 0 | S110: =P110*M110 -> 0 | T110: =Q110*M110 -> 0
M111: =IFERROR(VLOOKUP(L111,LU_WEIGHTS!$A$2:$B$1349,2,), "") -> 
C112: Canine Patrols | I112: One check | J112: One check | L112: 2018 | M112: =IFERROR(VLOOKUP(L112,LU_WEIGHTS!$A$2:$B$1349,2,), "") -> 
C113: No | I113: 1 | J113: =I113 -> 1 | K113: =J113 -> 1 | L113: 2020 | M113: =IFERROR(VLOOKUP(L113,LU_WEIGHTS!$A$2:$B$1349,2,), "") ->  | N113: 0 | O113: =N113*I113 -> 0 | P113: =N113*J113 -> 0 | Q113: =N113*K113 -> 0
C114: Yes | I114: 0 | J114: =I114 -> 0 | K114: =J114 -> 0 | L114: 2019 | M114: =IFERROR(VLOOKUP(L114,LU_WEIGHTS!$A$2:$B$1349,2,), "") -> 0.06779661017 | N114: 100 | O114: =N114*I114 -> 0 | P114: =N114*J114 -> 0 | Q114: =N114*K114 -> 0 | R114: =O114*M114 -> 0 | S114: =P114*M114 -> 0 | T114: =Q114*M114 -> 0
M115: =IFERROR(VLOOKUP(L115,LU_WEIGHTS!$A$2:$B$1349,2,), "") -> 
C116: Communications | I116: One check | J116: One check | L116: 2021 | M116: =IFERROR(VLOOKUP(L116,LU_WEIGHTS!$A$2:$B$1349,2,), "") -> 
C117: No | I117: 0 | J117: =I117 -> 0 | K117: =J117 -> 0 | L117: 2023 | M117: =IFERROR(VLOOKUP(L117,LU_WEIGHTS!$A$2:$B$1349,2,), "") -> 
C118: Yes | I118: 1 | J118: =I118 -> 1 | K118: =J118 -> 1 | L118: 2022 | M118: =IFERROR(VLOOKUP(L118,LU_WEIGHTS!$A$2:$B$1349,2,), "") -> 
M119: =IFERROR(VLOOKUP(L119,LU_WEIGHTS!$A$2:$B$1349,2,), "") -> 
C120: If yes: | M120: =IFERROR(VLOOKUP(L120,LU_WEIGHTS!$A$2:$B$1349,2,), "") -> 
C121: Radio | I121: 1 | J121: =I121 -> 1 | K121: 1 | L121: 2025 | M121: =IFERROR(VLOOKUP(L121,LU_WEIGHTS!$A$2:$B$1349,2,), "") -> 0.392156863 | N121: 100 | O121: =N121*I121 -> 100 | P121: =N121*J121 -> 100 | Q121: =N121*K121 -> 100
C122: Cell Phone with Walkie-Talkie Capability | I122: 0 | J122: 0 | K122: 0 | L122: 2027 | M122: =IFERROR(VLOOKUP(L122,LU_WEIGHTS!$A$2:$B$1349,2,), "") -> 0.333333333 | N122: 85 | O122: =N122*I122 -> 0 | P122: =N122*J122 -> 0 | Q122: =N122*K122 -> 0
C123: Duress Alarms / *Panic* Buttons: Portable | I123: 0 | J123: 0 | K123: 0 | L123: 2029 | M123: =IFERROR(VLOOKUP(L123,LU_WEIGHTS!$A$2:$B$1349,2,), "") -> 0.274509804 | N123: 70 | O123: =N123*I123 -> 0 | P123: =N123*J123 -> 0 | Q123: =N123*K123 -> 0
C124: Cell Phone | I124: 1 | J124: 1 | K124: 1 | L124: 2026 | M124: =IFERROR(VLOOKUP(L124,LU_WEIGHTS!$A$2:$B$1349,2,), "") -> 0.235294118 | N124: 60 | O124: =N124*I124 -> 60 | P124: =N124*J124 -> 60 | Q124: =N124*K124 -> 60
C125: Duress Alarms / *Panic* Buttons: Fixed | I125: 0 | J125: 0 | K125: 0 | L125: 2028 | M125: =IFERROR(VLOOKUP(L125,LU_WEIGHTS!$A$2:$B$1349,2,), "") -> 0.196078431 | N125: 50 | O125: =N125*I125 -> 0 | P125: =N125*J125 -> 0 | Q125: =N125*K125 -> 0
M126: =100/M128 -> 0.1694915254 | N126: =SUM(N121:N125) -> 365 | O126: =IF(I118=1,MIN(100, SUM(O121:O125)/M127*100),0) -> 62.74509804 | P126: =IF(J118=1, MIN(100, SUM(P121:P125)/M127*100),0) -> 62.74509804 | Q126: =IF(K118=1, MIN(100, SUM(Q121:Q125)/M127*100),0) -> 62.74509804 | R126: =O126*M126 -> 10.63476238 | S126: =P126*M126 -> 10.63476238 | T126: =Q126*M126 -> 10.63476238
L127: A++ | M127: =SUM(N122,N123,N121) -> 255
L128: Total Equipment weight | M128: 590
B130: SECURITY FORCE - Training | R130: =MIN(100,SUM(SubstationNotInBldgAnswers!R142,SubstationNotInBldgAnswers!R152,SubstationNotInBldgAnswers!R195)*I133)*I15 -> 0 | S130: =MIN(100,SUM(SubstationNotInBldgAnswers!S142,SubstationNotInBldgAnswers!S152,SubstationNotInBldgAnswers!S195)*J133)*J15 -> 20.34255208 | T130: =MIN(100,SUM(SubstationNotInBldgAnswers!T142,SubstationNotInBldgAnswers!T152,SubstationNotInBldgAnswers!T195)*K133)*K15 -> 20.34255208
C131: Does the security force receive training? | I131: One check | J131: One check | L131: 2035
C132: No | I132: 0 | J132: =IF(H$145=7,1,0) -> 0 | K132: =J132 -> 0 | L132: 2037 | M132: =IFERROR(VLOOKUP(L132,LU_WEIGHTS!$A$2:$B$1349,2,), "") -> 
C133: Yes | I133: 1 | J133: =IF(AND(H$145<>7,H$145<>0),1,0) -> 1 | K133: =J133 -> 1 | L133: 2036 | M133: =IFERROR(VLOOKUP(L133,LU_WEIGHTS!$A$2:$B$1349,2,), "") -> 0.3333333333
M134: =IFERROR(VLOOKUP(L134,LU_WEIGHTS!$A$2:$B$1349,2,), "") -> 
C135: Training Programs: | I135: Multiples ok | J135: Multiples ok | L135: 2039 | M135: =IFERROR(VLOOKUP(L135,LU_WEIGHTS!$A$2:$B$1349,2,), "") -> 
C136: Federal/State recognized certification | I136: 0 | J136: =I136 -> 0 | K136: 0 | L136: 2040 | M136: =IFERROR(VLOOKUP(L136,LU_WEIGHTS!$A$2:$B$1349,2,), "") -> 0.2469135802 | N136: 100 | O136: =I136*M136*100 -> 0 | P136: =J136*M136*100 -> 0 | Q136: =K136*M136*100 -> 0
C137: Formal | I137: 1 | J137: 1 | K137: 1 | L137: 2041 | M137: =IFERROR(VLOOKUP(L137,LU_WEIGHTS!$A$2:$B$1349,2,), "") -> 0.2098765432 | N137: 85 | O137: 20.98765432 | P137: 20.98765432 | Q137: 20.98765432
C138: In House/Informal | I138: 1 | J138: 1 | K138: 1 | L138: 2042 | M138: =IFERROR(VLOOKUP(L138,LU_WEIGHTS!$A$2:$B$1349,2,), "") -> 0.1481481481 | N138: 60 | O138: 14.81481481 | P138: 14.81481481 | Q138: 14.81481481
C139: Video | I139: 0 | J139: 0 | K139: 0 | L139: 2043 | M139: =IFERROR(VLOOKUP(L139,LU_WEIGHTS!$A$2:$B$1349,2,), "") -> 0.1481481481 | N139: 60 | O139: 0 | P139: 0 | Q139: 0
C140: Web-based | I140: 0 | J140: 0 | K140: 0 | L140: 2044 | M140: =IFERROR(VLOOKUP(L140,LU_WEIGHTS!$A$2:$B$1349,2,), "") -> 0.1481481481 | N140: 60 | O140: 0 | P140: 0 | Q140: 0
C141: OJT (on-the-job training) | I141: 1 | J141: 1 | K141: 1 | L141: 2045 | M141: =IFERROR(VLOOKUP(L141,LU_WEIGHTS!$A$2:$B$1349,2,), "") -> 0.0987654321 | N141: 40 | O141: 9.87654321 | P141: 9.87654321 | Q141: 9.87654321
L142: 8934 | M142: 0.333 | O142: =IF(I133=1, SUM(O136:O141),0) -> 45.67901235 | P142: =IF(J133=1,SUM(P136:P141),0) -> 45.67901235 | Q142: =IF(K133=1,SUM(Q136:Q141),0) -> 45.67901235 | R142: =O142*M142 -> 15.21111111 | S142: =P142*M142 -> 15.21111111 | T142: =Q142*M142 -> 15.21111111
M143: =IFERROR(VLOOKUP(L143,LU_WEIGHTS!$A$2:$B$1349,2,), "") ->  | N143: =SUM(N136:N141) -> 405
C144: Continuation/In service training for the security force: | I144: One check | J144: One check | L144: 2046 | M144: =IFERROR(VLOOKUP(L144,LU_WEIGHTS!$A$2:$B$1349,2,), "") -> 
H145: 6 | I145: 0 | J145: =IF(H$145=1,1,0) -> 0 | K145: =IF(U$145=1,1,0) -> 0 | L145: 2048 | M145: =IFERROR(VLOOKUP(L145,LU_WEIGHTS!$A$2:$B$1349,2,), "") -> 1 | N145: 100 | O145: =N145*I145 -> 0 | P145: =N145*J145 -> 0 | Q145: =N145*K145 -> 0 | U145: 6
I146: 0 | J146: =IF(H$145=2,1,0) -> 0 | K146: =IF(U$145=2,1,0) -> 0 | L146: 2049 | M146: =IFERROR(VLOOKUP(L146,LU_WEIGHTS!$A$2:$B$1349,2,), "") -> 0.9 | N146: 90 | O146: 0 | P146: 0 | Q146: 0
I147: 0 | J147: =IF(H$145=3,1,0) -> 0 | K147: =IF(U$145=3,1,0) -> 0 | L147: 2050 | M147: =IFERROR(VLOOKUP(L147,LU_WEIGHTS!$A$2:$B$1349,2,), "") -> 0.8 | N147: 80 | O147: 0 | P147: 0 | Q147: 0
I148: 0 | J148: =IF(H$145=4,1,0) -> 0 | K148: =IF(U$145=4,1,0) -> 0 | L148: 2051 | M148: =IFERROR(VLOOKUP(L148,LU_WEIGHTS!$A$2:$B$1349,2,), "") -> 0.7 | N148: 70 | O148: 0 | P148: 0 | Q148: 0
I149: 0 | J149: =IF(H$145=5,1,0) -> 0 | K149: =IF(U$145=5,1,0) -> 0 | L149: 2052 | M149: =IFERROR(VLOOKUP(L149,LU_WEIGHTS!$A$2:$B$1349,2,), "") -> 0.6 | N149: 60 | O149: 0 | P149: 0 | Q149: 0
I150: 0 | J150: =IF(H$145=6,1,0) -> 1 | K150: =IF(U$145=6,1,0) -> 1 | L150: 2047 | M150: =IFERROR(VLOOKUP(L150,LU_WEIGHTS!$A$2:$B$1349,2,), "") ->  | N150: 0 | O150: 0 | P150: 0 | Q150: 0
M152: 0.556 | O152: =IF(I133=1,SUM(O145:O150),0) -> 0 | P152: =IF(J133=1,SUM(P145:P150),0) -> 0 | Q152: =IF(K133=1,SUM(Q145:Q150),0) -> 0 | R152: =O152*M152 -> 0 | S152: =P152*M152 -> 0 | T152: =Q152*M152 -> 0
C153: Security force receives training in the following topics: | L153: 2053 | M153: =IFERROR(VLOOKUP(L153,LU_WEIGHTS!$A$2:$B$1349,2,), "") -> 
C154: Emergency Response | I154: Multiples ok | J154: Multiples ok | L154: 5141 | M154: =IFERROR(VLOOKUP(L154,LU_WEIGHTS!$A$2:$B$1349,2,), "") -> 
C155: Bomb Threat | I155: 1 | J155: =I155 -> 1 | K155: 1 | L155: 2071 | M155: =IFERROR(VLOOKUP(L155,LU_WEIGHTS!$A$2:$B$1349,2,), "") -> 0.2142857143 | N155: 90 | O155: =I155*M155*100 -> 21.42857143 | P155: =J155*M155*100 -> 21.42857143 | Q155: =K155*M155*100 -> 21.42857143
C156: Break-in | I156: 1 | J156: 1 | K156: 1 | L156: 2072 | M156: =IFERROR(VLOOKUP(L156,LU_WEIGHTS!$A$2:$B$1349,2,), "") -> 0.119047619 | N156: 50 | O156: 11.9047619 | P156: 11.9047619 | Q156: 11.9047619
C157: Hostage/Barricade | I157: 0 | J157: 0 | K157: 0 | L157: 2073 | M157: =IFERROR(VLOOKUP(L157,LU_WEIGHTS!$A$2:$B$1349,2,), "") -> 0.07142857143 | N157: 30 | O157: 0 | P157: 0 | Q157: 0
C158: Fire | I158: 1 | J158: 1 | K158: 1 | L158: 2075 | M158: =IFERROR(VLOOKUP(L158,LU_WEIGHTS!$A$2:$B$1349,2,), "") -> 0.1428571429 | N158: 60 | O158: 14.28571429 | P158: 14.28571429 | Q158: 14.28571429
C159: Chemical HAZMAT release | I159: 1 | J159: 1 | K159: 1 | L159: 2077 | M159: =IFERROR(VLOOKUP(L159,LU_WEIGHTS!$A$2:$B$1349,2,), "") -> 0.1666666667 | N159: 70 | O159: 16.66666667 | P159: 16.66666667 | Q159: 16.66666667
C160: Natural Disaster | I160: 1 | J160: 1 | K160: 1 | L160: 2078 | M160: =IFERROR(VLOOKUP(L160,LU_WEIGHTS!$A$2:$B$1349,2,), "") -> 0.04761904762 | N160: 20 | O160: 4.761904762 | P160: 4.761904762 | Q160: 4.761904762
C161: CPR/First aid | I161: 1 | J161: 1 | K161: 1 | L161: 2079 | M161: =IFERROR(VLOOKUP(L161,LU_WEIGHTS!$A$2:$B$1349,2,), "") -> 0.04761904762 | N161: 20 | O161: 4.761904762 | P161: 4.761904762 | Q161: 4.761904762
C162: Active shooter | I162: 1 | J162: 1 | K162: 1 | L162: 2080 | M162: =IFERROR(VLOOKUP(L162,LU_WEIGHTS!$A$2:$B$1349,2,), "") -> 0.1904761905 | N162: 80 | O162: 19.04761905 | P162: 19.04761905 | Q162: 19.04761905
C163: All of the above | I163: 0 | J163: 0 | K163: 0 | L163: 5143 | M163: =IFERROR(VLOOKUP(L163,LU_WEIGHTS!$A$2:$B$1349,2,), "") -> 1 | N163: 100 | O163: 0 | P163: 0 | Q163: 0
M164: 0.3 | O164: =MIN(100,SUM(O155:O163)) -> 92.85714286 | P164: =MIN(100,SUM(P155:P163)) -> 92.85714286 | Q164: =MIN(100,SUM(Q155:Q163)) -> 92.85714286 | R164: =M164*O164 -> 27.85714286 | S164: =M164*P164 -> 27.85714286 | T164: =M164*Q164 -> 27.85714286
C166: Weapons and Self-Defense | I166: Multiples ok | J166: Multiples ok | L166: 5149 | M166: =IFERROR(VLOOKUP(L166,LU_WEIGHTS!$A$2:$B$1349,2,), "") -> 
C167: Weapons | I167: 0 | J167: =I167 -> 0 | K167: 0 | L167: 2055 | M167: =IFERROR(VLOOKUP(L167,LU_WEIGHTS!$A$2:$B$1349,2,), "") -> 0.3913043478 | N167: 90 | O167: =I167*M167*100 -> 0 | P167: =J167*M167*100 -> 0 | Q167: =K167*M167*100 -> 0
C168: Less Than Lethal Response | I168: 0 | J168: 0 | K168: 0 | L168: 2056 | M168: =IFERROR(VLOOKUP(L168,LU_WEIGHTS!$A$2:$B$1349,2,), "") -> 0.3043478261 | N168: 70 | O168: 0 | P168: 0 | Q168: 0
C169: Force Continuum | I169: 0 | J169: 0 | K169: 0 | L169: 2069 | M169: =IFERROR(VLOOKUP(L169,LU_WEIGHTS!$A$2:$B$1349,2,), "") -> 0.08695652174 | N169: 20 | O169: 0 | P169: 0 | Q169: 0
C170: Self Defense | I170: 0 | J170: 0 | K170: 0 | L170: 2057 | M170: =IFERROR(VLOOKUP(L170,LU_WEIGHTS!$A$2:$B$1349,2,), "") -> 0.1739130435 | N170: 40 | O170: 0 | P170: 0 | Q170: 0
C171: Use of restraints | I171: 0 | J171: 0 | K171: 0 | L171: 2058 | M171: =IFERROR(VLOOKUP(L171,LU_WEIGHTS!$A$2:$B$1349,2,), "") -> 0.04347826087 | N171: 10 | O171: 0 | P171: 0 | Q171: 0
C172: All of the above | I172: 0 | J172: 0 | K172: 0 | L172: 5113 | M172: =IFERROR(VLOOKUP(L172,LU_WEIGHTS!$A$2:$B$1349,2,), "") -> 1 | N172: 100 | O172: 0 | P172: 0 | Q172: 0
M173: 0.4 | O173: =MIN(100,SUM(O167:O172)) -> 0 | P173: =MIN(100,SUM(P167:P172)) -> 0 | Q173: =MIN(100,SUM(Q167:Q172)) -> 0 | R173: =M173*O173 -> 0 | S173: =M173*P173 -> 0 | T173: =M173*Q173 -> 0
C175: Standard Operating Procedures | I175: Multiples ok | J175: Multiples ok | L175: 5150 | M175: =IFERROR(VLOOKUP(L175,LU_WEIGHTS!$A$2:$B$1349,2,), "") -> 
C176: Facility-specific SOPS | I176: 1 | J176: =I176 -> 1 | K176: 1 | L176: 2054 | M176: =IFERROR(VLOOKUP(L176,LU_WEIGHTS!$A$2:$B$1349,2,), "") -> 0.25 | N176: 90 | O176: =I176*N176 -> 90 | P176: =J176*N176 -> 90 | Q176: =K176*N176 -> 90
C177: Communications | I177: 1 | J177: 1 | K177: 1 | L177: 2060 | M177: =IFERROR(VLOOKUP(L177,LU_WEIGHTS!$A$2:$B$1349,2,), "") -> 0.25 | N177: 90 | O177: 90 | P177: 90 | Q177: 90
C178: ICS/NIMS | I178: 0 | J178: 0 | K178: 0 | L178: 2061 | M178: =IFERROR(VLOOKUP(L178,LU_WEIGHTS!$A$2:$B$1349,2,), "") -> 0.1944444444 | N178: 70 | O178: 0 | P178: 0 | Q178: 0
C179: Public Relations | I179: 0 | J179: 0 | K179: 0 | L179: 2066 | M179: =IFERROR(VLOOKUP(L179,LU_WEIGHTS!$A$2:$B$1349,2,), "") -> 0.05555555556 | N179: 20 | O179: 0 | P179: 0 | Q179: 0
C180: Legal Implications | I180: 1 | J180: 1 | K180: 1 | L180: 2067 | M180: =IFERROR(VLOOKUP(L180,LU_WEIGHTS!$A$2:$B$1349,2,), "") -> 0.05555555556 | N180: 20 | O180: 20 | P180: 20 | Q180: 20
C181: NTAS Increase | I181: 0 | J181: 0 | K181: 0 | L181: 2074 | M181: =IFERROR(VLOOKUP(L181,LU_WEIGHTS!$A$2:$B$1349,2,), "") -> 0.25 | N181: 90 | O181: 0 | P181: 0 | Q181: 0
C182: Threat Awareness | I182: 1 | J182: 1 | K182: 1 | L182: 2076 | M182: =IFERROR(VLOOKUP(L182,LU_WEIGHTS!$A$2:$B$1349,2,), "") -> 0.25 | N182: 90 | O182: 90 | P182: 90 | Q182: 90
C183: All of the above | I183: 0 | J183: 0 | K183: 0 | L183: 5159 | M183: =IFERROR(VLOOKUP(L183,LU_WEIGHTS!$A$2:$B$1349,2,), "") -> 1 | N183: 360 | O183: 0 | P183: 0 | Q183: 0
M184: 0.1 | N184: 360 | O184: =MIN(100, SUM(O176:O183)/N184*100) -> 80.55555556 | P184: =MIN(100, SUM(P176:P183)/N184*100) -> 80.55555556 | Q184: =MIN(100, SUM(Q176:Q183)/N184*100) -> 80.55555556 | R184: =M184*O184 -> 8.055555556 | S184: =M184*P184 -> 8.055555556 | T184: =M184*Q184 -> 8.055555556
C186: Screening and Access | I186: Multiples ok | J186: Multiples ok | L186: 4968 | M186: =IFERROR(VLOOKUP(L186,LU_WEIGHTS!$A$2:$B$1349,2,), "") -> 
C187: Screening | I187: 1 | J187: =I187 -> 1 | K187: 1 | L187: 2059 | M187: =IFERROR(VLOOKUP(L187,LU_WEIGHTS!$A$2:$B$1349,2,), "") -> 0.1891891892 | N187: 70 | O187: =I187*M187*100 -> 18.91891892 | P187: =J187*M187*100 -> 18.91891892 | Q187: =K187*M187*100 -> 18.91891892
C188: Search Procedures | I188: 0 | J188: 0 | K188: 0 | L188: 2070 | M188: =IFERROR(VLOOKUP(L188,LU_WEIGHTS!$A$2:$B$1349,2,), "") -> 0.2432432432 | N188: 90 | O188: 0 | P188: 0 | Q188: 0
C189: IDS | I189: 1 | J189: 1 | K189: 1 | L189: 2065 | M189: =IFERROR(VLOOKUP(L189,LU_WEIGHTS!$A$2:$B$1349,2,), "") -> 0.1351351351 | N189: 50 | O189: 13.51351351 | P189: 13.51351351 | Q189: 13.51351351
C190: IED recognition | I190: 0 | J190: 0 | K190: 0 | L190: 2081 | M190: =IFERROR(VLOOKUP(L190,LU_WEIGHTS!$A$2:$B$1349,2,), "") -> 0.2432432432 | N190: 90 | O190: 0 | P190: 0 | Q190: 0
C191: Surveillance Detection | I191: 1 | J191: 1 | K191: 1 | L191: 2082 | M191: =IFERROR(VLOOKUP(L191,LU_WEIGHTS!$A$2:$B$1349,2,), "") -> 0.1891891892 | N191: 70 | O191: 18.91891892 | P191: 18.91891892 | Q191: 18.91891892
C192: All of the above | I192: 0 | J192: 0 | K192: 0 | L192: 5270 | M192: =IFERROR(VLOOKUP(L192,LU_WEIGHTS!$A$2:$B$1349,2,), "") -> 1 | N192: 100 | O192: 0 | P192: 0 | Q192: 0
M193: 0.2 | O193: =MIN(100,SUM(O187:O192)) -> 51.35135135 | P193: =MIN(100,SUM(P187:P192)) -> 51.35135135 | Q193: =MIN(100,SUM(Q187:Q192)) -> 51.35135135 | R193: =M193*O193 -> 10.27027027 | S193: =M193*P193 -> 10.27027027 | T193: =M193*Q193 -> 10.27027027
Q194: raw training | R194: =SUM(R193,R184,R173,R164)*I133 -> 46.18296868 | S194: =SUM(S193,S184,S173,S164)*J133 -> 46.18296868 | T194: =SUM(T193,T184,T173,T164)*K133 -> 46.18296868
Q195: Weighted training | R195: =R194*20/180 -> 5.131440965 | S195: =S194*20/180 -> 5.131440965 | T195: =T194*20/180 -> 5.131440965
B197: SECURITY FORCE - Post Orders; Command and Control
C198: Do comprehensive post orders exist? | I198: One check | J198: One check | L198: 2085
C199: No | I199: 0 | J199: =I199 -> 0 | K199: =J199 -> 0 | L199: 2087 | M199: =IFERROR(VLOOKUP(L199,LU_WEIGHTS!$A$2:$B$1349,2,), "") ->  | N199: 0 | O199: =I199*N199 -> 0 | P199: =J199*N199 -> 0 | Q199: =K199*N199 -> 0
C200: Yes | I200: 1 | J200: =I200 -> 1 | K200: =J200 -> 1 | L200: 2086 | M200: =IFERROR(VLOOKUP(L200,LU_WEIGHTS!$A$2:$B$1349,2,), "") -> 0.09230769231 | N200: 100 | O200: =I200*N200 -> 100 | P200: =J200*N200 -> 100 | Q200: =K200*N200 -> 100
M201: =IFERROR(VLOOKUP(L201,LU_WEIGHTS!$A$2:$B$1349,2,), "") ->  | O201: =SUM(O199:O200)*I15 -> 0 | P201: =SUM(P199:P200)*J15 -> 100 | Q201: =SUM(Q199:Q200)*K15 -> 100
C202: Is there a dedicated command and control or operation center for the guard force? | I202: One check | J202: One check | L202: 2100 | M202: =IFERROR(VLOOKUP(L202,LU_WEIGHTS!$A$2:$B$1349,2,), "") -> 
C203: No | I203: 0 | J203: =I203 -> 0 | K203: =J203 -> 0 | L203: 2102 | M203: =IFERROR(VLOOKUP(L203,LU_WEIGHTS!$A$2:$B$1349,2,), "") ->  | N203: 0 | O203: =I203*N203 -> 0 | P203: =J203*N203 -> 0 | Q203: =K203*N203 -> 0
C204: Yes | I204: 1 | J204: =I204 -> 1 | K204: =J204 -> 1 | L204: 2101 | M204: =IFERROR(VLOOKUP(L204,LU_WEIGHTS!$A$2:$B$1349,2,), "") -> 0.1153846154 | N204: 100 | O204: =I204*N204 -> 100 | P204: =J204*N204 -> 100 | Q204: =K204*N204 -> 100
O205: =SUM(O203:O204)*I15 -> 0 | P205: =SUM(P203:P204)*J15 -> 100 | Q205: =SUM(Q203:Q204)*K15 -> 100
B209: SECURITY MANAGEMENT | Y209: ="Existing: "&ROUND(SubstationNotBldgChartValues!H14,3) -> Existing: 84.81
Y210: ="Scenario: "&ROUND(SubstationNotBldgChartValues!I14,3) -> Scenario: 84.81
B211: SECURITY MANAGEMENT - Security Manager | R211: =MIN(100,SUM(SubstationNotInBldgAnswers!R214,SubstationNotInBldgAnswers!R218)) -> 100 | S211: =MIN(100,SUM(SubstationNotInBldgAnswers!S214,SubstationNotInBldgAnswers!S218)) -> 100 | T211: =MIN(100,SUM(SubstationNotInBldgAnswers!T214,SubstationNotInBldgAnswers!T218)) -> 100
C212: Is there a manger/department in charge of security management? | I212: One Check | J212: One Check | L212: 1752
C213: No | I213: 0 | J213: =I213 -> 0 | K213: =J213 -> 0 | L213: 1754 | M213: =IFERROR(VLOOKUP(L213,LU_WEIGHTS!$A$2:$B$1349,2,FALSE),"") -> 
C214: Yes | I214: 1 | J214: =I214 -> 1 | K214: =J214 -> 1 | L214: 1753 | M214: 100 | N214: =M214/$M$219 -> 0.5 | O214: =$M214*I214 -> 100 | P214: =$M214*J214 -> 100 | Q214: =$M214*K214 -> 100 | R214: =$N214*O214 -> 50 | S214: =$N214*P214 -> 50 | T214: =$N214*Q214 -> 50
M215: =IFERROR(VLOOKUP(L215,LU_WEIGHTS!$A$2:$B$1349,2,FALSE),"") -> 
C216: Is this the primary function of that manager/department? | I216: One Check | J216: One Check | L216: 11056 | M216: =IFERROR(VLOOKUP(L216,LU_WEIGHTS!$A$2:$B$1349,2,FALSE),"") -> 
C217: No | I217: 0 | J217: =I217 -> 0 | K217: =J217 -> 0 | L217: 11090 | M217: =IFERROR(VLOOKUP(L217,LU_WEIGHTS!$A$2:$B$1349,2,FALSE),"") -> 
C218: Yes | I218: 1 | J218: =I218 -> 1 | K218: =J218 -> 1 | L218: 11091 | M218: 100 | N218: =M218/$M$219 -> 0.5 | O218: =$M218*I218 -> 100 | P218: =$M218*J218 -> 100 | Q218: =$M218*K218 -> 100 | R218: =$N218*O218 -> 50 | S218: =$N218*P218 -> 50 | T218: =$N218*Q218 -> 50
... 1516 more rows

Sheet SubstationInBldgAnswers (hidden)
C1: Default Answers | D1: Facility Answers | E1: Scenario Answers | F1: Master Option ID | H1: Weight | M1: Default Score | N1: Facility Score | O1: Scenario Score
B2: Facility Name | D2: Substation in a Building - Significant | E2: Substation in a Building - Significant
B3: Overall PMI | M3: =ROUND(SUMPRODUCT(H4:H6,J4:J6),2) -> 26.08 | N3: =ROUND(SUMPRODUCT(H4:H6,K4:K6),2) -> 26.08 | O3: =ROUND(SUMPRODUCT(H4:H6,L4:L6),2) -> 26.08
B4: Security Force Profile | H4: 0.330855 | J4: =M7 -> 0 | K4: =N7 -> 0 | L4: =O7 -> 0
B5: Security Management | H5: 0.371747 | J5: =M13 -> 51.71 | K5: =N13 -> 51.71 | L5: =O13 -> 51.71
B6: Physical Security | H6: 0.297398 | J6: =M21 -> 23.06 | K6: =N21 -> 23.06 | L6: =O21 -> 23.06
B7: Security Force Profile | M7: =ROUND(SUMPRODUCT(H8:H12,J8:J12),2) -> 0 | N7: =ROUND(SUMPRODUCT(H8:H12,K8:K12),2) -> 0 | O7: =ROUND(SUMPRODUCT(H8:H12,L8:L12),2) -> 0
B8: Training | H8: 0.2307692308 | J8: =M146 -> 0 | K8: =N146 -> 0 | L8: =O146 -> 0
B9: Post Guidelines | H9: 0.09230769231 | J9: =J215 -> 0 | K9: =K215 -> 0 | L9: =L215 -> 0
B10: Command and Control | H10: 0.1153846154 | J10: =J219 -> 0 | K10: =K219 -> 0 | L10: =L219 -> 0
B11: Staffing | H11: 0.4 | J11: =M31 -> 0 | K11: =N31 -> 0 | L11: =O31 -> 0
B12: Equipment | H12: 0.1615384615 | J12: =M101 -> 0 | K12: =N101 -> 0 | L12: =O101 -> 0
B13: Security Management | M13: =ROUND(SUMPRODUCT(H14:H20,J14:J20),2) -> 51.71 | N13: =ROUND(SUMPRODUCT(H14:H20,K14:K20),2) -> 51.71 | O13: =ROUND(SUMPRODUCT(H14:H20,L14:L20),2) -> 51.71
B14: Security Manager | H14: 0.1666666667 | J14: =M220 -> 100 | K14: =N220 -> 100 | L14: =O220 -> 100
B15: Security Plan | H15: 0.1666666667 | J15: =M229 -> 0 | K15: =N229 -> 0 | L15: =O229 -> 0
B16: Security Communication | H16: 0.125 | J16: =M338 -> 45.9 | K16: =N338 -> 45.9 | L16: =O338 -> 45.9
B17: Suspicious Package Procedures | H17: 0.125 | J17: =J358 -> 0 | K17: =K358 -> 0 | L17: =L358 -> 0
B18: Security Working Groups | H18: 0.1 | J18: =J365 -> 100 | K18: =K365 -> 100 | L18: =L365 -> 100
B19: Sensitive Information | H19: 0.15 | J19: =M371 -> 59.94897971 | K19: =N371 -> 59.94897971 | L19: =O371 -> 59.94897971
B20: Background Checks | H20: 0.1666666667 | J20: =M405 -> 61.9047619 | K20: =N405 -> 61.9047619 | L20: =O405 -> 61.9047619
B21: Physical Security | M21: =ROUND(SUMPRODUCT(H22:H30,J22:J30),2) -> 23.06 | N21: =ROUND(SUMPRODUCT(H22:H30,K22:K30),2) -> 23.06 | O21: =ROUND(SUMPRODUCT(H22:H30,L22:L30),2) -> 23.06
B22: Fences | H22: 0.11634757 | J22: =M454 -> 37.5 | K22: =N454 -> 37.5 | L22: =O454 -> 37.5
B23: Building Envelope | H23: 0.1001472754 | J23: =M673 -> 32.75261324 | K23: =N673 -> 32.75261324 | L23: =O673 -> 32.75261324
B24: CCTV | H24: 0.0824742268 | J24: =M789 -> 0 | K24: =N789 -> 0 | L24: =O789 -> 0
B25: Gates | H25: 0.1340206186 | J25: =M522 -> 0 | K25: =N522 -> 0 | L25: =O522 -> 0
B26: IDS | H26: 0.1001472754 | J26: =M901 -> 21.80000828 | K26: =N901 -> 21.80000828 | L26: =O901 -> 21.80000828
B27: Parking | H27: 0.08217967599 | J27: =M1043 -> 14.85714286 | K27: =N1043 -> 14.85714286 | L27: =O1043 -> 14.85714286
B28: Barriers | H28: 0.1275405007 | J28: =M1222 -> 0 | K28: =N1222 -> 0 | L28: =O1222 -> 0
B29: Illumination | H29: 0.1098674521 | J29: =M1257 -> 50.29761905 | K29: =N1257 -> 50.29761905 | L29: =O1257 -> 50.29761905
B30: Entry Control | H30: 0.147275405 | J30: =M1386 -> 44.03361345 | K30: =N1386 -> 44.03361345 | L30: =O1386 -> 44.03361345
B31: SECURITY FORCE - Staffing | M31: =MIN(100,IF(C34=1,0,SUM(M51,M55,M59,M77,M97))) -> 0 | N31: =MIN(100,IF(D34=1,0,SUM(N51,N55,N59,N77,N97))) -> 0 | O31: =MIN(100,IF(E34=1,0,SUM(O51,O55,O59,O77,O97))) -> 0
B32: Staffing
B33: Does the facility have a security force? | C33: One check | D33: One check | E33: One check | J33: Default | K33: Facility | L33: Scenario
B34: No | C34: 0 | D34: 0 | E34: 0 | F34: 32 | J34: =$H34*C34 -> 0 | K34: 0 | L34: 0
B35: Yes | C35: 0 | D35: 0 | E35: 0 | F35: 31 | H35: 100 | I35: 0.4 | J35: 0 | K35: 0 | L35: 0
H36: 100 | J36: =SUM(J34:J35)*C35*$H36/$H51 -> 0 | K36: =SUM(K34:K35)*D35*$H36/$H51 -> 0 | L36: =SUM(L34:L35)*E35*$H36/$H51 -> 0
B37: Onsite security force | C37: 0 | D37: =C37 -> 0 | E37: =D37 -> 0 | F37: 4693 | H37: 100 | I37: 1 | J37: =$H37*C37 -> 0 | K37: 0 | L37: 0
B38: Off site security force only (no onsite force) | C38: 1 | D38: =C38 -> 1 | E38: =D38 -> 1 | F38: 4694 | H38: 25 | I38: 0.25 | J38: 25 | K38: 25 | L38: 25
H39: 75 | J39: =SUM(J37:J38)*C35*$H39/$H51 -> 0 | K39: =SUM(K37:K38)*D35*$H39/$H51 -> 0 | L39: =SUM(L37:L38)*E35*$H39/$H51 -> 0
B40: If yes to either onsite or off-site security force, does the security force have or utilize:
B42: Is there a Surge Capacity Plan? | C42: One check | D42: One check | E42: One check
B43: No | C43: 0 | D43: =C43 -> 0 | E43: =D43 -> 0 | F43: 8685
B44: Yes | C44: 1 | D44: =C44 -> 1 | E44: =D44 -> 1 | F44: 8686
B46: Surge Capacity Plan has the following Personnel: | C46: Multiples ok | D46: Multiples ok | E46: Multiples ok | F46: 4839
B47: Law Enforcement [MOA/Contract/Off-duty] | C47: 1 | D47: =C47 -> 1 | E47: 1 | F47: 8688 | H47: 100 | I47: 0.5 | J47: =C47*I47*100*C44 -> 50 | K47: =D47*I47*100*D44 -> 50 | L47: =E47*I47*100*E44 -> 50
B48: Contracted Security | C48: 0 | D48: 0 | E48: 0 | F48: 8689 | H48: 60 | I48: 0.3 | J48: =C48*I48*100*C44 -> 0 | K48: =D48*I48*100*D44 -> 0 | L48: =E48*I48*100*E44 -> 0
B49: Other organization/corporate | C49: 1 | D49: 1 | E49: 1 | F49: 8690 | H49: 40 | I49: 0.2 | J49: =C49*I49*100*C44 -> 20 | K49: =D49*I49*100*D44 -> 20 | L49: =E49*I49*100*E44 -> 20
H50: 25 | J50: =SUM(J47:J49)*C35*$H50/$H51 -> 0 | K50: =SUM(K47:K49)*D35*$H50/$H51 -> 0 | L50: =SUM(L47:L49)*E35*$H50/$H51 -> 0
H51: 200 | I51: 0.3448275862 | J51: =SUM(J50,J39,J36) -> 0 | K51: =SUM(K50,K39,K36) -> 0 | L51: =SUM(L50,L39,L36) -> 0 | M51: =I51*J51 -> 0 | N51: =I51*K51 -> 0 | O51: =I51*L51 -> 0
B53: Arrest Authority | C53: One check | D53: One check | E53: One check | F53: 8731
B54: No | C54: 1 | D54: =C54 -> 1 | E54: =D54 -> 1 | F54: 8732
B55: Yes | C55: 0 | D55: =C55 -> 0 | E55: =D55 -> 0 | F55: 8733 | H55: 100 | I55: 0.06896551724 | J55: =$H55*C55 -> 0 | K55: =$H55*D55 -> 0 | L55: =$H55*E55 -> 0 | M55: =I55*J55 -> 0 | N55: =I55*K55 -> 0 | O55: =I55*L55 -> 0
B57: Detain Authority | C57: One check | D57: One check | E57: One check | F57: 1946
B58: No | C58: 1 | D58: =C58 -> 1 | E58: =D58 -> 1 | F58: 1948
B59: Yes | C59: 0 | D59: =C59 -> 0 | E59: =D59 -> 0 | F59: 1947 | H59: 100 | I59: 0.03448275862 | J59: =$H59*C59 -> 0 | K59: =$H59*D59 -> 0 | L59: =$H59*E59 -> 0 | M59: =I59*J59 -> 0 | N59: =I59*K59 -> 0 | O59: =I59*L59 -> 0
B61: Static Posts: | F61: 4755
B62: Security staffing at different types of posts (select types of posts covered by security staff at the facility/SAA) | F62: 4756
B63: Static Posts Exist | C63: 0 | D63: =C63 -> 0 | E63: =D63 -> 0 | F63: 7635
B65: What percentage of Static posts are covered by security force personnel? | C65: One check | D65: One check | E65: One check | F65: 4758
B66: 1-25% | C66: 0 | D66: =C66 -> 0 | E66: 0 | F66: 4759 | H66: 5 | I66: 0.03333333333 | J66: =$H66*C66 -> 0 | K66: 0 | L66: 0
B67: 26-50% | C67: 0 | D67: 0 | E67: 0 | F67: 4760 | H67: 15 | I67: 0.1 | J67: 0 | K67: 0 | L67: 0
B68: 51-75% | C68: 0 | D68: 0 | E68: 0 | F68: 4761 | H68: 35 | I68: 0.2333333333 | J68: 0 | K68: 0 | L68: 0
B69: 76-99% | C69: 0 | D69: 0 | E69: 0 | F69: 4762 | H69: 43 | I69: 0.2866666667 | J69: 0 | K69: 0 | L69: 0
B70: 1 | C70: 0 | D70: 0 | E70: 0 | F70: 8125 | H70: 50 | I70: 0.3333333333 | J70: 0 | K70: 0 | L70: 0
B72: Check the least number of hours any static post is covered by a security personnel: | C72: One check | D72: One check | E72: One check | F72: 4763
B73: 8 hours or less | C73: 0 | D73: =C73 -> 0 | E73: 0 | F73: 4764 | H73: 10 | I73: 0.06666666667 | J73: =$H73*C73 -> 0 | K73: 0 | L73: 0
B74: 8-12 hours | C74: 0 | D74: 0 | E74: 0 | F74: 5296 | H74: 30 | I74: 0.2 | J74: 0 | K74: 0 | L74: 0
B75: 12-18 hours | C75: 0 | D75: 0 | E75: 0 | F75: 5297 | H75: 70 | I75: 0.4666666667 | J75: 0 | K75: 0 | L75: 0
B76: 18-24 hours | C76: 0 | D76: 0 | E76: 0 | F76: 5298 | H76: 100 | I76: 0.6666666667 | J76: 0 | K76: 0 | L76: 0
H77: 150 | I77: 0.3103448276 | J77: =SUM(J66:J76)/$H77*100*C35*C63 -> 0 | K77: =SUM(K66:K76)/$H77*100*D35*D63 -> 0 | L77: =SUM(L66:L76)/$H77*100*E35*E63 -> 0 | M77: =I77*J77 -> 0 | N77: =I77*K77 -> 0 | O77: =I77*L77 -> 0
B78: Roving Patrols:
B79: Roving patrols exist | C79: 1 | D79: 1 | E79: 1 | F79: 5299
B81: if Yes: | C81: One check | D81: One check | E81: One check
B82: Predetermined sequence | C82: 0 | D82: 0 | E82: 0 | F82: 4914 | I82: 0.7 | J82: =C82*I82 -> 0 | K82: =D82*I82 -> 0 | L82: =E82*I82 -> 0
B83: Random | C83: 0 | D83: 0 | E83: 0 | F83: 4915 | I83: 1 | J83: =C83*I83 -> 0 | K83: =D83*I83 -> 0 | L83: =E83*I83 -> 0
B85: What percentage of SAAs are covered by roving patrols? | C85: One check | D85: One check | E85: One check | F85: 5192
B86: 1-25% | C86: 0 | D86: 0 | E86: 0 | F86: 8126 | H86: 5 | I86: 0.05 | J86: =$H86*C86 -> 0 | K86: 0 | L86: 0
B87: 26-50% | C87: 0 | D87: 0 | E87: 0 | F87: 8127 | H87: 15 | I87: 0.15 | J87: 0 | K87: 0 | L87: 0
B88: 51-75% | C88: 0 | D88: 0 | E88: 0 | F88: 8128 | H88: 35 | I88: 0.35 | J88: 0 | K88: 0 | L88: 0
B89: 76-99% | C89: 0 | D89: 0 | E89: 0 | F89: 8129 | H89: 43 | I89: 0.43 | J89: 0 | K89: 0 | L89: 0
B90: 1 | C90: 0 | D90: 0 | E90: 0 | F90: 8130 | H90: 50 | I90: 0.5 | J90: 0 | K90: 0 | L90: 0
D91: =IF( SUM(D86:D90) >1,"ERROR","") ->  | E91: =IF( SUM(E86:E90) >1,"ERROR","") -> 
B92: Of those SAAs covered by roving patrols, provide the one with the least frequent patrol: | C92: One check | D92: One check | E92: One check | F92: 8131
B93: At least once every hour | C93: 0 | D93: =C93 -> 0 | E93: 0 | F93: 5193 | H93: 50 | I93: 0.5 | J93: =$H93*C93 -> 0 | K93: 0 | L93: 0
B94: Once every 1-8 hours | C94: 0 | D94: 0 | E94: 0 | F94: 5194 | H94: 37.5 | I94: 0.375 | J94: 0 | K94: 0 | L94: 0
B95: Once every 8-24 hours | C95: 0 | D95: 0 | E95: 0 | F95: 5195 | H95: 12.5 | I95: 0.125 | J95: 0 | K95: 0 | L95: 0
B96: Less frequently than every 24 hours | C96: 1 | D96: 1 | E96: 1 | F96: 5196 | H96: 5 | I96: 0.05 | J96: 5 | K96: 5 | L96: 5
D97: =IF( SUM(D93:D96) >1,"ERROR","") ->  | E97: =IF( SUM(E93:E96) >1,"ERROR","") ->  | I97: 0.2413793103 | J97: =SUM(J86:J96)*$H98*C35*C79 -> 0 | K97: =SUM(K86:K96)*I98*D35*D79 -> 0 | L97: =SUM(L86:L96)*I98*E35*E79 -> 0 | M97: =I97*J97 -> 0 | N97: =I97*K97 -> 0 | O97: =I97*L97 -> 0
H98: 1 | I98: 1
H99: 100 | I99: 0.2413793103 | J99: =SUM(J82:J96) -> 5 | K99: 5 | L99: 5 | M99: =I99*J99 -> 1.206896552 | N99: =I99*K99 -> 1.206896552 | O99: =I99*L99 -> 1.206896552
H100: 100 | I100: 0.2413793103 | J100: 5 | K100: 5 | L100: 5 | M100: =I100*J100 -> 1.206896552 | N100: =I100*K100 -> 1.206896552 | O100: =I100*L100 -> 1.206896552
B101: SECURITY FORCE - Equipment | M101: =MIN(100,SUM(M106,M110,M120,M123,M127,M131,M143))*C35 -> 0 | N101: =MIN(100,SUM(N106,N110,N120,N123,N127,N131,N143))*D35 -> 0 | O101: =MIN(100,SUM(O106,O110,O120,O123,O127,O131,O143))*E35 -> 0
B102: Specify the equipment available to the security force | F102: 1992 | H102: 0.1615384615
B103: Uniformed | C103: One check | D103: One check | E103: One check | F103: 1993
B104: No | C104: 1 | D104: =C104 -> 1 | E104: =D104 -> 1 | F104: 1995 | H104: 0.076271186 | I104: 50 | J104: =I104*C104 -> 50 | K104: =I104*D104 -> 50 | L104: =I104*E104 -> 50
B105: Yes | C105: 0 | D105: =C105 -> 0 | E105: =D105 -> 0 | F105: 1994 | H105: 0.1525423729 | I105: 100 | J105: =I105*C105 -> 0 | K105: =I105*D105 -> 0 | L105: =I105*E105 -> 0
H106: 0.1525423729 | J106: =SUM(J104:J105) -> 50 | K106: =SUM(K104:K105) -> 50 | L106: =SUM(L104:L105) -> 50 | M106: =J106*H106 -> 7.627118644 | N106: =K106*H106 -> 7.627118644 | O106: =L106*H106 -> 7.627118644
B107: Armed (i.e., gun) | C107: One check | D107: One check | E107: One check | F107: 1996
B108: No | C108: 0 | D108: =C108 -> 0 | E108: =D108 -> 0 | F108: 1998 | H108: 0.1207627119 | I108: 75 | J108: =I108*C108 -> 0 | K108: =I108*D108 -> 0 | L108: =I108*E108 -> 0
B109: Yes | C109: 1 | D109: =C109 -> 1 | E109: =D109 -> 1 | F109: 1997 | H109: 0.1610169492 | I109: 100 | J109: =I109*C109 -> 100 | K109: =I109*D109 -> 100 | L109: =I109*E109 -> 100
H110: 0.1610169492 | J110: =SUM(J108:J109) -> 100 | K110: =SUM(K108:K109) -> 100 | L110: =SUM(L108:L109) -> 100 | M110: =J110*H110 -> 16.10169492 | N110: =K110*H110 -> 16.10169492 | O110: =L110*H110 -> 16.10169492
B111: Less than Lethal Weapons | C111: One check | D111: One check | E111: One check | F111: 2003
B112: No | C112: 1 | D112: =C112 -> 1 | E112: =D112 -> 1 | F112: 2005
B113: Yes | C113: 0 | D113: =C113 -> 0 | E113: =D113 -> 0 | F113: 2004
B115: If yes:
B116: Taser | C116: 0 | D116: =C116 -> 0 | E116: 0 | F116: 2009 | H116: 1 | I116: 100 | J116: =I116*C116 -> 0 | K116: =I116*D116 -> 0 | L116: =I116*E116 -> 0
B117: Chemical Repellant | C117: 0 | D117: 0 | E117: 0 | F117: 2007 | H117: 0.8 | I117: 80 | J117: =I117*C117 -> 0 | K117: =I117*D117 -> 0 | L117: =I117*E117 -> 0
B118: Collapsible Baton/Baton | C118: 0 | D118: 0 | E118: 0 | F118: 2010 | H118: 0.7 | I118: 70 | J118: =I118*C118 -> 0 | K118: =I118*D118 -> 0 | L118: =I118*E118 -> 0
B119: Stun Gun | C119: 0 | D119: 0 | E119: 0 | F119: 2008 | H119: 0.65 | I119: 65 | J119: =I119*C119 -> 0 | K119: =I119*D119 -> 0 | L119: =I119*E119 -> 0
H120: 0.1525423729 | J120: =IF(C113=1, MIN(100,SUM(J116:J119)),0) -> 0 | K120: =IF(D113=1, MIN(100,SUM(K116:K119)),0) -> 0 | L120: =IF(E113=1, MIN(100,SUM(L116:L119)),0) -> 0 | M120: =J120*H120 -> 0 | N120: =K120*H120 -> 0 | O120: =L120*H120 -> 0
B121: Restraints | C121: One check | D121: One check | E121: One check | F121: 2012
B122: No | C122: 1 | D122: =C122 -> 1 | E122: =D122 -> 1 | F122: 2014 | I122: 0 | J122: =I122*C122 -> 0 | K122: =I122*D122 -> 0 | L122: =I122*E122 -> 0
B123: Yes | C123: 0 | D123: =C123 -> 0 | E123: =D123 -> 0 | F123: 2013 | H123: 0.1440677966 | I123: 100 | J123: =I123*C123 -> 0 | K123: =I123*D123 -> 0 | L123: =I123*E123 -> 0 | M123: =J123*H123 -> 0 | N123: =K123*H123 -> 0 | O123: =L123*H123 -> 0
B125: Body Armor | C125: One check | D125: One check | E125: One check | F125: 2015
B126: No | C126: 1 | D126: =C126 -> 1 | E126: =D126 -> 1 | F126: 2017 | I126: 0 | J126: =I126*C126 -> 0 | K126: =I126*D126 -> 0 | L126: =I126*E126 -> 0
B127: Yes | C127: 0 | D127: =C127 -> 0 | E127: =D127 -> 0 | F127: 2016 | H127: 0.1525423729 | I127: 100 | J127: =I127*C127 -> 0 | K127: =I127*D127 -> 0 | L127: =I127*E127 -> 0 | M127: =J127*H127 -> 0 | N127: =K127*H127 -> 0 | O127: =L127*H127 -> 0
B129: Canine Patrols | C129: One check | D129: One check | E129: One check | F129: 2018
B130: No | C130: 1 | D130: =C130 -> 1 | E130: =D130 -> 1 | F130: 2020 | I130: 0 | J130: =I130*C130 -> 0 | K130: =I130*D130 -> 0 | L130: =I130*E130 -> 0
B131: Yes | C131: 0 | D131: =C131 -> 0 | E131: =D131 -> 0 | F131: 2019 | H131: 0.06779661017 | I131: 100 | J131: =I131*C131 -> 0 | K131: =I131*D131 -> 0 | L131: =I131*E131 -> 0 | M131: =J131*H131 -> 0 | N131: =K131*H131 -> 0 | O131: =L131*H131 -> 0
B133: Communications | C133: One check | D133: One check | E133: One check | F133: 2021
B134: No | C134: 0 | D134: =C134 -> 0 | E134: =D134 -> 0 | F134: 2023
B135: Yes | C135: 1 | D135: =C135 -> 1 | E135: =D135 -> 1 | F135: 2022
B137: If yes:
B138: Radio | C138: 0 | D138: =C138 -> 0 | E138: 0 | F138: 2025 | H138: 0.392156863 | I138: 100 | J138: =I138*C138 -> 0 | K138: =I138*D138 -> 0 | L138: =I138*E138 -> 0
B139: Cell Phone with Walkie-Talkie Capability | C139: 0 | D139: 0 | E139: 0 | F139: 2027 | H139: 0.333333333 | I139: 85 | J139: =I139*C139 -> 0 | K139: =I139*D139 -> 0 | L139: =I139*E139 -> 0
B140: Duress Alarms / *Panic* Buttons: Portable | C140: 0 | D140: 0 | E140: 0 | F140: 2029 | H140: 0.274509804 | I140: 70 | J140: =I140*C140 -> 0 | K140: =I140*D140 -> 0 | L140: =I140*E140 -> 0
B141: Cell Phone | C141: 1 | D141: 1 | E141: 1 | F141: 2026 | H141: 0.235294118 | I141: 60 | J141: =I141*C141 -> 60 | K141: =I141*D141 -> 60 | L141: =I141*E141 -> 60
B142: Duress Alarms / *Panic* Buttons: Fixed | C142: 0 | D142: 0 | E142: 0 | F142: 2028 | H142: 0.196078431 | I142: 50 | J142: =I142*C142 -> 0 | K142: =I142*D142 -> 0 | L142: =I142*E142 -> 0
H143: 0.1694915254 | I143: 365 | J143: =IF(C135=1,MIN(100, SUM(J138:J142)/$H144*100),0) -> 23.52941176 | K143: =IF(D135=1, MIN(100, SUM(K138:K142)/$H144*100),0) -> 23.52941176 | L143: =IF(E135=1, MIN(100, SUM(L138:L142)/$H144*100),0) -> 23.52941176 | M143: =J143*H143 -> 3.988035892 | N143: =K143*H143 -> 3.988035892 | O143: =L143*H143 -> 3.988035892
F144: A++ | H144: 255
F145: Total Equipment weight | H145: 590
B146: SECURITY FORCE - Training | M146: =MIN(100,SUM(M158,M167,M210)*C149)*C35 -> 0 | N146: =MIN(100,SUM(N158,N167,N210)*D149)*D35 -> 0 | O146: =MIN(100,SUM(O158,O167,O210)*E149)*E35 -> 0
B147: Does the security force receive training? | C147: One check | D147: One check | E147: One check | F147: 2035 | H147: 0.2307692308
B148: No | C148: 0 | D148: 0 | E148: 0 | F148: 2037
B149: Yes | C149: 1 | D149: 1 | E149: 1 | F149: 2036 | H149: 0.3333333333
B151: Training Programs: | C151: Multiples ok | D151: Multiples ok | E151: Multiples ok | F151: 2039
B152: Federal/State recognized certification | C152: 0 | D152: =C152 -> 0 | E152: 0 | F152: 2040 | H152: 0.2469135802 | I152: 100 | J152: =C152*$H152*100 -> 0 | K152: 0 | L152: 0
B153: Formal | C153: 1 | D153: 1 | E153: 1 | F153: 2041 | H153: 0.2098765432 | I153: 85 | J153: 20.98765432 | K153: 20.98765432 | L153: 20.98765432
B154: In House/Informal | C154: 1 | D154: 1 | E154: 1 | F154: 2042 | H154: 0.1481481481 | I154: 60 | J154: 14.81481481 | K154: 14.81481481 | L154: 14.81481481
B155: Video | C155: 1 | D155: 1 | E155: 1 | F155: 2043 | H155: 0.1481481481 | I155: 60 | J155: 14.81481481 | K155: 14.81481481 | L155: 14.81481481
B156: Web-based | C156: 1 | D156: 1 | E156: 1 | F156: 2044 | H156: 0.1481481481 | I156: 60 | J156: 14.81481481 | K156: 14.81481481 | L156: 14.81481481
B157: OJT (on-the-job training) | C157: 1 | D157: 1 | E157: 1 | F157: 2045 | H157: 0.0987654321 | I157: 40 | J157: 9.87654321 | K157: 9.87654321 | L157: 9.87654321
F158: 8934 | H158: 0.333 | J158: =IF(C149=1, SUM(J152:J157),0) -> 75.30864198 | K158: =IF(D149=1,SUM(K152:K157),0) -> 75.30864198 | L158: =IF(E149=1,SUM(L152:L157),0) -> 75.30864198 | M158: =J158*H158 -> 25.07777778 | N158: =K158*H158 -> 25.07777778 | O158: =L158*H158 -> 25.07777778
I159: 405
B160: Continuation/In service training for the security force: | C160: One check | D160: One check | E160: One check | F160: 2046
B161: Weekly | C161: 0 | D161: 0 | E161: 0 | F161: 2048 | H161: 1 | I161: 100 | J161: =I161*C161 -> 0 | K161: =I161*D161 -> 0 | L161: =I161*E161 -> 0
B162: Monthly | C162: 0 | D162: 0 | E162: 0 | F162: 2049 | H162: 0.9 | I162: 90 | J162: 0 | K162: 0 | L162: 0
B163: Quarterly | C163: 0 | D163: 0 | E163: 0 | F163: 2050 | H163: 0.8 | I163: 80 | J163: 0 | K163: 0 | L163: 0
B164: Semi-Annually | C164: 0 | D164: 0 | E164: 0 | F164: 2051 | H164: 0.7 | I164: 70 | J164: 0 | K164: 0 | L164: 0
B165: Annually | C165: 0 | D165: 0 | E165: 0 | F165: 2052 | H165: 0.6 | I165: 60 | J165: 0 | K165: 0 | L165: 0
B166: None | C166: 0 | D166: 0 | E166: 0 | F166: 2047 | I166: 0 | J166: 0 | K166: 0 | L166: 0
H167: 0.556 | J167: =IF(C149=1,SUM(J161:J166),0) -> 0 | K167: =IF(D149=1,SUM(K161:K166),0) -> 0 | L167: =IF(E149=1,SUM(L161:L166),0) -> 0 | M167: =J167*H167 -> 0 | N167: =K167*H167 -> 0 | O167: =L167*H167 -> 0
B168: Security force receives training in the following topics: | F168: 2053
B169: Emergency Response | C169: Multiples ok | D169: Multiples ok | E169: Multiples ok | F169: 5141
B170: Bomb Threat | C170: 1 | D170: =C170 -> 1 | E170: 1 | F170: 2071 | H170: 0.2142857143 | I170: 90 | J170: =C170*$H170*100 -> 21.42857143 | K170: =D170*$H170*100 -> 21.42857143 | L170: 21.42857143
B171: Break-in | C171: 1 | D171: 1 | E171: 1 | F171: 2072 | H171: 0.119047619 | I171: 50 | J171: 11.9047619 | K171: 11.9047619 | L171: 11.9047619
B172: Hostage/Barricade | C172: 0 | D172: 0 | E172: 0 | F172: 2073 | H172: 0.07142857143 | I172: 30 | J172: 0 | K172: 0 | L172: 0
B173: Fire | C173: 1 | D173: 1 | E173: 1 | F173: 2075 | H173: 0.1428571429 | I173: 60 | J173: 14.28571429 | K173: 14.28571429 | L173: 14.28571429
B174: Chemical HAZMAT release | C174: 0 | D174: 0 | E174: 0 | F174: 2077 | H174: 0.1666666667 | I174: 70 | J174: 0 | K174: 0 | L174: 0
B175: Natural Disaster | C175: 0 | D175: 0 | E175: 0 | F175: 2078 | H175: 0.04761904762 | I175: 20 | J175: 0 | K175: 0 | L175: 0
B176: CPR/First aid | C176: 1 | D176: 1 | E176: 1 | F176: 2079 | H176: 0.04761904762 | I176: 20 | J176: 4.761904762 | K176: 4.761904762 | L176: 4.761904762
B177: Active shooter | C177: 0 | D177: 0 | E177: 0 | F177: 2080 | H177: 0.1904761905 | I177: 80 | J177: 0 | K177: 0 | L177: 0
B178: All of the above | C178: 0 | D178: 0 | E178: 0 | F178: 5143 | H178: 1 | I178: 100 | J178: 0 | K178: 0 | L178: 0
H179: 0.3 | J179: =MIN(100,SUM(J170:J178)) -> 52.38095238 | K179: =MIN(100,SUM(K170:K178)) -> 52.38095238 | L179: =MIN(100,SUM(L170:L178)) -> 52.38095238 | M179: =H179*J179 -> 15.71428571 | N179: =H179*K179 -> 15.71428571 | O179: =H179*L179 -> 15.71428571
B181: Weapons and Self-Defense | C181: Multiples ok | D181: Multiples ok | E181: Multiples ok | F181: 5149
B182: Weapons | C182: 1 | D182: =C182 -> 1 | E182: 1 | F182: 2055 | H182: 0.3913043478 | I182: 90 | J182: =C182*$H182*100 -> 39.13043478 | K182: 39.13043478 | L182: 39.13043478
B183: Less Than Lethal Response | C183: 0 | D183: 0 | E183: 0 | F183: 2056 | H183: 0.3043478261 | I183: 70 | J183: 0 | K183: 0 | L183: 0
B184: Force Continuum | C184: 1 | D184: 1 | E184: 1 | F184: 2069 | H184: 0.08695652174 | I184: 20 | J184: 8.695652174 | K184: 8.695652174 | L184: 8.695652174
B185: Self Defense | C185: 1 | D185: 1 | E185: 1 | F185: 2057 | H185: 0.1739130435 | I185: 40 | J185: 17.39130435 | K185: 17.39130435 | L185: 17.39130435
B186: Use of restraints | C186: 0 | D186: 0 | E186: 0 | F186: 2058 | H186: 0.04347826087 | I186: 10 | J186: 0 | K186: 0 | L186: 0
B187: All of the above | C187: 0 | D187: 0 | E187: 0 | F187: 5113 | H187: 1 | I187: 100 | J187: 0 | K187: 0 | L187: 0
H188: 0.4 | J188: =MIN(100,SUM(J182:J187)) -> 65.2173913 | K188: =MIN(100,SUM(K182:K187)) -> 65.2173913 | L188: =MIN(100,SUM(L182:L187)) -> 65.2173913 | M188: =H188*J188 -> 26.08695652 | N188: =H188*K188 -> 26.08695652 | O188: =H188*L188 -> 26.08695652
B190: Standard Operating Procedures | C190: Multiples ok | D190: Multiples ok | E190: Multiples ok | F190: 5150
B191: Facility-specific SOPS | C191: 1 | D191: =C191 -> 1 | E191: 1 | F191: 2054 | H191: 0.25 | I191: 90 | J191: =C191*I191 -> 90 | K191: =D191*I191 -> 90 | L191: =E191*I191 -> 90
B192: Communications | C192: 1 | D192: 1 | E192: 1 | F192: 2060 | H192: 0.25 | I192: 90 | J192: 90 | K192: 90 | L192: 90
B193: ICS/NIMS | C193: 0 | D193: 0 | E193: 0 | F193: 2061 | H193: 0.1944444444 | I193: 70 | J193: 0 | K193: 0 | L193: 0
B194: Public Relations | C194: 0 | D194: 0 | E194: 0 | F194: 2066 | H194: 0.05555555556 | I194: 20 | J194: 0 | K194: 0 | L194: 0
B195: Legal Implications | C195: 1 | D195: 1 | E195: 1 | F195: 2067 | H195: 0.05555555556 | I195: 20 | J195: 20 | K195: 20 | L195: 20
B196: NTAS Increase | C196: 0 | D196: 0 | E196: 0 | F196: 2074 | H196: 0.25 | I196: 90 | J196: 0 | K196: 0 | L196: 0
B197: Threat Awareness | C197: 0 | D197: 0 | E197: 0 | F197: 2076 | H197: 0.25 | I197: 90 | J197: 0 | K197: 0 | L197: 0
B198: All of the above | C198: 0 | D198: 0 | E198: 0 | F198: 5159 | H198: 1 | I198: 360 | J198: 0 | K198: 0 | L198: 0
H199: 0.1 | I199: 360 | J199: =MIN(100, SUM(J191:J198)/I199*100) -> 55.55555556 | K199: =MIN(100, SUM(K191:K198)/I199*100) -> 55.55555556 | L199: =MIN(100, SUM(L191:L198)/I199*100) -> 55.55555556 | M199: =H199*J199 -> 5.555555556 | N199: =H199*K199 -> 5.555555556 | O199: =H199*L199 -> 5.555555556
B201: Screening and Access | C201: Multiples ok | D201: Multiples ok | E201: Multiples ok | F201: 4968
B202: Screening | C202: 1 | D202: =C202 -> 1 | E202: 1 | F202: 2059 | H202: 0.1891891892 | I202: 70 | J202: =C202*$H202*100 -> 18.91891892 | K202: 18.91891892 | L202: 18.91891892
B203: Search Procedures | C203: 1 | D203: 1 | E203: 1 | F203: 2070 | H203: 0.2432432432 | I203: 90 | J203: 24.32432432 | K203: 24.32432432 | L203: 24.32432432
B204: IDS | C204: 1 | D204: 1 | E204: 1 | F204: 2065 | H204: 0.1351351351 | I204: 50 | J204: 13.51351351 | K204: 13.51351351 | L204: 13.51351351
B205: IED recognition | C205: 1 | D205: 1 | E205: 1 | F205: 2081 | H205: 0.2432432432 | I205: 90 | J205: 24.32432432 | K205: 24.32432432 | L205: 24.32432432
B206: Surveillance Detection | C206: 0 | D206: 0 | E206: 0 | F206: 2082 | H206: 0.1891891892 | I206: 70 | J206: 0 | K206: 0 | L206: 0
B207: All of the above | C207: 0 | D207: 0 | E207: 0 | F207: 5270 | H207: 1 | I207: 100 | J207: 0 | K207: 0 | L207: 0
H208: 0.2 | J208: =MIN(100,SUM(J202:J207)) -> 81.08108108 | K208: =MIN(100,SUM(K202:K207)) -> 81.08108108 | L208: =MIN(100,SUM(L202:L207)) -> 81.08108108 | M208: =H208*J208 -> 16.21621622 | N208: =H208*K208 -> 16.21621622 | O208: =H208*L208 -> 16.21621622
M209: =SUM(M208,M199,M188,M179)*C149 -> 63.57301401 | N209: =SUM(N208,N199,N188,N179)*D149 -> 63.57301401 | O209: =SUM(O208,O199,O188,O179)*E149 -> 63.57301401
M210: =M209*20/180 -> 7.063668223 | N210: =N209*20/180 -> 7.063668223 | O210: =O209*20/180 -> 7.063668223
B211: SECURITY FORCE - Post Orders; Command and Control
B212: Do comprehensive post orders exist? | C212: One check | D212: One check | E212: One check | F212: 2085
B213: No | C213: 1 | D213: =C213 -> 1 | E213: =D213 -> 1 | F213: 2087 | I213: 0 | J213: =C213*I213 -> 0 | K213: =D213*I213 -> 0 | L213: =E213*I213 -> 0
B214: Yes | C214: 0 | D214: =C214 -> 0 | E214: =D214 -> 0 | F214: 2086 | H214: 0.09230769231 | I214: 100 | J214: =C214*I214 -> 0 | K214: =D214*I214 -> 0 | L214: =E214*I214 -> 0
J215: =SUM(J213:J214)*C35 -> 0 | K215: =SUM(K213:K214)*D35 -> 0 | L215: =SUM(L213:L214)*E35 -> 0
B216: Is there a dedicated command and control or operation center for the guard force? | C216: One check | D216: One check | E216: One check | F216: 2100
B217: No | C217: 0 | D217: 0 | E217: 0 | F217: 2102 | I217: 0 | J217: =C217*I217 -> 0 | K217: =D217*I217 -> 0 | L217: =E217*I217 -> 0
B218: Yes | C218: 0 | D218: 0 | E218: 0 | F218: 2101 | H218: 0.1153846154 | I218: 100 | J218: =C218*I218 -> 0 | K218: =D218*I218 -> 0 | L218: =E218*I218 -> 0
... 1493 more rows

Sheet SubstationInBldgAnswers_LS (hidden)
C1: Default Answers | D1: Facility Answers | E1: Scenario Answers | F1: Master Option ID | H1: Weight | M1: Default Score | N1: Facility Score | O1: Scenario Score
B2: Facility Name | D2: Substation in a Building - Less Significant | E2: Substation in a Building - Less Significant
B3: Overall PMI | M3: =ROUND(SUMPRODUCT(H4:H6,J4:J6),2) -> 26.08 | N3: =ROUND(SUMPRODUCT(H4:H6,K4:K6),2) -> 26.08 | O3: =ROUND(SUMPRODUCT(H4:H6,L4:L6),2) -> 26.08
B4: Security Force Profile | H4: 0.330855 | J4: =M7 -> 0 | K4: =N7 -> 0 | L4: =O7 -> 0
B5: Security Management | H5: 0.371747 | J5: =M13 -> 51.71 | K5: =N13 -> 51.71 | L5: =O13 -> 51.71
B6: Physical Security | H6: 0.297398 | J6: =M21 -> 23.06 | K6: =N21 -> 23.06 | L6: =O21 -> 23.06
B7: Security Force Profile | M7: =ROUND(SUMPRODUCT(H8:H12,J8:J12),2) -> 0 | N7: =ROUND(SUMPRODUCT(H8:H12,K8:K12),2) -> 0 | O7: =ROUND(SUMPRODUCT(H8:H12,L8:L12),2) -> 0
B8: Training | H8: 0.2307692308 | J8: =M146 -> 0 | K8: =N146 -> 0 | L8: =O146 -> 0
B9: Post Guidelines | H9: 0.09230769231 | J9: =J215 -> 0 | K9: =K215 -> 0 | L9: =L215 -> 0
B10: Command and Control | H10: 0.1153846154 | J10: =J219 -> 0 | K10: =K219 -> 0 | L10: =L219 -> 0
B11: Staffing | H11: 0.4 | J11: =M31 -> 0 | K11: =N31 -> 0 | L11: =O31 -> 0
B12: Equipment | H12: 0.1615384615 | J12: =M101 -> 0 | K12: =N101 -> 0 | L12: =O101 -> 0
B13: Security Management | M13: =ROUND(SUMPRODUCT(H14:H20,J14:J20),2) -> 51.71 | N13: =ROUND(SUMPRODUCT(H14:H20,K14:K20),2) -> 51.71 | O13: =ROUND(SUMPRODUCT(H14:H20,L14:L20),2) -> 51.71
B14: Security Manager | H14: 0.1666666667 | J14: =M220 -> 100 | K14: =N220 -> 100 | L14: =O220 -> 100
B15: Security Plan | H15: 0.1666666667 | J15: =M229 -> 0 | K15: =N229 -> 0 | L15: =O229 -> 0
B16: Security Communication | H16: 0.125 | J16: =M338 -> 45.9 | K16: =N338 -> 45.9 | L16: =O338 -> 45.9
B17: Suspicious Package Procedures | H17: 0.125 | J17: =J358 -> 0 | K17: =K358 -> 0 | L17: =L358 -> 0
B18: Security Working Groups | H18: 0.1 | J18: =J365 -> 100 | K18: =K365 -> 100 | L18: =L365 -> 100
B19: Sensitive Information | H19: 0.15 | J19: =M371 -> 59.94897971 | K19: =N371 -> 59.94897971 | L19: =O371 -> 59.94897971
B20: Background Checks | H20: 0.1666666667 | J20: =M405 -> 61.9047619 | K20: =N405 -> 61.9047619 | L20: =O405 -> 61.9047619
B21: Physical Security | M21: =ROUND(SUMPRODUCT(H22:H30,J22:J30),2) -> 23.06 | N21: =ROUND(SUMPRODUCT(H22:H30,K22:K30),2) -> 23.06 | O21: =ROUND(SUMPRODUCT(H22:H30,L22:L30),2) -> 23.06
B22: Fences | H22: 0.11634757 | J22: =M454 -> 37.5 | K22: =N454 -> 37.5 | L22: =O454 -> 37.5
B23: Building Envelope | H23: 0.1001472754 | J23: =M673 -> 32.75261324 | K23: =N673 -> 32.75261324 | L23: =O673 -> 32.75261324
B24: CCTV | H24: 0.0824742268 | J24: =M789 -> 0 | K24: =N789 -> 0 | L24: =O789 -> 0
B25: Gates | H25: 0.1340206186 | J25: =M522 -> 0 | K25: =N522 -> 0 | L25: =O522 -> 0
B26: IDS | H26: 0.1001472754 | J26: =M901 -> 21.80000828 | K26: =N901 -> 21.80000828 | L26: =O901 -> 21.80000828
B27: Parking | H27: 0.08217967599 | J27: =M1043 -> 14.85714286 | K27: =N1043 -> 14.85714286 | L27: =O1043 -> 14.85714286
B28: Barriers | H28: 0.1275405007 | J28: =M1222 -> 0 | K28: =N1222 -> 0 | L28: =O1222 -> 0
B29: Illumination | H29: 0.1098674521 | J29: =M1257 -> 50.29761905 | K29: =N1257 -> 50.29761905 | L29: =O1257 -> 50.29761905
B30: Entry Control | H30: 0.147275405 | J30: =M1386 -> 44.03361345 | K30: =N1386 -> 44.03361345 | L30: =O1386 -> 44.03361345
B31: SECURITY FORCE - Staffing | M31: =MIN(100,IF(C34=1,0,SUM(M51,M55,M59,M77,M97))) -> 0 | N31: =MIN(100,IF(D34=1,0,SUM(N51,N55,N59,N77,N97))) -> 0 | O31: =MIN(100,IF(E34=1,0,SUM(O51,O55,O59,O77,O97))) -> 0
B32: Staffing
B33: Does the facility have a security force? | C33: One check | D33: One check | E33: One check | J33: Default | K33: Facility | L33: Scenario
B34: No | C34: 0 | D34: 0 | E34: 0 | F34: 32 | J34: =$H34*C34 -> 0 | K34: 0 | L34: 0
B35: Yes | C35: 0 | D35: 0 | E35: 0 | F35: 31 | H35: 100 | I35: 0.4 | J35: 0 | K35: 0 | L35: 0
H36: 100 | J36: =SUM(J34:J35)*C35*$H36/$H51 -> 0 | K36: =SUM(K34:K35)*D35*$H36/$H51 -> 0 | L36: =SUM(L34:L35)*E35*$H36/$H51 -> 0
B37: Onsite security force | C37: 0 | D37: =C37 -> 0 | E37: =D37 -> 0 | F37: 4693 | H37: 100 | I37: 1 | J37: =$H37*C37 -> 0 | K37: 0 | L37: 0
B38: Off site security force only (no onsite force) | C38: 1 | D38: =C38 -> 1 | E38: =D38 -> 1 | F38: 4694 | H38: 25 | I38: 0.25 | J38: 25 | K38: 25 | L38: 25
H39: 75 | J39: =SUM(J37:J38)*C35*$H39/$H51 -> 0 | K39: =SUM(K37:K38)*D35*$H39/$H51 -> 0 | L39: =SUM(L37:L38)*E35*$H39/$H51 -> 0
B40: If yes to either onsite or off-site security force, does the security force have or utilize:
B42: Is there a Surge Capacity Plan? | C42: One check | D42: One check | E42: One check
B43: No | C43: 0 | D43: =C43 -> 0 | E43: =D43 -> 0 | F43: 8685
B44: Yes | C44: 1 | D44: =C44 -> 1 | E44: =D44 -> 1 | F44: 8686
B46: Surge Capacity Plan has the following Personnel: | C46: Multiples ok | D46: Multiples ok | E46: Multiples ok | F46: 4839
B47: Law Enforcement [MOA/Contract/Off-duty] | C47: 1 | D47: =C47 -> 1 | E47: 1 | F47: 8688 | H47: 100 | I47: 0.5 | J47: =C47*I47*100*C44 -> 50 | K47: =D47*I47*100*D44 -> 50 | L47: =E47*I47*100*E44 -> 50
B48: Contracted Security | C48: 0 | D48: 0 | E48: 0 | F48: 8689 | H48: 60 | I48: 0.3 | J48: =C48*I48*100*C44 -> 0 | K48: =D48*I48*100*D44 -> 0 | L48: =E48*I48*100*E44 -> 0
B49: Other organization/corporate | C49: 1 | D49: 1 | E49: 1 | F49: 8690 | H49: 40 | I49: 0.2 | J49: =C49*I49*100*C44 -> 20 | K49: =D49*I49*100*D44 -> 20 | L49: =E49*I49*100*E44 -> 20
H50: 25 | J50: =SUM(J47:J49)*C35*$H50/$H51 -> 0 | K50: =SUM(K47:K49)*D35*$H50/$H51 -> 0 | L50: =SUM(L47:L49)*E35*$H50/$H51 -> 0
H51: 200 | I51: 0.3448275862 | J51: =SUM(J50,J39,J36) -> 0 | K51: =SUM(K50,K39,K36) -> 0 | L51: =SUM(L50,L39,L36) -> 0 | M51: =I51*J51 -> 0 | N51: =I51*K51 -> 0 | O51: =I51*L51 -> 0
B53: Arrest Authority | C53: One check | D53: One check | E53: One check | F53: 8731
B54: No | C54: 1 | D54: =C54 -> 1 | E54: =D54 -> 1 | F54: 8732
B55: Yes | C55: 0 | D55: =C55 -> 0 | E55: =D55 -> 0 | F55: 8733 | H55: 100 | I55: 0.06896551724 | J55: =$H55*C55 -> 0 | K55: =$H55*D55 -> 0 | L55: =$H55*E55 -> 0 | M55: =I55*J55 -> 0 | N55: =I55*K55 -> 0 | O55: =I55*L55 -> 0
B57: Detain Authority | C57: One check | D57: One check | E57: One check | F57: 1946
B58: No | C58: 1 | D58: =C58 -> 1 | E58: =D58 -> 1 | F58: 1948
B59: Yes | C59: 0 | D59: =C59 -> 0 | E59: =D59 -> 0 | F59: 1947 | H59: 100 | I59: 0.03448275862 | J59: =$H59*C59 -> 0 | K59: =$H59*D59 -> 0 | L59: =$H59*E59 -> 0 | M59: =I59*J59 -> 0 | N59: =I59*K59 -> 0 | O59: =I59*L59 -> 0
B61: Static Posts: | F61: 4755
B62: Security staffing at different types of posts (select types of posts covered by security staff at the facility/SAA) | F62: 4756
B63: Static Posts Exist | C63: 0 | D63: =C63 -> 0 | E63: =D63 -> 0 | F63: 7635
B65: What percentage of Static posts are covered by security force personnel? | C65: One check | D65: One check | E65: One check | F65: 4758
B66: 1-25% | C66: 0 | D66: =C66 -> 0 | E66: 0 | F66: 4759 | H66: 5 | I66: 0.03333333333 | J66: =$H66*C66 -> 0 | K66: 0 | L66: 0
B67: 26-50% | C67: 0 | D67: 0 | E67: 0 | F67: 4760 | H67: 15 | I67: 0.1 | J67: 0 | K67: 0 | L67: 0
B68: 51-75% | C68: 0 | D68: 0 | E68: 0 | F68: 4761 | H68: 35 | I68: 0.2333333333 | J68: 0 | K68: 0 | L68: 0
B69: 76-99% | C69: 0 | D69: 0 | E69: 0 | F69: 4762 | H69: 43 | I69: 0.2866666667 | J69: 0 | K69: 0 | L69: 0
B70: 1 | C70: 0 | D70: 0 | E70: 0 | F70: 8125 | H70: 50 | I70: 0.3333333333 | J70: 0 | K70: 0 | L70: 0
B72: Check the least number of hours any static post is covered by a security personnel: | C72: One check | D72: One check | E72: One check | F72: 4763
B73: 8 hours or less | C73: 0 | D73: =C73 -> 0 | E73: 0 | F73: 4764 | H73: 10 | I73: 0.06666666667 | J73: =$H73*C73 -> 0 | K73: 0 | L73: 0
B74: 8-12 hours | C74: 0 | D74: 0 | E74: 0 | F74: 5296 | H74: 30 | I74: 0.2 | J74: 0 | K74: 0 | L74: 0
B75: 12-18 hours | C75: 0 | D75: 0 | E75: 0 | F75: 5297 | H75: 70 | I75: 0.4666666667 | J75: 0 | K75: 0 | L75: 0
B76: 18-24 hours | C76: 0 | D76: 0 | E76: 0 | F76: 5298 | H76: 100 | I76: 0.6666666667 | J76: 0 | K76: 0 | L76: 0
H77: 150 | I77: 0.3103448276 | J77: =SUM(J66:J76)/$H77*100*C35*C63 -> 0 | K77: =SUM(K66:K76)/$H77*100*D35*D63 -> 0 | L77: =SUM(L66:L76)/$H77*100*E35*E63 -> 0 | M77: =I77*J77 -> 0 | N77: =I77*K77 -> 0 | O77: =I77*L77 -> 0
B78: Roving Patrols:
B79: Roving patrols exist | C79: 1 | D79: 1 | E79: 1 | F79: 5299
B81: if Yes: | C81: One check | D81: One check | E81: One check
B82: Predetermined sequence | C82: 0 | D82: 0 | E82: 0 | F82: 4914 | I82: 0.7 | J82: =C82*I82 -> 0 | K82: =D82*I82 -> 0 | L82: =E82*I82 -> 0
B83: Random | C83: 0 | D83: 0 | E83: 0 | F83: 4915 | I83: 1 | J83: =C83*I83 -> 0 | K83: =D83*I83 -> 0 | L83: =E83*I83 -> 0
B85: What percentage of SAAs are covered by roving patrols? | C85: One check | D85: One check | E85: One check | F85: 5192
B86: 1-25% | C86: 0 | D86: 0 | E86: 0 | F86: 8126 | H86: 5 | I86: 0.05 | J86: =$H86*C86 -> 0 | K86: 0 | L86: 0
B87: 26-50% | C87: 0 | D87: 0 | E87: 0 | F87: 8127 | H87: 15 | I87: 0.15 | J87: 0 | K87: 0 | L87: 0
B88: 51-75% | C88: 0 | D88: 0 | E88: 0 | F88: 8128 | H88: 35 | I88: 0.35 | J88: 0 | K88: 0 | L88: 0
B89: 76-99% | C89: 0 | D89: 0 | E89: 0 | F89: 8129 | H89: 43 | I89: 0.43 | J89: 0 | K89: 0 | L89: 0
B90: 1 | C90: 0 | D90: 0 | E90: 0 | F90: 8130 | H90: 50 | I90: 0.5 | J90: 0 | K90: 0 | L90: 0
D91: =IF( SUM(D86:D90) >1,"ERROR","") ->  | E91: =IF( SUM(E86:E90) >1,"ERROR","") -> 
B92: Of those SAAs covered by roving patrols, provide the one with the least frequent patrol: | C92: One check | D92: One check | E92: One check | F92: 8131
B93: At least once every hour | C93: 0 | D93: =C93 -> 0 | E93: 0 | F93: 5193 | H93: 50 | I93: 0.5 | J93: =$H93*C93 -> 0 | K93: 0 | L93: 0
B94: Once every 1-8 hours | C94: 0 | D94: 0 | E94: 0 | F94: 5194 | H94: 37.5 | I94: 0.375 | J94: 0 | K94: 0 | L94: 0
B95: Once every 8-24 hours | C95: 0 | D95: 0 | E95: 0 | F95: 5195 | H95: 12.5 | I95: 0.125 | J95: 0 | K95: 0 | L95: 0
B96: Less frequently than every 24 hours | C96: 1 | D96: 1 | E96: 1 | F96: 5196 | H96: 5 | I96: 0.05 | J96: 5 | K96: 5 | L96: 5
D97: =IF( SUM(D93:D96) >1,"ERROR","") ->  | E97: =IF( SUM(E93:E96) >1,"ERROR","") ->  | I97: 0.2413793103 | J97: =SUM(J86:J96)*$H98*C35*C79 -> 0 | K97: =SUM(K86:K96)*I98*D35*D79 -> 0 | L97: =SUM(L86:L96)*I98*E35*E79 -> 0 | M97: =I97*J97 -> 0 | N97: =I97*K97 -> 0 | O97: =I97*L97 -> 0
H98: 1 | I98: 1
H99: 100 | I99: 0.2413793103 | J99: =SUM(J82:J96) -> 5 | K99: 5 | L99: 5 | M99: =I99*J99 -> 1.206896552 | N99: =I99*K99 -> 1.206896552 | O99: =I99*L99 -> 1.206896552
H100: 100 | I100: 0.2413793103 | J100: 5 | K100: 5 | L100: 5 | M100: =I100*J100 -> 1.206896552 | N100: =I100*K100 -> 1.206896552 | O100: =I100*L100 -> 1.206896552
B101: SECURITY FORCE - Equipment | M101: =MIN(100,SUM(M106,M110,M120,M123,M127,M131,M143))*C35 -> 0 | N101: =MIN(100,SUM(N106,N110,N120,N123,N127,N131,N143))*D35 -> 0 | O101: =MIN(100,SUM(O106,O110,O120,O123,O127,O131,O143))*E35 -> 0
B102: Specify the equipment available to the security force | F102: 1992 | H102: 0.1615384615
B103: Uniformed | C103: One check | D103: One check | E103: One check | F103: 1993
B104: No | C104: 1 | D104: =C104 -> 1 | E104: =D104 -> 1 | F104: 1995 | H104: 0.076271186 | I104: 50 | J104: =I104*C104 -> 50 | K104: =I104*D104 -> 50 | L104: =I104*E104 -> 50
B105: Yes | C105: 0 | D105: =C105 -> 0 | E105: =D105 -> 0 | F105: 1994 | H105: 0.1525423729 | I105: 100 | J105: =I105*C105 -> 0 | K105: =I105*D105 -> 0 | L105: =I105*E105 -> 0
H106: 0.1525423729 | J106: =SUM(J104:J105) -> 50 | K106: =SUM(K104:K105) -> 50 | L106: =SUM(L104:L105) -> 50 | M106: =J106*H106 -> 7.627118644 | N106: =K106*H106 -> 7.627118644 | O106: =L106*H106 -> 7.627118644
B107: Armed (i.e., gun) | C107: One check | D107: One check | E107: One check | F107: 1996
B108: No | C108: 0 | D108: =C108 -> 0 | E108: =D108 -> 0 | F108: 1998 | H108: 0.1207627119 | I108: 75 | J108: =I108*C108 -> 0 | K108: =I108*D108 -> 0 | L108: =I108*E108 -> 0
B109: Yes | C109: 1 | D109: =C109 -> 1 | E109: =D109 -> 1 | F109: 1997 | H109: 0.1610169492 | I109: 100 | J109: =I109*C109 -> 100 | K109: =I109*D109 -> 100 | L109: =I109*E109 -> 100
H110: 0.1610169492 | J110: =SUM(J108:J109) -> 100 | K110: =SUM(K108:K109) -> 100 | L110: =SUM(L108:L109) -> 100 | M110: =J110*H110 -> 16.10169492 | N110: =K110*H110 -> 16.10169492 | O110: =L110*H110 -> 16.10169492
B111: Less than Lethal Weapons | C111: One check | D111: One check | E111: One check | F111: 2003
B112: No | C112: 1 | D112: =C112 -> 1 | E112: =D112 -> 1 | F112: 2005
B113: Yes | C113: 0 | D113: =C113 -> 0 | E113: =D113 -> 0 | F113: 2004
B115: If yes:
B116: Taser | C116: 0 | D116: =C116 -> 0 | E116: 0 | F116: 2009 | H116: 1 | I116: 100 | J116: =I116*C116 -> 0 | K116: =I116*D116 -> 0 | L116: =I116*E116 -> 0
B117: Chemical Repellant | C117: 0 | D117: 0 | E117: 0 | F117: 2007 | H117: 0.8 | I117: 80 | J117: =I117*C117 -> 0 | K117: =I117*D117 -> 0 | L117: =I117*E117 -> 0
B118: Collapsible Baton/Baton | C118: 0 | D118: 0 | E118: 0 | F118: 2010 | H118: 0.7 | I118: 70 | J118: =I118*C118 -> 0 | K118: =I118*D118 -> 0 | L118: =I118*E118 -> 0
B119: Stun Gun | C119: 0 | D119: 0 | E119: 0 | F119: 2008 | H119: 0.65 | I119: 65 | J119: =I119*C119 -> 0 | K119: =I119*D119 -> 0 | L119: =I119*E119 -> 0
H120: 0.1525423729 | J120: =IF(C113=1, MIN(100,SUM(J116:J119)),0) -> 0 | K120: =IF(D113=1, MIN(100,SUM(K116:K119)),0) -> 0 | L120: =IF(E113=1, MIN(100,SUM(L116:L119)),0) -> 0 | M120: =J120*H120 -> 0 | N120: =K120*H120 -> 0 | O120: =L120*H120 -> 0
B121: Restraints | C121: One check | D121: One check | E121: One check | F121: 2012
B122: No | C122: 1 | D122: =C122 -> 1 | E122: =D122 -> 1 | F122: 2014 | I122: 0 | J122: =I122*C122 -> 0 | K122: =I122*D122 -> 0 | L122: =I122*E122 -> 0
B123: Yes | C123: 0 | D123: =C123 -> 0 | E123: =D123 -> 0 | F123: 2013 | H123: 0.1440677966 | I123: 100 | J123: =I123*C123 -> 0 | K123: =I123*D123 -> 0 | L123: =I123*E123 -> 0 | M123: =J123*H123 -> 0 | N123: =K123*H123 -> 0 | O123: =L123*H123 -> 0
B125: Body Armor | C125: One check | D125: One check | E125: One check | F125: 2015
B126: No | C126: 1 | D126: =C126 -> 1 | E126: =D126 -> 1 | F126: 2017 | I126: 0 | J126: =I126*C126 -> 0 | K126: =I126*D126 -> 0 | L126: =I126*E126 -> 0
B127: Yes | C127: 0 | D127: =C127 -> 0 | E127: =D127 -> 0 | F127: 2016 | H127: 0.1525423729 | I127: 100 | J127: =I127*C127 -> 0 | K127: =I127*D127 -> 0 | L127: =I127*E127 -> 0 | M127: =J127*H127 -> 0 | N127: =K127*H127 -> 0 | O127: =L127*H127 -> 0
B129: Canine Patrols | C129: One check | D129: One check | E129: One check | F129: 2018
B130: No | C130: 1 | D130: =C130 -> 1 | E130: =D130 -> 1 | F130: 2020 | I130: 0 | J130: =I130*C130 -> 0 | K130: =I130*D130 -> 0 | L130: =I130*E130 -> 0
B131: Yes | C131: 0 | D131: =C131 -> 0 | E131: =D131 -> 0 | F131: 2019 | H131: 0.06779661017 | I131: 100 | J131: =I131*C131 -> 0 | K131: =I131*D131 -> 0 | L131: =I131*E131 -> 0 | M131: =J131*H131 -> 0 | N131: =K131*H131 -> 0 | O131: =L131*H131 -> 0
B133: Communications | C133: One check | D133: One check | E133: One check | F133: 2021
B134: No | C134: 0 | D134: =C134 -> 0 | E134: =D134 -> 0 | F134: 2023
B135: Yes | C135: 1 | D135: =C135 -> 1 | E135: =D135 -> 1 | F135: 2022
B137: If yes:
B138: Radio | C138: 0 | D138: =C138 -> 0 | E138: 0 | F138: 2025 | H138: 0.392156863 | I138: 100 | J138: =I138*C138 -> 0 | K138: =I138*D138 -> 0 | L138: =I138*E138 -> 0
B139: Cell Phone with Walkie-Talkie Capability | C139: 0 | D139: 0 | E139: 0 | F139: 2027 | H139: 0.333333333 | I139: 85 | J139: =I139*C139 -> 0 | K139: =I139*D139 -> 0 | L139: =I139*E139 -> 0
B140: Duress Alarms / *Panic* Buttons: Portable | C140: 0 | D140: 0 | E140: 0 | F140: 2029 | H140: 0.274509804 | I140: 70 | J140: =I140*C140 -> 0 | K140: =I140*D140 -> 0 | L140: =I140*E140 -> 0
B141: Cell Phone | C141: 1 | D141: 1 | E141: 1 | F141: 2026 | H141: 0.235294118 | I141: 60 | J141: =I141*C141 -> 60 | K141: =I141*D141 -> 60 | L141: =I141*E141 -> 60
B142: Duress Alarms / *Panic* Buttons: Fixed | C142: 0 | D142: 0 | E142: 0 | F142: 2028 | H142: 0.196078431 | I142: 50 | J142: =I142*C142 -> 0 | K142: =I142*D142 -> 0 | L142: =I142*E142 -> 0
H143: 0.1694915254 | I143: 365 | J143: =IF(C135=1,MIN(100, SUM(J138:J142)/$H144*100),0) -> 23.52941176 | K143: =IF(D135=1, MIN(100, SUM(K138:K142)/$H144*100),0) -> 23.52941176 | L143: =IF(E135=1, MIN(100, SUM(L138:L142)/$H144*100),0) -> 23.52941176 | M143: =J143*H143 -> 3.988035892 | N143: =K143*H143 -> 3.988035892 | O143: =L143*H143 -> 3.988035892
F144: A++ | H144: 255
F145: Total Equipment weight | H145: 590
B146: SECURITY FORCE - Training | M146: =MIN(100,SUM(M158,M167,M210)*C149)*C35 -> 0 | N146: =MIN(100,SUM(N158,N167,N210)*D149)*D35 -> 0 | O146: =MIN(100,SUM(O158,O167,O210)*E149)*E35 -> 0
B147: Does the security force receive training? | C147: One check | D147: One check | E147: One check | F147: 2035 | H147: 0.2307692308
B148: No | C148: 0 | D148: 0 | E148: 0 | F148: 2037
B149: Yes | C149: 1 | D149: 1 | E149: 1 | F149: 2036 | H149: 0.3333333333
B151: Training Programs: | C151: Multiples ok | D151: Multiples ok | E151: Multiples ok | F151: 2039
B152: Federal/State recognized certification | C152: 0 | D152: =C152 -> 0 | E152: 0 | F152: 2040 | H152: 0.2469135802 | I152: 100 | J152: =C152*$H152*100 -> 0 | K152: 0 | L152: 0
B153: Formal | C153: 1 | D153: 1 | E153: 1 | F153: 2041 | H153: 0.2098765432 | I153: 85 | J153: 20.98765432 | K153: 20.98765432 | L153: 20.98765432
B154: In House/Informal | C154: 1 | D154: 1 | E154: 1 | F154: 2042 | H154: 0.1481481481 | I154: 60 | J154: 14.81481481 | K154: 14.81481481 | L154: 14.81481481
B155: Video | C155: 1 | D155: 1 | E155: 1 | F155: 2043 | H155: 0.1481481481 | I155: 60 | J155: 14.81481481 | K155: 14.81481481 | L155: 14.81481481
B156: Web-based | C156: 1 | D156: 1 | E156: 1 | F156: 2044 | H156: 0.1481481481 | I156: 60 | J156: 14.81481481 | K156: 14.81481481 | L156: 14.81481481
B157: OJT (on-the-job training) | C157: 1 | D157: 1 | E157: 1 | F157: 2045 | H157: 0.0987654321 | I157: 40 | J157: 9.87654321 | K157: 9.87654321 | L157: 9.87654321
F158: 8934 | H158: 0.333 | J158: =IF(C149=1, SUM(J152:J157),0) -> 75.30864198 | K158: =IF(D149=1,SUM(K152:K157),0) -> 75.30864198 | L158: =IF(E149=1,SUM(L152:L157),0) -> 75.30864198 | M158: =J158*H158 -> 25.07777778 | N158: =K158*H158 -> 25.07777778 | O158: =L158*H158 -> 25.07777778
I159: 405
B160: Continuation/In service training for the security force: | C160: One check | D160: One check | E160: One check | F160: 2046
B161: Weekly | C161: 0 | D161: 0 | E161: 0 | F161: 2048 | H161: 1 | I161: 100 | J161: =I161*C161 -> 0 | K161: =I161*D161 -> 0 | L161: =I161*E161 -> 0
B162: Monthly | C162: 0 | D162: 0 | E162: 0 | F162: 2049 | H162: 0.9 | I162: 90 | J162: 0 | K162: 0 | L162: 0
B163: Quarterly | C163: 0 | D163: 0 | E163: 0 | F163: 2050 | H163: 0.8 | I163: 80 | J163: 0 | K163: 0 | L163: 0
B164: Semi-Annually | C164: 0 | D164: 0 | E164: 0 | F164: 2051 | H164: 0.7 | I164: 70 | J164: 0 | K164: 0 | L164: 0
B165: Annually | C165: 0 | D165: 0 | E165: 0 | F165: 2052 | H165: 0.6 | I165: 60 | J165: 0 | K165: 0 | L165: 0
B166: None | C166: 0 | D166: 0 | E166: 0 | F166: 2047 | I166: 0 | J166: 0 | K166: 0 | L166: 0
H167: 0.556 | J167: =IF(C149=1,SUM(J161:J166),0) -> 0 | K167: =IF(D149=1,SUM(K161:K166),0) -> 0 | L167: =IF(E149=1,SUM(L161:L166),0) -> 0 | M167: =J167*H167 -> 0 | N167: =K167*H167 -> 0 | O167: =L167*H167 -> 0
B168: Security force receives training in the following topics: | F168: 2053
B169: Emergency Response | C169: Multiples ok | D169: Multiples ok | E169: Multiples ok | F169: 5141
B170: Bomb Threat | C170: 1 | D170: =C170 -> 1 | E170: 1 | F170: 2071 | H170: 0.2142857143 | I170: 90 | J170: =C170*$H170*100 -> 21.42857143 | K170: 21.42857143 | L170: 21.42857143
B171: Break-in | C171: 1 | D171: 1 | E171: 1 | F171: 2072 | H171: 0.119047619 | I171: 50 | J171: 11.9047619 | K171: 11.9047619 | L171: 11.9047619
B172: Hostage/Barricade | C172: 0 | D172: 0 | E172: 0 | F172: 2073 | H172: 0.07142857143 | I172: 30 | J172: 0 | K172: 0 | L172: 0
B173: Fire | C173: 1 | D173: 1 | E173: 1 | F173: 2075 | H173: 0.1428571429 | I173: 60 | J173: 14.28571429 | K173: 14.28571429 | L173: 14.28571429
B174: Chemical HAZMAT release | C174: 0 | D174: 0 | E174: 0 | F174: 2077 | H174: 0.1666666667 | I174: 70 | J174: 0 | K174: 0 | L174: 0
B175: Natural Disaster | C175: 0 | D175: 0 | E175: 0 | F175: 2078 | H175: 0.04761904762 | I175: 20 | J175: 0 | K175: 0 | L175: 0
B176: CPR/First aid | C176: 1 | D176: 1 | E176: 1 | F176: 2079 | H176: 0.04761904762 | I176: 20 | J176: 4.761904762 | K176: 4.761904762 | L176: 4.761904762
B177: Active shooter | C177: 0 | D177: 0 | E177: 0 | F177: 2080 | H177: 0.1904761905 | I177: 80 | J177: 0 | K177: 0 | L177: 0
B178: All of the above | C178: 0 | D178: 0 | E178: 0 | F178: 5143 | H178: 1 | I178: 100 | J178: 0 | K178: 0 | L178: 0
H179: 0.3 | J179: =MIN(100,SUM(J170:J178)) -> 52.38095238 | K179: =MIN(100,SUM(K170:K178)) -> 52.38095238 | L179: =MIN(100,SUM(L170:L178)) -> 52.38095238 | M179: =H179*J179 -> 15.71428571 | N179: =H179*K179 -> 15.71428571 | O179: =H179*L179 -> 15.71428571
B181: Weapons and Self-Defense | C181: Multiples ok | D181: Multiples ok | E181: Multiples ok | F181: 5149
B182: Weapons | C182: 1 | D182: =C182 -> 1 | E182: 1 | F182: 2055 | H182: 0.3913043478 | I182: 90 | J182: =C182*$H182*100 -> 39.13043478 | K182: 39.13043478 | L182: 39.13043478
B183: Less Than Lethal Response | C183: 0 | D183: 0 | E183: 0 | F183: 2056 | H183: 0.3043478261 | I183: 70 | J183: 0 | K183: 0 | L183: 0
B184: Force Continuum | C184: 1 | D184: 1 | E184: 1 | F184: 2069 | H184: 0.08695652174 | I184: 20 | J184: 8.695652174 | K184: 8.695652174 | L184: 8.695652174
B185: Self Defense | C185: 1 | D185: 1 | E185: 1 | F185: 2057 | H185: 0.1739130435 | I185: 40 | J185: 17.39130435 | K185: 17.39130435 | L185: 17.39130435
B186: Use of restraints | C186: 0 | D186: 0 | E186: 0 | F186: 2058 | H186: 0.04347826087 | I186: 10 | J186: 0 | K186: 0 | L186: 0
B187: All of the above | C187: 0 | D187: 0 | E187: 0 | F187: 5113 | H187: 1 | I187: 100 | J187: 0 | K187: 0 | L187: 0
H188: 0.4 | J188: =MIN(100,SUM(J182:J187)) -> 65.2173913 | K188: =MIN(100,SUM(K182:K187)) -> 65.2173913 | L188: =MIN(100,SUM(L182:L187)) -> 65.2173913 | M188: =H188*J188 -> 26.08695652 | N188: =H188*K188 -> 26.08695652 | O188: =H188*L188 -> 26.08695652
B190: Standard Operating Procedures | C190: Multiples ok | D190: Multiples ok | E190: Multiples ok | F190: 5150
B191: Facility-specific SOPS | C191: 1 | D191: =C191 -> 1 | E191: 1 | F191: 2054 | H191: 0.25 | I191: 90 | J191: =C191*I191 -> 90 | K191: =D191*I191 -> 90 | L191: =E191*I191 -> 90
B192: Communications | C192: 1 | D192: 1 | E192: 1 | F192: 2060 | H192: 0.25 | I192: 90 | J192: 90 | K192: 90 | L192: 90
B193: ICS/NIMS | C193: 0 | D193: 0 | E193: 0 | F193: 2061 | H193: 0.1944444444 | I193: 70 | J193: 0 | K193: 0 | L193: 0
B194: Public Relations | C194: 0 | D194: 0 | E194: 0 | F194: 2066 | H194: 0.05555555556 | I194: 20 | J194: 0 | K194: 0 | L194: 0
B195: Legal Implications | C195: 1 | D195: 1 | E195: 1 | F195: 2067 | H195: 0.05555555556 | I195: 20 | J195: 20 | K195: 20 | L195: 20
B196: NTAS Increase | C196: 0 | D196: 0 | E196: 0 | F196: 2074 | H196: 0.25 | I196: 90 | J196: 0 | K196: 0 | L196: 0
B197: Threat Awareness | C197: 0 | D197: 0 | E197: 0 | F197: 2076 | H197: 0.25 | I197: 90 | J197: 0 | K197: 0 | L197: 0
B198: All of the above | C198: 0 | D198: 0 | E198: 0 | F198: 5159 | H198: 1 | I198: 360 | J198: 0 | K198: 0 | L198: 0
H199: 0.1 | I199: 360 | J199: =MIN(100, SUM(J191:J198)/I199*100) -> 55.55555556 | K199: =MIN(100, SUM(K191:K198)/I199*100) -> 55.55555556 | L199: =MIN(100, SUM(L191:L198)/I199*100) -> 55.55555556 | M199: =H199*J199 -> 5.555555556 | N199: =H199*K199 -> 5.555555556 | O199: =H199*L199 -> 5.555555556
B201: Screening and Access | C201: Multiples ok | D201: Multiples ok | E201: Multiples ok | F201: 4968
B202: Screening | C202: 1 | D202: =C202 -> 1 | E202: 1 | F202: 2059 | H202: 0.1891891892 | I202: 70 | J202: =C202*$H202*100 -> 18.91891892 | K202: 18.91891892 | L202: 18.91891892
B203: Search Procedures | C203: 1 | D203: 1 | E203: 1 | F203: 2070 | H203: 0.2432432432 | I203: 90 | J203: 24.32432432 | K203: 24.32432432 | L203: 24.32432432
B204: IDS | C204: 1 | D204: 1 | E204: 1 | F204: 2065 | H204: 0.1351351351 | I204: 50 | J204: 13.51351351 | K204: 13.51351351 | L204: 13.51351351
B205: IED recognition | C205: 1 | D205: 1 | E205: 1 | F205: 2081 | H205: 0.2432432432 | I205: 90 | J205: 24.32432432 | K205: 24.32432432 | L205: 24.32432432
B206: Surveillance Detection | C206: 0 | D206: 0 | E206: 0 | F206: 2082 | H206: 0.1891891892 | I206: 70 | J206: 0 | K206: 0 | L206: 0
B207: All of the above | C207: 0 | D207: 0 | E207: 0 | F207: 5270 | H207: 1 | I207: 100 | J207: 0 | K207: 0 | L207: 0
H208: 0.2 | J208: =MIN(100,SUM(J202:J207)) -> 81.08108108 | K208: =MIN(100,SUM(K202:K207)) -> 81.08108108 | L208: =MIN(100,SUM(L202:L207)) -> 81.08108108 | M208: =H208*J208 -> 16.21621622 | N208: =H208*K208 -> 16.21621622 | O208: =H208*L208 -> 16.21621622
M209: =SUM(M208,M199,M188,M179)*C149 -> 63.57301401 | N209: =SUM(N208,N199,N188,N179)*D149 -> 63.57301401 | O209: =SUM(O208,O199,O188,O179)*E149 -> 63.57301401
M210: =M209*20/180 -> 7.063668223 | N210: =N209*20/180 -> 7.063668223 | O210: =O209*20/180 -> 7.063668223
B211: SECURITY FORCE - Post Orders; Command and Control
B212: Do comprehensive post orders exist? | C212: One check | D212: One check | E212: One check | F212: 2085
B213: No | C213: 1 | D213: =C213 -> 1 | E213: =D213 -> 1 | F213: 2087 | I213: 0 | J213: =C213*I213 -> 0 | K213: =D213*I213 -> 0 | L213: =E213*I213 -> 0
B214: Yes | C214: 0 | D214: =C214 -> 0 | E214: =D214 -> 0 | F214: 2086 | H214: 0.09230769231 | I214: 100 | J214: =C214*I214 -> 0 | K214: =D214*I214 -> 0 | L214: =E214*I214 -> 0
J215: =SUM(J213:J214)*C35 -> 0 | K215: =SUM(K213:K214)*D35 -> 0 | L215: =SUM(L213:L214)*E35 -> 0
B216: Is there a dedicated command and control or operation center for the guard force? | C216: One check | D216: One check | E216: One check | F216: 2100
B217: No | C217: 0 | D217: 0 | E217: 0 | F217: 2102 | I217: 0 | J217: =C217*I217 -> 0 | K217: =D217*I217 -> 0 | L217: =E217*I217 -> 0
B218: Yes | C218: 0 | D218: 0 | E218: 0 | F218: 2101 | H218: 0.1153846154 | I218: 100 | J218: =C218*I218 -> 0 | K218: =D218*I218 -> 0 | L218: =E218*I218 -> 0
... 1493 more rows

Sheet LU_WEIGHTS (hidden)
A1: MASTEROPTIONID | B1: WEIGHT_VAL | C1: LU_WEIGHT_ID | D1: WEIGHT_ID | E1: PARENT_ID | F1: DETAIL_LEVEL | G1: DISPLAY_PATH | H1: DISPLAY_DESC | I1: FORMULA_TYPE | J1: FORMULA | K1: HAS_CHILD | L1: SCORING_TYPE | M1: CHART_PARENT_ID | N1: CHART_WEIGHT_ID | O1: DISPLAY_ORDER
A2: 31 | B2: 0.4 | C2: 550 | D2: 1001 | E2: 1000 | F2: 2 | G2: Protective Measures Index - Security Force Profile - Staffing | H2: Staffing | I2: FIELD_SUM | J2: If answered, Sum of all components | L2: PMI | M2: 1000 | N2: 1001 | O2: 550
A3: 31 | B3: 0.5 | C3: 560 | D3: 1003 | E3: 1002 | F3: 4 | G3: Protective Measures Index - Security Force Profile - Staffing - Characterize - Exists | H3: Exists | I3: FIELD | J3: Default Weight * IST Value | L3: PMI | M3: 1002 | N3: 1003 | O3: 560
A4: 324 | B4: 0.6 | C4: 956 | D4: 5421 | E4: 5406 | F4: 7 | G4: Protective Measures Index - Physical Security - Building Envelope - In a building - Windows - Yes - Characterization - Blast/safety film | H4: Blast/safety film | I4: FIELD | J4: Default Weight * IST Value | L4: PMI | M4: 5406 | N4: 5421 | O4: 956
A5: 339 | B5: 0.4285714286 | C5: 829 | D5: 4121 | E5: 4001 | F5: 3 | G5: Protective Measures Index - Security Activity Background - Prior/New - Prior Vulnerability Assessments | H5: Prior Vulnerability Assessments | I5: HIGHEST | J5: Highest of All Components | L5: PMI | M5: 4001 | N5: 4121 | O5: 829
A6: 343 | B6: 0.25 | C6: 850 | D6: 4201 | E6: 4121 | F6: 4 | G6: Protective Measures Index - Security Activity Background - Prior/New - Prior Vulnerability Assessments - Internal | H6: Internal | I6: FIELD | J6: Default Weight * IST Value | L6: PMI | M6: 4121 | N6: 4201 | O6: 850
A7: 346 | B7: 0.05 | C7: 830 | D7: 4101 | E7: 4100 | F7: 4 | G7: Protective Measures Index - Security Activity Background - Prior/New - New Protective Measures - Access Control | H7: Access Control | I7: FIELD | J7: Default Weight * IST Value | L7: PMI | M7: 4100 | N7: 4101 | O7: 830
A8: 380 | B8: 0.4594594595 | C8: 736 | D8: 2201 | E8: 2105 | F8: 3 | G8: Protective Measures Index - Security Management - Security Communication - Communicates information to personnel | H8: Communicates information to personnel | I8: FIELD_SUM | J8: If answered, Sum of all components | L8: PMI | M8: 2105 | N8: 2201 | O8: 736
A9: 385 | B9: 0.1 | C9: 675 | D9: 2116 | E9: 2000 | F9: 2 | G9: Protective Measures Index - Security Management - Security Working Groups | H9: Security Working Groups | I9: FIELD_SUM | J9: If answered, Sum of all components | L9: PMI | M9: 2000 | N9: 2116 | O9: 675
A10: 385 | B10: 0.2117647059 | C10: 824 | D10: 3210 | E10: 3219 | F10: 4 | G10: Protective Measures Index - Information Sharing - Mechanisms - Information Sharing Mechanisms - Security working groups | H10: Security working groups | I10: FIELD | J10: Default Weight * IST Value | L10: PMI | M10: 3219 | N10: 3210 | O10: 824
A11: 854 | B11: 0.75 | C11: 1227 | D11: 6310 | E11: 6304 | F11: 6 | G11: Protective Measures Index - Physical Security - Barriers - High-speed avenues of Approach - Yes - Type - Earthen berm | H11: Earthen berm | I11: FIELD | J11: Default Weight * IST Value | L11: PMI | M11: 6304 | N11: 6310 | O11: 1227
A12: 900 | B12: 0.6428571429 | C12: 939 | D12: 5205 | E12: 5200 | F12: 5 | G12: Protective Measures Index - Physical Security - Fences - Characteristics - Enhancements - Electric Fence | H12: Electric Fence | I12: FIELD | J12: Default Weight * IST Value | L12: PMI | M12: 5200 | N12: 5205 | O12: 939
A13: 1020 | B13: 0.1666666667 | C13: 672 | D13: 2062 | E13: 2000 | F13: 2 | G13: Protective Measures Index - Security Management - Security Plan | H13: Security Plan | I13: FIELD_SUM | J13: If answered, Sum of all components | L13: PMI | M13: 2000 | N13: 2062 | O13: 672
A14: 1034 | B14: 0.1875 | C14: 784 | D14: 2205 | E14: 2204 | F14: 4 | G14: Protective Measures Index - Security Management - Security Communication - Employee Reporting Procedures - Call-in number | H14: Call-in number | I14: FIELD | J14: Default Weight * IST Value | L14: PMI | M14: 2204 | N14: 2205 | O14: 784
A15: 1038 | B15: 0.05 | C15: 831 | D15: 4102 | E15: 4100 | F15: 4 | G15: Protective Measures Index - Security Activity Background - Prior/New - New Protective Measures - Communications and notifications | H15: Communications and notifications | I15: FIELD | J15: Default Weight * IST Value | L15: PMI | M15: 4100 | N15: 4102 | O15: 831
A16: 1039 | B16: 0.05 | C16: 832 | D16: 4103 | E16: 4100 | F16: 4 | G16: Protective Measures Index - Security Activity Background - Prior/New - New Protective Measures - Infrastucture upgrades | H16: Infrastucture upgrades | I16: FIELD | J16: Default Weight * IST Value | L16: PMI | M16: 4100 | N16: 4103 | O16: 832
A17: 1040 | B17: 0.05 | C17: 833 | D17: 4104 | E17: 4100 | F17: 4 | G17: Protective Measures Index - Security Activity Background - Prior/New - New Protective Measures - Monitoring/survelliance detection | H17: Monitoring/survelliance detection | I17: FIELD | J17: Default Weight * IST Value | L17: PMI | M17: 4100 | N17: 4104 | O17: 833
A18: 1041 | B18: 0.05 | C18: 834 | D18: 4105 | E18: 4100 | F18: 4 | G18: Protective Measures Index - Security Activity Background - Prior/New - New Protective Measures - Planning and preparedness | H18: Planning and preparedness | I18: FIELD | J18: Default Weight * IST Value | L18: PMI | M18: 4100 | N18: 4105 | O18: 834
A19: 1042 | B19: 0.05 | C19: 835 | D19: 4106 | E19: 4100 | F19: 4 | G19: Protective Measures Index - Security Activity Background - Prior/New - New Protective Measures - Barriers | H19: Barriers | I19: FIELD | J19: Default Weight * IST Value | L19: PMI | M19: 4100 | N19: 4106 | O19: 835
A20: 1043 | B20: 0.05 | C20: 836 | D20: 4107 | E20: 4100 | F20: 4 | G20: Protective Measures Index - Security Activity Background - Prior/New - New Protective Measures - Cyber security | H20: Cyber security | I20: FIELD | J20: Default Weight * IST Value | L20: PMI | M20: 4100 | N20: 4107 | O20: 836
A21: 1044 | B21: 0.05 | C21: 837 | D21: 4108 | E21: 4100 | F21: 4 | G21: Protective Measures Index - Security Activity Background - Prior/New - New Protective Measures - Incident response | H21: Incident response | I21: FIELD | J21: Default Weight * IST Value | L21: PMI | M21: 4100 | N21: 4108 | O21: 837
A22: 1045 | B22: 0.05 | C22: 838 | D22: 4109 | E22: 4100 | F22: 4 | G22: Protective Measures Index - Security Activity Background - Prior/New - New Protective Measures - Personnel | H22: Personnel | I22: FIELD | J22: Default Weight * IST Value | L22: PMI | M22: 4100 | N22: 4109 | O22: 838
A23: 1046 | B23: 0.05 | C23: 839 | D23: 4110 | E23: 4100 | F23: 4 | G23: Protective Measures Index - Security Activity Background - Prior/New - New Protective Measures - Security force | H23: Security force | I23: FIELD | J23: Default Weight * IST Value | L23: PMI | M23: 4100 | N23: 4110 | O23: 839
A24: 1078 | B24: 0.5 | C24: 851 | D24: 4202 | E24: 4121 | F24: 4 | G24: Protective Measures Index - Security Activity Background - Prior/New - Prior Vulnerability Assessments - Contract | H24: Contract | I24: FIELD | J24: Default Weight * IST Value | L24: PMI | M24: 4121 | N24: 4202 | O24: 851
A25: 1079 | B25: 0.8 | C25: 852 | D25: 4203 | E25: 4121 | F25: 4 | G25: Protective Measures Index - Security Activity Background - Prior/New - Prior Vulnerability Assessments - Government Agency/Regulatory | H25: Government Agency/Regulatory | I25: FIELD | J25: Default Weight * IST Value | L25: PMI | M25: 4121 | N25: 4203 | O25: 852
A26: 1703 | B26: 0.4 | C26: 854 | D26: 4205 | E26: 4121 | F26: 4 | G26: Protective Measures Index - Security Activity Background - Prior/New - Prior Vulnerability Assessments - LLEA | H26: LLEA | I26: FIELD | J26: Default Weight * IST Value | L26: PMI | M26: 4121 | N26: 4205 | O26: 854
A27: 1711 | B27: 0.1764705882 | C27: 821 | D27: 3202 | E27: 3219 | F27: 4 | G27: Protective Measures Index - Information Sharing - Mechanisms - Information Sharing Mechanisms - Share VA with DHS | H27: Share VA with DHS | I27: ANY_FIELD | J27: Default Weight * IST Value | L27: PMI | M27: 3219 | N27: 3202 | O27: 821
A28: 1753 | B28: 0.1666666667 | C28: 671 | D28: 2001 | E28: 2000 | F28: 2 | G28: Protective Measures Index - Security Management - Security Manager | H28: Security Manager | I28: FIELD_SUM | J28: If answered, Sum of all components | L28: PMI | M28: 2000 | N28: 2001 | O28: 671
A29: 1753 | B29: 0.5 | C29: 678 | D29: 2002 | E29: 2001 | F29: 3 | G29: Protective Measures Index - Security Management - Security Manager - Security management manger/department exists | H29: Security management manger/department exists | I29: FIELD | J29: Default Weight * IST Value | L29: PMI | M29: 2001 | N29: 2002 | O29: 678
A30: 1812 | B30: 0.5714285714 | C30: 827 | D30: 4122 | E30: 4000 | F30: 2 | G30: Protective Measures Index - Security Activity Background - Additional Protective Measures | H30: Additional Protective Measures | I30: FIELD_SUM | J30: If answered, Sum of all components | L30: PMI | M30: 4000 | N30: 4122 | O30: 827
A31: 1827 | B31: 0.03482587065 | C31: 707 | D31: 2090 | E31: 2083 | F31: 4 | G31: Protective Measures Index - Security Management - Security Plan - Procedures - Internal disturbances (e.g., workplace violence) | H31: Internal disturbances (e.g., workplace violence) | I31: FIELD | J31: Default Weight * IST Value | L31: PMI | M31: 2083 | N31: 2090 | O31: 707
A32: 1831 | B32: 0.541 | C32: 782 | D32: 2202 | E32: 2201 | F32: 4 | G32: Protective Measures Index - Security Management - Security Communication - Communicates information to personnel - Specific security incident information | H32: Specific security incident information | I32: FIELD | J32: Default Weight * IST Value | L32: PMI | M32: 2201 | N32: 2202 | O32: 782
A33: 1832 | B33: 0.459 | C33: 783 | D33: 2203 | E33: 2201 | F33: 4 | G33: Protective Measures Index - Security Management - Security Communication - Communicates information to personnel - Recurring security awareness meetings | H33: Recurring security awareness meetings | I33: FIELD | J33: Default Weight * IST Value | L33: PMI | M33: 2201 | N33: 2203 | O33: 783
A34: 1872 | B34: 0.1411764706 | C34: 825 | D34: 3211 | E34: 3219 | F34: 4 | G34: Protective Measures Index - Information Sharing - Mechanisms - Information Sharing Mechanisms - National Security Clearance | H34: National Security Clearance | I34: FIELD | J34: Default Weight * IST Value | L34: PMI | M34: 3219 | N34: 3211 | O34: 825
A35: 1881 | B35: 0.1666666667 | C35: 677 | D35: 2180 | E35: 2000 | F35: 2 | G35: Protective Measures Index - Security Management - Background Checks | H35: Background Checks | I35: FIELD_SUM | J35: If answered, Sum of all components | L35: PMI | M35: 2000 | N35: 2180 | O35: 677
A36: 1889 | B36: 0.5 | C36: 766 | D36: 2187 | E36: 2180 | F36: 3 | G36: Protective Measures Index - Security Management - Background Checks - Contract Security | H36: Contract Security | I36: BKG_ROLL | J36: Background Checks Adj Weights | L36: PMI | M36: 2180 | N36: 2187 | O36: 766
A37: 1891 | B37: 0.3 | C37: 768 | D37: 2189 | E37: 2180 | F37: 3 | G37: Protective Measures Index - Security Management - Background Checks - Contract Security - Recurring | H37: Contract Security - Recurring | I37: BKG_ROLL | J37: Background Checks Adj Weights | L37: PMI | M37: 2180 | N37: 2189 | O37: 768
A38: 1893 | B38: 1 | C38: 760 | D38: 2181 | E38: 2180 | F38: 3 | G38: Protective Measures Index - Security Management - Background Checks - All employees | H38: All employees | I38: BKG_ROLL | J38: Background Checks Adj Weights | L38: PMI | M38: 2180 | N38: 2181 | O38: 760
A39: 1895 | B39: 0.8 | C39: 761 | D39: 2182 | E39: 2180 | F39: 3 | G39: Protective Measures Index - Security Management - Background Checks - All employees - Recurring | H39: Employees - Recurring | I39: BKG_ROLL | J39: Background Checks Adj Weights | L39: PMI | M39: 2180 | N39: 2182 | O39: 761
A40: 1895 | B40: 1 | C40: 781 | D40: 22314 | E40: 2184 | F40: 4 | G40: Protective Measures Index - Security Management - Background Checks - Critical employees - Recurring - Critical employees - Recurring | H40: Critical employees - Recurring | I40: FIELD | J40: Default Weight * IST Value | L40: PMI | M40: 2184 | N40: 22314 | O40: 781
A41: 1895 | B41: 1 | C41: 780 | D41: 22315 | E41: 2182 | F41: 4 | G41: Protective Measures Index - Security Management - Background Checks - All employees - Recurring - All employees - Recurring | H41: All employees - Recurring | I41: FIELD | J41: Default Weight * IST Value | L41: PMI | M41: 2182 | N41: 22315 | O41: 780
A42: 1897 | B42: 0.3 | C42: 770 | D42: 2191 | E42: 2180 | F42: 3 | G42: Protective Measures Index - Security Management - Background Checks - Contractors | H42: Contractors | I42: BKG_ROLL | J42: Background Checks Adj Weights | L42: PMI | M42: 2180 | N42: 2191 | O42: 770
A43: 1899 | B43: 0.2 | C43: 771 | D43: 2192 | E43: 2180 | F43: 3 | G43: Protective Measures Index - Security Management - Background Checks - Contractors - Recurring | H43: Contractors - Recurring | I43: BKG_ROLL | J43: Background Checks Adj Weights | L43: PMI | M43: 2180 | N43: 2192 | O43: 771
A44: 1901 | B44: 0.2 | C44: 772 | D44: 2193 | E44: 2180 | F44: 3 | G44: Protective Measures Index - Security Management - Background Checks - Vendors | H44: Vendors | I44: BKG_ROLL | J44: Background Checks Adj Weights | L44: PMI | M44: 2180 | N44: 2193 | O44: 772
A45: 1903 | B45: 0.1 | C45: 773 | D45: 2194 | E45: 2180 | F45: 3 | G45: Protective Measures Index - Security Management - Background Checks - Vendors - Recurring | H45: Vendors - Recurring | I45: BKG_ROLL | J45: Background Checks Adj Weights | L45: PMI | M45: 2180 | N45: 2194 | O45: 773
A46: 1947 | B46: 0.03448275862 | C46: 557 | D46: 1012 | E46: 1001 | F46: 3 | G46: Protective Measures Index - Security Force Profile - Staffing - Detain Authority | H46: Detain Authority | I46: FIELD | J46: Default Weight * IST Value | L46: PMI | M46: 1001 | N46: 1012 | O46: 557
A47: 1994 | B47: 0.1525423729 | C47: 606 | D47: 1052 | E47: 1051 | F47: 3 | G47: Protective Measures Index - Security Force Profile - Equipment - Uniformed | H47: Uniformed | I47: FIELD | J47: Default Weight * IST Value | L47: PMI | M47: 1051 | N47: 1052 | O47: 606
A48: 1995 | B48: 0.076271186 | C48: 614 | D48: 1119 | E48: 1051 | F48: 3 | G48: Protective Measures Index - Security Force Profile - Equipment - Not Uniformed | H48: Not Uniformed | I48: FIELD | J48: Default Weight * IST Value | L48: PMI | M48: 1051 | N48: 1119 | O48: 614
A49: 1997 | B49: 0.1610169492 | C49: 607 | D49: 1053 | E49: 1051 | F49: 3 | G49: Protective Measures Index - Security Force Profile - Equipment - Armed | H49: Armed | I49: FIELD | J49: Default Weight * IST Value | L49: PMI | M49: 1051 | N49: 1053 | O49: 607
A50: 1998 | B50: 0.1207627119 | C50: 613 | D50: 1118 | E50: 1051 | F50: 3 | G50: Protective Measures Index - Security Force Profile - Equipment - Unarmed | H50: Unarmed | I50: FIELD | J50: Default Weight * IST Value | L50: PMI | M50: 1051 | N50: 1118 | O50: 613
A51: 2007 | B51: 0.8 | C51: 615 | D51: 1055 | E51: 1054 | F51: 4 | G51: Protective Measures Index - Security Force Profile - Equipment - Less than Lethal - Chemical Repellant | H51: Chemical Repellant | I51: FIELD | J51: Default Weight * IST Value | L51: PMI | M51: 1054 | N51: 1055 | O51: 615
A52: 2008 | B52: 0.65 | C52: 616 | D52: 1056 | E52: 1054 | F52: 4 | G52: Protective Measures Index - Security Force Profile - Equipment - Less than Lethal - Stun Gun | H52: Stun Gun | I52: FIELD | J52: Default Weight * IST Value | L52: PMI | M52: 1054 | N52: 1056 | O52: 616
A53: 2009 | B53: 1 | C53: 617 | D53: 1057 | E53: 1054 | F53: 4 | G53: Protective Measures Index - Security Force Profile - Equipment - Less than Lethal - Taser | H53: Taser | I53: FIELD | J53: Default Weight * IST Value | L53: PMI | M53: 1054 | N53: 1057 | O53: 617
A54: 2010 | B54: 0.7 | C54: 618 | D54: 1058 | E54: 1054 | F54: 4 | G54: Protective Measures Index - Security Force Profile - Equipment - Less than Lethal - Collapsible Baton/Baton | H54: Collapsible Baton/Baton | I54: FIELD | J54: Default Weight * IST Value | L54: PMI | M54: 1054 | N54: 1058 | O54: 618
A55: 2013 | B55: 0.1440677966 | C55: 609 | D55: 1059 | E55: 1051 | F55: 3 | G55: Protective Measures Index - Security Force Profile - Equipment - Restraints | H55: Restraints | I55: FIELD | J55: Default Weight * IST Value | L55: PMI | M55: 1051 | N55: 1059 | O55: 609
A56: 2016 | B56: 0.1525423729 | C56: 610 | D56: 1060 | E56: 1051 | F56: 3 | G56: Protective Measures Index - Security Force Profile - Equipment - Body Armor | H56: Body Armor | I56: FIELD | J56: Default Weight * IST Value | L56: PMI | M56: 1051 | N56: 1060 | O56: 610
A57: 2019 | B57: 0.06779661017 | C57: 611 | D57: 1061 | E57: 1051 | F57: 3 | G57: Protective Measures Index - Security Force Profile - Equipment - Canine Patrols | H57: Canine Patrols | I57: FIELD | J57: Default Weight * IST Value | L57: PMI | M57: 1051 | N57: 1061 | O57: 611
A58: 2025 | B58: 0.392156863 | C58: 619 | D58: 1063 | E58: 1062 | F58: 4 | G58: Protective Measures Index - Security Force Profile - Equipment - Communications - Radio | H58: Radio | I58: FIELD | J58: Default Weight * IST Value | L58: PMI | M58: 1062 | N58: 1063 | O58: 619
A59: 2026 | B59: 0.235294118 | C59: 620 | D59: 1064 | E59: 1062 | F59: 4 | G59: Protective Measures Index - Security Force Profile - Equipment - Communications - Cell Phone | H59: Cell Phone | I59: FIELD | J59: Default Weight * IST Value | L59: PMI | M59: 1062 | N59: 1064 | O59: 620
A60: 2027 | B60: 0.333333333 | C60: 621 | D60: 1065 | E60: 1062 | F60: 4 | G60: Protective Measures Index - Security Force Profile - Equipment - Communications - Cell Phone: Walkie-Talkie Capability | H60: Cell Phone: Walkie-Talkie Capability | I60: FIELD | J60: Default Weight * IST Value | L60: PMI | M60: 1062 | N60: 1065 | O60: 621
A61: 2028 | B61: 0.196078431 | C61: 622 | D61: 1066 | E61: 1062 | F61: 4 | G61: Protective Measures Index - Security Force Profile - Equipment - Communications - Duress Alarms: Fixed | H61: Duress Alarms: Fixed | I61: FIELD | J61: Default Weight * IST Value | L61: PMI | M61: 1062 | N61: 1066 | O61: 622
A62: 2029 | B62: 0.274509804 | C62: 623 | D62: 1067 | E62: 1062 | F62: 4 | G62: Protective Measures Index - Security Force Profile - Equipment - Communications - Duress Alarms: Portable | H62: Duress Alarms: Portable | I62: FIELD | J62: Default Weight * IST Value | L62: PMI | M62: 1062 | N62: 1067 | O62: 623
A63: 2036 | B63: 0.3333333333 | C63: 624 | D63: 1069 | E63: 1068 | F63: 3 | G63: Protective Measures Index - Security Force Profile - Training - Training Programs (type) | H63: Training Programs (type) | I63: FIELD_SUM | J63: If answered, Sum of all components | L63: PMI | M63: 1068 | N63: 1069 | O63: 624
A64: 2040 | B64: 0.2469135802 | C64: 627 | D64: 1070 | E64: 1069 | F64: 4 | G64: Protective Measures Index - Security Force Profile - Training - Training Programs (type) - Federal/State recognized certification | H64: Federal/State recognized certification | I64: FIELD | J64: Default Weight * IST Value | L64: PMI | M64: 1069 | N64: 1070 | O64: 627
A65: 2041 | B65: 0.2098765432 | C65: 628 | D65: 1071 | E65: 1069 | F65: 4 | G65: Protective Measures Index - Security Force Profile - Training - Training Programs (type) - Formal | H65: Formal | I65: FIELD | J65: Default Weight * IST Value | L65: PMI | M65: 1069 | N65: 1071 | O65: 628
A66: 2042 | B66: 0.1481481481 | C66: 629 | D66: 1072 | E66: 1069 | F66: 4 | G66: Protective Measures Index - Security Force Profile - Training - Training Programs (type) - In House/In-Formal | H66: In House/In-Formal | I66: FIELD | J66: Default Weight * IST Value | L66: PMI | M66: 1069 | N66: 1072 | O66: 629
A67: 2043 | B67: 0.1481481481 | C67: 630 | D67: 1073 | E67: 1069 | F67: 4 | G67: Protective Measures Index - Security Force Profile - Training - Training Programs (type) - Video | H67: Video | I67: FIELD | J67: Default Weight * IST Value | L67: PMI | M67: 1069 | N67: 1073 | O67: 630
A68: 2044 | B68: 0.1481481481 | C68: 631 | D68: 1074 | E68: 1069 | F68: 4 | G68: Protective Measures Index - Security Force Profile - Training - Training Programs (type) - Web-based | H68: Web-based | I68: FIELD | J68: Default Weight * IST Value | L68: PMI | M68: 1069 | N68: 1074 | O68: 631
A69: 2045 | B69: 0.0987654321 | C69: 632 | D69: 1075 | E69: 1069 | F69: 4 | G69: Protective Measures Index - Security Force Profile - Training - Training Programs (type) - OJT (on-the-job training) | H69: OJT (on-the-job training) | I69: FIELD | J69: Default Weight * IST Value | L69: PMI | M69: 1069 | N69: 1075 | O69: 632
A70: 2048 | B70: 1 | C70: 633 | D70: 1077 | E70: 1076 | F70: 4 | G70: Protective Measures Index - Security Force Profile - Training - In-service Training - Weekly | H70: Weekly | I70: FIELD | J70: Default Weight * IST Value | L70: PMI | M70: 1076 | N70: 1077 | O70: 633
A71: 2049 | B71: 0.9 | C71: 634 | D71: 1078 | E71: 1076 | F71: 4 | G71: Protective Measures Index - Security Force Profile - Training - In-service Training - Monthly | H71: Monthly | I71: FIELD | J71: Default Weight * IST Value | L71: PMI | M71: 1076 | N71: 1078 | O71: 634
A72: 2050 | B72: 0.8 | C72: 635 | D72: 1079 | E72: 1076 | F72: 4 | G72: Protective Measures Index - Security Force Profile - Training - In-service Training - Quarterly | H72: Quarterly | I72: FIELD | J72: Default Weight * IST Value | L72: PMI | M72: 1076 | N72: 1079 | O72: 635
A73: 2051 | B73: 0.7 | C73: 636 | D73: 1080 | E73: 1076 | F73: 4 | G73: Protective Measures Index - Security Force Profile - Training - In-service Training - Semi-Annually | H73: Semi-Annually | I73: FIELD | J73: Default Weight * IST Value | L73: PMI | M73: 1076 | N73: 1080 | O73: 636
A74: 2052 | B74: 0.6 | C74: 637 | D74: 1081 | E74: 1076 | F74: 4 | G74: Protective Measures Index - Security Force Profile - Training - In-service Training - Annually | H74: Annually | I74: FIELD | J74: Default Weight * IST Value | L74: PMI | M74: 1076 | N74: 1081 | O74: 637
A75: 2054 | B75: 0.25 | C75: 651 | D75: 1096 | E75: 1084 | F75: 5 | G75: Protective Measures Index - Security Force Profile - Training - Training Topics - Facility Specific Standard Operating Procedures - Facility-specific SOPS | H75: Facility-specific SOPS | I75: FIELD | J75: Default Weight * IST Value | L75: PMI | M75: 1084 | N75: 1096 | O75: 651
A76: 2055 | B76: 0.3913043478 | C76: 659 | D76: 1104 | E76: 1085 | F76: 5 | G76: Protective Measures Index - Security Force Profile - Training - Training Topics - Weapons and Self Defense - Weapons | H76: Weapons | I76: FIELD | J76: Default Weight * IST Value | L76: PMI | M76: 1085 | N76: 1104 | O76: 659
A77: 2056 | B77: 0.3043478261 | C77: 660 | D77: 1105 | E77: 1085 | F77: 5 | G77: Protective Measures Index - Security Force Profile - Training - Training Topics - Weapons and Self Defense - Less Than Lethal Response | H77: Less Than Lethal Response | I77: FIELD | J77: Default Weight * IST Value | L77: PMI | M77: 1085 | N77: 1105 | O77: 660
A78: 2057 | B78: 0.1739130435 | C78: 662 | D78: 1107 | E78: 1085 | F78: 5 | G78: Protective Measures Index - Security Force Profile - Training - Training Topics - Weapons and Self Defense - Self Defense | H78: Self Defense | I78: FIELD | J78: Default Weight * IST Value | L78: PMI | M78: 1085 | N78: 1107 | O78: 662
A79: 2058 | B79: 0.04347826087 | C79: 663 | D79: 1108 | E79: 1085 | F79: 5 | G79: Protective Measures Index - Security Force Profile - Training - Training Topics - Weapons and Self Defense - Use of restraints | H79: Use of restraints | I79: FIELD | J79: Default Weight * IST Value | L79: PMI | M79: 1085 | N79: 1108 | O79: 663
A80: 2059 | B80: 0.1891891892 | C80: 665 | D80: 1110 | E80: 1086 | F80: 5 | G80: Protective Measures Index - Security Force Profile - Training - Training Topics - Screening and Access - Screening | H80: Screening | I80: FIELD | J80: Default Weight * IST Value | L80: PMI | M80: 1086 | N80: 1110 | O80: 665
A81: 2060 | B81: 0.25 | C81: 652 | D81: 1097 | E81: 1084 | F81: 5 | G81: Protective Measures Index - Security Force Profile - Training - Training Topics - Facility Specific Standard Operating Procedures - Communications | H81: Communications | I81: FIELD | J81: Default Weight * IST Value | L81: PMI | M81: 1084 | N81: 1097 | O81: 652
A82: 2061 | B82: 0.1944444444 | C82: 653 | D82: 1098 | E82: 1084 | F82: 5 | G82: Protective Measures Index - Security Force Profile - Training - Training Topics - Facility Specific Standard Operating Procedures - ICS/NIMS | H82: ICS/NIMS | I82: FIELD | J82: Default Weight * IST Value | L82: PMI | M82: 1084 | N82: 1098 | O82: 653
A83: 2065 | B83: 0.1351351351 | C83: 667 | D83: 1112 | E83: 1086 | F83: 5 | G83: Protective Measures Index - Security Force Profile - Training - Training Topics - Screening and Access - IDS | H83: IDS | I83: FIELD | J83: Default Weight * IST Value | L83: PMI | M83: 1086 | N83: 1112 | O83: 667
A84: 2066 | B84: 0.05555555556 | C84: 654 | D84: 1099 | E84: 1084 | F84: 5 | G84: Protective Measures Index - Security Force Profile - Training - Training Topics - Facility Specific Standard Operating Procedures - Public Relations | H84: Public Relations | I84: FIELD | J84: Default Weight * IST Value | L84: PMI | M84: 1084 | N84: 1099 | O84: 654
A85: 2067 | B85: 0.05555555556 | C85: 655 | D85: 1100 | E85: 1084 | F85: 5 | G85: Protective Measures Index - Security Force Profile - Training - Training Topics - Facility Specific Standard Operating Procedures - Legal Implications | H85: Legal Implications | I85: FIELD | J85: Default Weight * IST Value | L85: PMI | M85: 1084 | N85: 1100 | O85: 655
A86: 2069 | B86: 0.08695652174 | C86: 661 | D86: 1106 | E86: 1085 | F86: 5 | G86: Protective Measures Index - Security Force Profile - Training - Training Topics - Weapons and Self Defense - Force Continuum | H86: Force Continuum | I86: FIELD | J86: Default Weight * IST Value | L86: PMI | M86: 1085 | N86: 1106 | O86: 661
A87: 2070 | B87: 0.2432432432 | C87: 666 | D87: 1111 | E87: 1086 | F87: 5 | G87: Protective Measures Index - Security Force Profile - Training - Training Topics - Screening and Access - Search Procedures | H87: Search Procedures | I87: FIELD | J87: Default Weight * IST Value | L87: PMI | M87: 1086 | N87: 1111 | O87: 666
A88: 2071 | B88: 0.2142857143 | C88: 642 | D88: 1087 | E88: 1083 | F88: 5 | G88: Protective Measures Index - Security Force Profile - Training - Training Topics - Emergency Response - Bomb Threat | H88: Bomb Threat | I88: FIELD | J88: Default Weight * IST Value | L88: PMI | M88: 1083 | N88: 1087 | O88: 642
A89: 2072 | B89: 0.119047619 | C89: 643 | D89: 1088 | E89: 1083 | F89: 5 | G89: Protective Measures Index - Security Force Profile - Training - Training Topics - Emergency Response - Break-in | H89: Break-in | I89: FIELD | J89: Default Weight * IST Value | L89: PMI | M89: 1083 | N89: 1088 | O89: 643
A90: 2073 | B90: 0.07142857143 | C90: 644 | D90: 1089 | E90: 1083 | F90: 5 | G90: Protective Measures Index - Security Force Profile - Training - Training Topics - Emergency Response - Hostage/Barricade | H90: Hostage/Barricade | I90: FIELD | J90: Default Weight * IST Value | L90: PMI | M90: 1083 | N90: 1089 | O90: 644
A91: 2074 | B91: 0.25 | C91: 656 | D91: 1101 | E91: 1084 | F91: 5 | G91: Protective Measures Index - Security Force Profile - Training - Training Topics - Facility Specific Standard Operating Procedures - HSAS Increase | H91: HSAS Increase | I91: FIELD | J91: Default Weight * IST Value | L91: PMI | M91: 1084 | N91: 1101 | O91: 656
A92: 2075 | B92: 0.1428571429 | C92: 645 | D92: 1090 | E92: 1083 | F92: 5 | G92: Protective Measures Index - Security Force Profile - Training - Training Topics - Emergency Response - Fire | H92: Fire | I92: FIELD | J92: Default Weight * IST Value | L92: PMI | M92: 1083 | N92: 1090 | O92: 645
A93: 2076 | B93: 0.25 | C93: 657 | D93: 1102 | E93: 1084 | F93: 5 | G93: Protective Measures Index - Security Force Profile - Training - Training Topics - Facility Specific Standard Operating Procedures - Threat Awareness | H93: Threat Awareness | I93: FIELD | J93: Default Weight * IST Value | L93: PMI | M93: 1084 | N93: 1102 | O93: 657
A94: 2077 | B94: 0.1666666667 | C94: 646 | D94: 1091 | E94: 1083 | F94: 5 | G94: Protective Measures Index - Security Force Profile - Training - Training Topics - Emergency Response - Chemical HAZMAT release | H94: Chemical HAZMAT release | I94: FIELD | J94: Default Weight * IST Value | L94: PMI | M94: 1083 | N94: 1091 | O94: 646
A95: 2078 | B95: 0.04761904762 | C95: 647 | D95: 1092 | E95: 1083 | F95: 5 | G95: Protective Measures Index - Security Force Profile - Training - Training Topics - Emergency Response - Natural Disaster | H95: Natural Disaster | I95: FIELD | J95: Default Weight * IST Value | L95: PMI | M95: 1083 | N95: 1092 | O95: 647
A96: 2079 | B96: 0.04761904762 | C96: 648 | D96: 1093 | E96: 1083 | F96: 5 | G96: Protective Measures Index - Security Force Profile - Training - Training Topics - Emergency Response - CPR/First aid | H96: CPR/First aid | I96: FIELD | J96: Default Weight * IST Value | L96: PMI | M96: 1083 | N96: 1093 | O96: 648
A97: 2080 | B97: 0.1904761905 | C97: 649 | D97: 1094 | E97: 1083 | F97: 5 | G97: Protective Measures Index - Security Force Profile - Training - Training Topics - Emergency Response - Active shooter | H97: Active shooter | I97: FIELD | J97: Default Weight * IST Value | L97: PMI | M97: 1083 | N97: 1094 | O97: 649
A98: 2081 | B98: 0.2432432432 | C98: 668 | D98: 1113 | E98: 1086 | F98: 5 | G98: Protective Measures Index - Security Force Profile - Training - Training Topics - Screening and Access - IED recognition | H98: IED recognition | I98: FIELD | J98: Default Weight * IST Value | L98: PMI | M98: 1086 | N98: 1113 | O98: 668
A99: 2082 | B99: 0.1891891892 | C99: 669 | D99: 1114 | E99: 1086 | F99: 5 | G99: Protective Measures Index - Security Force Profile - Training - Training Topics - Screening and Access - Surveillance Detection | H99: Surveillance Detection | I99: FIELD | J99: Default Weight * IST Value | L99: PMI | M99: 1086 | N99: 1114 | O99: 669
A100: 2086 | B100: 0.09230769231 | C100: 553 | D100: 1116 | E100: 1000 | F100: 2 | G100: Protective Measures Index - Security Force Profile - Post guidelines | H100: Post guidelines | I100: FIELD | J100: Default Weight * IST Value | L100: PMI | M100: 1000 | N100: 1116 | O100: 553
A101: 2101 | B101: 0.1153846154 | C101: 554 | D101: 1117 | E101: 1000 | F101: 2 | G101: Protective Measures Index - Security Force Profile - Command and control | H101: Command and control | I101: FIELD | J101: Default Weight * IST Value | L101: PMI | M101: 1000 | N101: 1117 | O101: 554
A102: 2120 | B102: 1 | C102: 908 | D102: 5111 | E102: 5110 | F102: 4 | G102: Protective Measures Index - Physical Security - Fences - Fraction Enclosed - 100% of the facility enclosed, 100% critical assets are enclosed | H102: 100% of the facility enclosed, 100% critical assets are enclosed | I102: FIELD | J102: Default Weight * IST Value | L102: PMI | M102: 5110 | N102: 5111 | O102: 908
A103: 2121 | B103: 0.9 | C103: 909 | D103: 5112 | E103: 5110 | F103: 4 | G103: Protective Measures Index - Physical Security - Fences - Fraction Enclosed - Less than 100% of the facility enclosed, 100% critical assets are enclosed | H103: Less than 100% of the facility enclosed, 100% critical assets are enclosed | I103: FIELD | J103: Default Weight * IST Value | L103: PMI | M103: 5110 | N103: 5112 | O103: 909
A104: 2122 | B104: 0.6 | C104: 910 | D104: 5113 | E104: 5110 | F104: 4 | G104: Protective Measures Index - Physical Security - Fences - Fraction Enclosed - 100% of the facility enclosed, less than 100% critical assets are enclosed | H104: 100% of the facility enclosed, less than 100% critical assets are enclosed | I104: FIELD | J104: Default Weight * IST Value | L104: PMI | M104: 5110 | N104: 5113 | O104: 910
A105: 2123 | B105: 0 | C105: 911 | D105: 5114 | E105: 5110 | F105: 4 | G105: Protective Measures Index - Physical Security - Fences - Fraction Enclosed - Less than 100% of the facility enclosed, less than 100% critical assets are enclosed | H105: Less than 100% of the facility enclosed, less than 100% critical assets are enclosed | I105: FIELD | J105: Default Weight * IST Value | L105: PMI | M105: 5110 | N105: 5114 | O105: 911
A106: 2131 | B106: 0.75 | C106: 915 | D106: 5126 | E106: 5120 | F106: 4 | G106: Protective Measures Index - Physical Security - Fences - Type - Steel | H106: Steel | I106: FIELD | J106: Default Weight * IST Value | L106: PMI | M106: 5120 | N106: 5126 | O106: 915
A107: 2133 | B107: 0.25 | C107: 918 | D107: 5130 | E107: 5120 | F107: 4 | G107: Protective Measures Index - Physical Security - Fences - Type - Wood | H107: Wood | I107: FIELD | J107: Default Weight * IST Value | L107: PMI | M107: 5120 | N107: 5130 | O107: 918
A108: 2134 | B108: 1 | C108: 917 | D108: 5128 | E108: 5120 | F108: 4 | G108: Protective Measures Index - Physical Security - Fences - Type - Concrete | H108: Concrete | I108: FIELD | J108: Default Weight * IST Value | L108: PMI | M108: 5120 | N108: 5128 | O108: 917
A109: 2135 | B109: 0.4 | C109: 919 | D109: 5131 | E109: 5120 | F109: 4 | G109: Protective Measures Index - Physical Security - Fences - Type - Wrought Iron | H109: Wrought Iron | I109: FIELD | J109: Default Weight * IST Value | L109: PMI | M109: 5120 | N109: 5131 | O109: 919
A110: 2136 | B110: 1 | C110: 914 | D110: 5125 | E110: 5120 | F110: 4 | G110: Protective Measures Index - Physical Security - Fences - Type - Brick and Mortar | H110: Brick and Mortar | I110: FIELD | J110: Default Weight * IST Value | L110: PMI | M110: 5120 | N110: 5125 | O110: 914
A111: 2137 | B111: 0.1 | C111: 916 | D111: 5127 | E111: 5120 | F111: 4 | G111: Protective Measures Index - Physical Security - Fences - Type - Plastic | H111: Plastic | I111: FIELD | J111: Default Weight * IST Value | L111: PMI | M111: 5120 | N111: 5127 | O111: 916
A112: 2141 | B112: 0 | C112: 923 | D112: 5144 | E112: 5140 | F112: 4 | G112: Protective Measures Index - Physical Security - Fences - Height - d 5 ft. | H112: d 5 ft. | I112: FIELD | J112: Default Weight * IST Value | L112: PMI | M112: 5140 | N112: 5144 | O112: 923
A113: 2142 | B113: 0.1 | C113: 920 | D113: 5141 | E113: 5140 | F113: 4 | G113: Protective Measures Index - Physical Security - Fences - Height - >5 ft., d 6 ft. | H113: >5 ft., d 6 ft. | I113: FIELD | J113: Default Weight * IST Value | L113: PMI | M113: 5140 | N113: 5141 | O113: 920
A114: 2143 | B114: 0.5 | C114: 921 | D114: 5142 | E114: 5140 | F114: 4 | G114: Protective Measures Index - Physical Security - Fences - Height - >6 ft, d 7 ft. | H114: >6 ft, d 7 ft. | I114: FIELD | J114: Default Weight * IST Value | L114: PMI | M114: 5140 | N114: 5142 | O114: 921
A115: 2144 | B115: 0.8 | C115: 922 | D115: 5143 | E115: 5140 | F115: 4 | G115: Protective Measures Index - Physical Security - Fences - Height - >7 ft, d15 ft | H115: >7 ft, d15 ft | I115: FIELD | J115: Default Weight * IST Value | L115: PMI | M115: 5140 | N115: 5143 | O115: 922
A116: 2145 | B116: 1 | C116: 924 | D116: 5145 | E116: 5140 | F116: 4 | G116: Protective Measures Index - Physical Security - Fences - Height - >15ft. | H116: >15ft. | I116: FIELD | J116: Default Weight * IST Value | L116: PMI | M116: 5140 | N116: 5145 | O116: 924
A117: 2147 | B117: 1 | C117: 925 | D117: 5151 | E117: 5150 | F117: 4 | G117: Protective Measures Index - Physical Security - Fences - Base of Fence - Anchored | H117: Anchored | I117: FIELD | J117: Default Weight * IST Value | L117: PMI | M117: 5150 | N117: 5151 | O117: 925
A118: 2148 | B118: 0 | C118: 926 | D118: 5152 | E118: 5150 | F118: 4 | G118: Protective Measures Index - Physical Security - Fences - Base of Fence - Non anchored | H118: Non anchored | I118: FIELD | J118: Default Weight * IST Value | L118: PMI | M118: 5150 | N118: 5152 | O118: 926
A119: 2149 | B119: 1 | C119: 933 | D119: 5191 | E119: 5190 | F119: 5 | G119: Protective Measures Index - Physical Security - Fences - Characteristics - Outriggers - 45 degree | H119: 45 degree | I119: FIELD | J119: Default Weight * IST Value | L119: PMI | M119: 5190 | N119: 5191 | O119: 933
A120: 2150 | B120: 0.9 | C120: 934 | D120: 5192 | E120: 5190 | F120: 5 | G120: Protective Measures Index - Physical Security - Fences - Characteristics - Outriggers - Y style | H120: Y style | I120: FIELD | J120: Default Weight * IST Value | L120: PMI | M120: 5190 | N120: 5192 | O120: 934
A121: 2151 | B121: 0.8 | C121: 935 | D121: 5193 | E121: 5190 | F121: 5 | G121: Protective Measures Index - Physical Security - Fences - Characteristics - Outriggers - Straight up | H121: Straight up | I121: FIELD | J121: Default Weight * IST Value | L121: PMI | M121: 5190 | N121: 5193 | O121: 935
A122: 2153 | B122: 0.2142857143 | C122: 937 | D122: 5203 | E122: 5200 | F122: 5 | G122: Protective Measures Index - Physical Security - Fences - Characteristics - Enhancements - Spikes | H122: Spikes | I122: FIELD | J122: Default Weight * IST Value | L122: PMI | M122: 5200 | N122: 5203 | O122: 937
A123: 2155 | B123: 0.7142857143 | C123: 940 | D123: 5207 | E123: 5200 | F123: 5 | G123: Protective Measures Index - Physical Security - Fences - Characteristics - Enhancements - Second Fence | H123: Second Fence | I123: FIELD | J123: Default Weight * IST Value | L123: PMI | M123: 5200 | N123: 5207 | O123: 940
A124: 2160 | B124: 0.2253521127 | C124: 928 | D124: 5171 | E124: 5160 | F124: 4 | G124: Protective Measures Index - Physical Security - Fences - Characteristics - Clear Zone | H124: Clear Zone | I124: FIELD | J124: Default Weight * IST Value | L124: PMI | M124: 5160 | N124: 5171 | O124: 928
A125: 2164 | B125: 0.2253521127 | C125: 932 | D125: 5240 | E125: 5160 | F125: 4 | G125: Protective Measures Index - Physical Security - Fences - Characteristics - Free of Objects | H125: Free of Objects | I125: FIELD | J125: Default Weight * IST Value | L125: PMI | M125: 5160 | N125: 5240 | O125: 932
A126: 2168 | B126: 0.01408450704 | C126: 929 | D126: 5181 | E126: 5160 | F126: 4 | G126: Protective Measures Index - Physical Security - Fences - Characteristics - Warning Signs | H126: Warning Signs | I126: FIELD | J126: Default Weight * IST Value | L126: PMI | M126: 5160 | N126: 5181 | O126: 929
A127: 2192 | B127: 1 | C127: 1088 | D127: 5710 | E127: 5700 | F127: 3 | G127: Protective Measures Index - Physical Security - Gates - Vehicle | H127: Vehicle | I127: FIELD_SUM | J127: If answered, Sum of all components | L127: PMI | M127: 5700 | N127: 5710 | O127: 1088
A128: 2194 | B128: 0.2 | C128: 1099 | D128: 5713 | E128: 5712 | F128: 6 | G128: Protective Measures Index - Physical Security - Gates - Vehicle - Style - Type - Drop arm (not hydraulic) | H128: Drop arm (not hydraulic) | I128: FIELD | J128: Default Weight * IST Value | L128: PMI | M128: 5712 | N128: 5713 | O128: 1099
A129: 2196 | B129: 0.4 | C129: 1104 | D129: 5718 | E129: 5712 | F129: 6 | G129: Protective Measures Index - Physical Security - Gates - Vehicle - Style - Type - Swing gate | H129: Swing gate | I129: FIELD | J129: Default Weight * IST Value | L129: PMI | M129: 5712 | N129: 5718 | O129: 1104
A130: 2197 | B130: 1 | C130: 1105 | D130: 5720 | E130: 5719 | F130: 6 | G130: Protective Measures Index - Physical Security - Gates - Vehicle - Style - Controls - Sally Port | H130: Sally Port | I130: FIELD | J130: Default Weight * IST Value | L130: PMI | M130: 5719 | N130: 5720 | O130: 1105
A131: 2198 | B131: 0.1 | C131: 1101 | D131: 5715 | E131: 5712 | F131: 6 | G131: Protective Measures Index - Physical Security - Gates - Vehicle - Style - Type - Moveable bollards | H131: Moveable bollards | I131: FIELD | J131: Default Weight * IST Value | L131: PMI | M131: 5712 | N131: 5715 | O131: 1101
A132: 2201 | B132: 0.5 | C132: 1106 | D132: 5721 | E132: 5719 | F132: 6 | G132: Protective Measures Index - Physical Security - Gates - Vehicle - Style - Controls - Single lane | H132: Single lane | I132: FIELD | J132: Default Weight * IST Value | L132: PMI | M132: 5719 | N132: 5721 | O132: 1106
A133: 2204 | B133: 1 | C133: 1118 | D133: 5752 | E133: 5751 | F133: 5 | G133: Protective Measures Index - Physical Security - Gates - Vehicle - Outriggers - 45 degree | H133: 45 degree | I133: FIELD | J133: Default Weight * IST Value | L133: PMI | M133: 5751 | N133: 5752 | O133: 1118
A134: 2205 | B134: 0.9 | C134: 1119 | D134: 5753 | E134: 5751 | F134: 5 | G134: Protective Measures Index - Physical Security - Gates - Vehicle - Outriggers - Y style | H134: Y style | I134: FIELD | J134: Default Weight * IST Value | L134: PMI | M134: 5751 | N134: 5753 | O134: 1119
A135: 2206 | B135: 0.8 | C135: 1120 | D135: 5754 | E135: 5751 | F135: 5 | G135: Protective Measures Index - Physical Security - Gates - Vehicle - Outriggers - Straight up | H135: Straight up | I135: FIELD | J135: Default Weight * IST Value | L135: PMI | M135: 5751 | N135: 5754 | O135: 1120
A136: 2208 | B136: 0.2307692308 | C136: 1122 | D136: 5764 | E136: 5760 | F136: 5 | G136: Protective Measures Index - Physical Security - Gates - Vehicle - Enhancements - Barbed wire | H136: Barbed wire | I136: FIELD | J136: Default Weight * IST Value | L136: PMI | M136: 5760 | N136: 5764 | O136: 1122
A137: 2209 | B137: 0.2307692308 | C137: 1124 | D137: 5766 | E137: 5760 | F137: 5 | G137: Protective Measures Index - Physical Security - Gates - Vehicle - Enhancements - Spikes | H137: Spikes | I137: FIELD | J137: Default Weight * IST Value | L137: PMI | M137: 5760 | N137: 5766 | O137: 1124
A138: 2210 | B138: 0.2307692308 | C138: 1123 | D138: 5765 | E138: 5760 | F138: 5 | G138: Protective Measures Index - Physical Security - Gates - Vehicle - Enhancements - Razor wire | H138: Razor wire | I138: FIELD | J138: Default Weight * IST Value | L138: PMI | M138: 5760 | N138: 5765 | O138: 1123
A139: 2221 | B139: 0.9 | C139: 1109 | D139: 5735 | E139: 5730 | F139: 5 | G139: Protective Measures Index - Physical Security - Gates - Vehicle - Construction - Not chain - Steel | H139: Not chain - Steel | I139: FIELD | J139: Default Weight * IST Value | L139: PMI | M139: 5730 | N139: 5735 | O139: 1109
A140: 2223 | B140: 0.4 | C140: 1110 | D140: 5737 | E140: 5730 | F140: 5 | G140: Protective Measures Index - Physical Security - Gates - Vehicle - Construction - Not chain - Wood | H140: Not chain - Wood | I140: FIELD | J140: Default Weight * IST Value | L140: PMI | M140: 5730 | N140: 5737 | O140: 1110
A141: 2224 | B141: 0.6 | C141: 1111 | D141: 5738 | E141: 5730 | F141: 5 | G141: Protective Measures Index - Physical Security - Gates - Vehicle - Construction - Not chain - Wrought Iron | H141: Not chain - Wrought Iron | I141: FIELD | J141: Default Weight * IST Value | L141: PMI | M141: 5730 | N141: 5738 | O141: 1111
A142: 2225 | B142: 0.1 | C142: 1112 | D142: 5739 | E142: 5730 | F142: 5 | G142: Protective Measures Index - Physical Security - Gates - Vehicle - Construction - Not chain - Plastic | H142: Not chain - Plastic | I142: FIELD | J142: Default Weight * IST Value | L142: PMI | M142: 5730 | N142: 5739 | O142: 1112
A143: 2229 | B143: 0 | C143: 1113 | D143: 5741 | E143: 5740 | F143: 5 | G143: Protective Measures Index - Physical Security - Gates - Vehicle - Height - Less than or equal to 5 ft. | H143: Less than or equal to 5 ft. | I143: FIELD | J143: Default Weight * IST Value | L143: PMI | M143: 5740 | N143: 5741 | O143: 1113
A144: 2230 | B144: 0.1 | C144: 1114 | D144: 5742 | E144: 5740 | F144: 5 | G144: Protective Measures Index - Physical Security - Gates - Vehicle - Height - 5+ ft. - 6 ft. | H144: 5+ ft. - 6 ft. | I144: FIELD | J144: Default Weight * IST Value | L144: PMI | M144: 5740 | N144: 5742 | O144: 1114
A145: 2231 | B145: 0.5 | C145: 1115 | D145: 5743 | E145: 5740 | F145: 5 | G145: Protective Measures Index - Physical Security - Gates - Vehicle - Height - 6+ ft. - 7 ft. | H145: 6+ ft. - 7 ft. | I145: FIELD | J145: Default Weight * IST Value | L145: PMI | M145: 5740 | N145: 5743 | O145: 1115
A146: 2232 | B146: 0.8 | C146: 1116 | D146: 5744 | E146: 5740 | F146: 5 | G146: Protective Measures Index - Physical Security - Gates - Vehicle - Height - 7+ ft - 15 ft. | H146: 7+ ft - 15 ft. | I146: FIELD | J146: Default Weight * IST Value | L146: PMI | M146: 5740 | N146: 5744 | O146: 1116
A147: 2233 | B147: 1 | C147: 1117 | D147: 5745 | E147: 5740 | F147: 5 | G147: Protective Measures Index - Physical Security - Gates - Vehicle - Height - Greater than 15 ft. | H147: Greater than 15 ft. | I147: FIELD | J147: Default Weight * IST Value | L147: PMI | M147: 5740 | N147: 5745 | O147: 1117
A148: 2249 | B148: 1 | C148: 1089 | D148: 5810 | E148: 5700 | F148: 3 | G148: Protective Measures Index - Physical Security - Gates - Pedestrian | H148: Pedestrian | I148: FIELD_SUM | J148: If answered, Sum of all components | L148: PMI | M148: 5700 | N148: 5810 | O148: 1089
A149: 2251 | B149: 1 | C149: 1131 | D149: 5812 | E149: 5811 | F149: 5 | G149: Protective Measures Index - Physical Security - Gates - Pedestrian - Style - Full Height turnstile | H149: Full Height turnstile | I149: FIELD | J149: Default Weight * IST Value | L149: PMI | M149: 5811 | N149: 5812 | O149: 1131
A150: 2252 | B150: 0.6 | C150: 1132 | D150: 5813 | E150: 5811 | F150: 5 | G150: Protective Measures Index - Physical Security - Gates - Pedestrian - Style - Swing gate | H150: Swing gate | I150: FIELD | J150: Default Weight * IST Value | L150: PMI | M150: 5811 | N150: 5813 | O150: 1132
A151: 2253 | B151: 0.6 | C151: 1133 | D151: 5814 | E151: 5811 | F151: 5 | G151: Protective Measures Index - Physical Security - Gates - Pedestrian - Style - Open turnstile | H151: Open turnstile | I151: FIELD | J151: Default Weight * IST Value | L151: PMI | M151: 5811 | N151: 5814 | O151: 1133
A152: 2254 | B152: 0 | C152: 1134 | D152: 5815 | E152: 5811 | F152: 5 | G152: Protective Measures Index - Physical Security - Gates - Pedestrian - Style - Open | H152: Open | I152: FIELD | J152: Default Weight * IST Value | L152: PMI | M152: 5811 | N152: 5815 | O152: 1134
A153: 2257 | B153: 1 | C153: 1150 | D153: 5852 | E153: 5851 | F153: 5 | G153: Protective Measures Index - Physical Security - Gates - Pedestrian - Outriggers - 45 degree | H153: 45 degree | I153: FIELD | J153: Default Weight * IST Value | L153: PMI | M153: 5851 | N153: 5852 | O153: 1150
A154: 2258 | B154: 0.9 | C154: 1151 | D154: 5853 | E154: 5851 | F154: 5 | G154: Protective Measures Index - Physical Security - Gates - Pedestrian - Outriggers - Y style | H154: Y style | I154: FIELD | J154: Default Weight * IST Value | L154: PMI | M154: 5851 | N154: 5853 | O154: 1151
A155: 2259 | B155: 0.8 | C155: 1152 | D155: 5854 | E155: 5851 | F155: 5 | G155: Protective Measures Index - Physical Security - Gates - Pedestrian - Outriggers - Straight up | H155: Straight up | I155: FIELD | J155: Default Weight * IST Value | L155: PMI | M155: 5851 | N155: 5854 | O155: 1152
A156: 2261 | B156: 0.2307692308 | C156: 1147 | D156: 5864 | E156: 5850 | F156: 5 | G156: Protective Measures Index - Physical Security - Gates - Pedestrian - Enhancements - Barbed wire | H156: Barbed wire | I156: FIELD | J156: Default Weight * IST Value | L156: PMI | M156: 5850 | N156: 5864 | O156: 1147
A157: 2262 | B157: 0.2307692308 | C157: 1149 | D157: 5866 | E157: 5850 | F157: 5 | G157: Protective Measures Index - Physical Security - Gates - Pedestrian - Enhancements - Spikes | H157: Spikes | I157: FIELD | J157: Default Weight * IST Value | L157: PMI | M157: 5850 | N157: 5866 | O157: 1149
A158: 2263 | B158: 0.2307692308 | C158: 1148 | D158: 5865 | E158: 5850 | F158: 5 | G158: Protective Measures Index - Physical Security - Gates - Pedestrian - Enhancements - Razor wire | H158: Razor wire | I158: FIELD | J158: Default Weight * IST Value | L158: PMI | M158: 5850 | N158: 5865 | O158: 1148
A159: 2264 | B159: 0.7692307692 | C159: 1146 | D159: 5863 | E159: 5850 | F159: 5 | G159: Protective Measures Index - Physical Security - Gates - Pedestrian - Enhancements - Reinforced anchor points | H159: Reinforced anchor points | I159: FIELD | J159: Default Weight * IST Value | L159: PMI | M159: 5850 | N159: 5863 | O159: 1146
A160: 2274 | B160: 0.9 | C160: 1137 | D160: 5835 | E160: 5830 | F160: 5 | G160: Protective Measures Index - Physical Security - Gates - Pedestrian - Construction - Not chain - Steel | H160: Not chain - Steel | I160: FIELD | J160: Default Weight * IST Value | L160: PMI | M160: 5830 | N160: 5835 | O160: 1137
A161: 2276 | B161: 0.4 | C161: 1138 | D161: 5837 | E161: 5830 | F161: 5 | G161: Protective Measures Index - Physical Security - Gates - Pedestrian - Construction - Not chain - Wood | H161: Not chain - Wood | I161: FIELD | J161: Default Weight * IST Value | L161: PMI | M161: 5830 | N161: 5837 | O161: 1138
A162: 2277 | B162: 0.6 | C162: 1139 | D162: 5838 | E162: 5830 | F162: 5 | G162: Protective Measures Index - Physical Security - Gates - Pedestrian - Construction - Not chain - Wrought Iron | H162: Not chain - Wrought Iron | I162: FIELD | J162: Default Weight * IST Value | L162: PMI | M162: 5830 | N162: 5838 | O162: 1139
A163: 2278 | B163: 0.1 | C163: 1140 | D163: 5839 | E163: 5830 | F163: 5 | G163: Protective Measures Index - Physical Security - Gates - Pedestrian - Construction - Not chain - Plastic | H163: Not chain - Plastic | I163: FIELD | J163: Default Weight * IST Value | L163: PMI | M163: 5830 | N163: 5839 | O163: 1140
A164: 2282 | B164: 0 | C164: 1141 | D164: 5841 | E164: 5840 | F164: 5 | G164: Protective Measures Index - Physical Security - Gates - Pedestrian - Height - Less than or equal to 5 ft. | H164: Less than or equal to 5 ft. | I164: FIELD | J164: Default Weight * IST Value | L164: PMI | M164: 5840 | N164: 5841 | O164: 1141
A165: 2283 | B165: 0.1 | C165: 1142 | D165: 5842 | E165: 5840 | F165: 5 | G165: Protective Measures Index - Physical Security - Gates - Pedestrian - Height - 5+ ft. - 6 ft. | H165: 5+ ft. - 6 ft. | I165: FIELD | J165: Default Weight * IST Value | L165: PMI | M165: 5840 | N165: 5842 | O165: 1142
A166: 2284 | B166: 0.5 | C166: 1143 | D166: 5843 | E166: 5840 | F166: 5 | G166: Protective Measures Index - Physical Security - Gates - Pedestrian - Height - 6+ ft. - 7 ft. | H166: 6+ ft. - 7 ft. | I166: FIELD | J166: Default Weight * IST Value | L166: PMI | M166: 5840 | N166: 5843 | O166: 1143
A167: 2285 | B167: 0.8 | C167: 1144 | D167: 5844 | E167: 5840 | F167: 5 | G167: Protective Measures Index - Physical Security - Gates - Pedestrian - Height - 7+ ft - 15 ft. | H167: 7+ ft - 15 ft. | I167: FIELD | J167: Default Weight * IST Value | L167: PMI | M167: 5840 | N167: 5844 | O167: 1144
A168: 2286 | B168: 1 | C168: 1145 | D168: 5845 | E168: 5840 | F168: 5 | G168: Protective Measures Index - Physical Security - Gates - Pedestrian - Height - Greater than 15 ft. | H168: Greater than 15 ft. | I168: FIELD | J168: Default Weight * IST Value | L168: PMI | M168: 5840 | N168: 5845 | O168: 1145
A169: 2302 | B169: 1 | C169: 1090 | D169: 5910 | E169: 5700 | F169: 3 | G169: Protective Measures Index - Physical Security - Gates - Rail | H169: Rail | I169: FIELD_SUM | J169: If answered, Sum of all components | L169: PMI | M169: 5700 | N169: 5910 | O169: 1090
A170: 2304 | B170: 0.3 | C170: 1161 | D170: 5913 | E170: 5912 | F170: 6 | G170: Protective Measures Index - Physical Security - Gates - Rail - Style - Type - Drop arm | H170: Drop arm | I170: FIELD | J170: Default Weight * IST Value | L170: PMI | M170: 5912 | N170: 5913 | O170: 1161
A171: 2307 | B171: 0.6 | C171: 1163 | D171: 5916 | E171: 5912 | F171: 6 | G171: Protective Measures Index - Physical Security - Gates - Rail - Style - Type - Swing gate | H171: Swing gate | I171: FIELD | J171: Default Weight * IST Value | L171: PMI | M171: 5912 | N171: 5916 | O171: 1163
A172: 2308 | B172: 1 | C172: 1165 | D172: 5920 | E172: 5919 | F172: 6 | G172: Protective Measures Index - Physical Security - Gates - Rail - Style - Controls - Sally Part | H172: Sally Part | I172: FIELD | J172: Default Weight * IST Value | L172: PMI | M172: 5919 | N172: 5920 | O172: 1165
A173: 2309 | B173: 1 | C173: 1164 | D173: 5917 | E173: 5912 | F173: 6 | G173: Protective Measures Index - Physical Security - Gates - Rail - Style - Type - Moveable bollards/jersey | H173: Moveable bollards/jersey | I173: FIELD | J173: Default Weight * IST Value | L173: PMI | M173: 5912 | N173: 5917 | O173: 1164
A174: 2313 | B174: 1 | C174: 1177 | D174: 5952 | E174: 5951 | F174: 5 | G174: Protective Measures Index - Physical Security - Gates - Rail - Outriggers - 45 degree | H174: 45 degree | I174: FIELD | J174: Default Weight * IST Value | L174: PMI | M174: 5951 | N174: 5952 | O174: 1177
A175: 2314 | B175: 0.9 | C175: 1178 | D175: 5953 | E175: 5951 | F175: 5 | G175: Protective Measures Index - Physical Security - Gates - Rail - Outriggers - Y style | H175: Y style | I175: FIELD | J175: Default Weight * IST Value | L175: PMI | M175: 5951 | N175: 5953 | O175: 1178
A176: 2315 | B176: 0.8 | C176: 1179 | D176: 5954 | E176: 5951 | F176: 5 | G176: Protective Measures Index - Physical Security - Gates - Rail - Outriggers - Straight up | H176: Straight up | I176: FIELD | J176: Default Weight * IST Value | L176: PMI | M176: 5951 | N176: 5954 | O176: 1179
A177: 2317 | B177: 0.2 | C177: 1180 | D177: 5964 | E177: 5960 | F177: 5 | G177: Protective Measures Index - Physical Security - Gates - Rail - Enhancements - Coiled barbed wire | H177: Coiled barbed wire | I177: FIELD | J177: Default Weight * IST Value | L177: PMI | M177: 5960 | N177: 5964 | O177: 1180
A178: 2318 | B178: 0.1 | C178: 1182 | D178: 5966 | E178: 5960 | F178: 5 | G178: Protective Measures Index - Physical Security - Gates - Rail - Enhancements - Spikes | H178: Spikes | I178: FIELD | J178: Default Weight * IST Value | L178: PMI | M178: 5960 | N178: 5966 | O178: 1182
A179: 2319 | B179: 0.3 | C179: 1181 | D179: 5965 | E179: 5960 | F179: 5 | G179: Protective Measures Index - Physical Security - Gates - Rail - Enhancements - Coiled razor wire | H179: Coiled razor wire | I179: FIELD | J179: Default Weight * IST Value | L179: PMI | M179: 5960 | N179: 5965 | O179: 1181
A180: 2330 | B180: 0.9 | C180: 1169 | D180: 5935 | E180: 5930 | F180: 5 | G180: Protective Measures Index - Physical Security - Gates - Rail - Construction - Steel | H180: Steel | I180: FIELD | J180: Default Weight * IST Value | L180: PMI | M180: 5930 | N180: 5935 | O180: 1169
A181: 2332 | B181: 0.4 | C181: 1170 | D181: 5937 | E181: 5930 | F181: 5 | G181: Protective Measures Index - Physical Security - Gates - Rail - Construction - Wood | H181: Wood | I181: FIELD | J181: Default Weight * IST Value | L181: PMI | M181: 5930 | N181: 5937 | O181: 1170
A182: 2333 | B182: 0.4 | C182: 1171 | D182: 5938 | E182: 5930 | F182: 5 | G182: Protective Measures Index - Physical Security - Gates - Rail - Construction - Wrought Iron | H182: Wrought Iron | I182: FIELD | J182: Default Weight * IST Value | L182: PMI | M182: 5930 | N182: 5938 | O182: 1171
A183: 2338 | B183: 0 | C183: 1172 | D183: 5941 | E183: 5940 | F183: 5 | G183: Protective Measures Index - Physical Security - Gates - Rail - Height - Less than or equal to 5 ft. | H183: Less than or equal to 5 ft. | I183: FIELD | J183: Default Weight * IST Value | L183: PMI | M183: 5940 | N183: 5941 | O183: 1172
A184: 2339 | B184: 0.1 | C184: 1173 | D184: 5942 | E184: 5940 | F184: 5 | G184: Protective Measures Index - Physical Security - Gates - Rail - Height - 5+ ft. - 6 ft. | H184: 5+ ft. - 6 ft. | I184: FIELD | J184: Default Weight * IST Value | L184: PMI | M184: 5940 | N184: 5942 | O184: 1173
A185: 2340 | B185: 0.5 | C185: 1174 | D185: 5943 | E185: 5940 | F185: 5 | G185: Protective Measures Index - Physical Security - Gates - Rail - Height - 6+ ft. - 7 ft. | H185: 6+ ft. - 7 ft. | I185: FIELD | J185: Default Weight * IST Value | L185: PMI | M185: 5940 | N185: 5943 | O185: 1174
A186: 2341 | B186: 0.8 | C186: 1175 | D186: 5944 | E186: 5940 | F186: 5 | G186: Protective Measures Index - Physical Security - Gates - Rail - Height - 7+ ft - 15 ft. | H186: 7+ ft - 15 ft. | I186: FIELD | J186: Default Weight * IST Value | L186: PMI | M186: 5940 | N186: 5944 | O186: 1175
A187: 2342 | B187: 1 | C187: 1176 | D187: 5945 | E187: 5940 | F187: 5 | G187: Protective Measures Index - Physical Security - Gates - Rail - Height - Greater than 15 ft. | H187: Greater than 15 ft. | I187: FIELD | J187: Default Weight * IST Value | L187: PMI | M187: 5940 | N187: 5945 | O187: 1176
A188: 2374 | B188: 1 | C188: 1222 | D188: 6305 | E188: 6304 | F188: 6 | G188: Protective Measures Index - Physical Security - Barriers - High-speed avenues of Approach - Yes - Type - Bollards, planters or rocks | H188: Bollards, planters or rocks | I188: FIELD | J188: Default Weight * IST Value | L188: PMI | M188: 6304 | N188: 6305 | O188: 1222
A189: 2376 | B189: 0.75 | C189: 1223 | D189: 6306 | E189: 6304 | F189: 6 | G189: Protective Measures Index - Physical Security - Barriers - High-speed avenues of Approach - Yes - Type - Jersey barrier/wall | H189: Jersey barrier/wall | I189: FIELD | J189: Default Weight * IST Value | L189: PMI | M189: 6304 | N189: 6306 | O189: 1223
A190: 2378 | B190: 0.5 | C190: 1224 | D190: 6307 | E190: 6304 | F190: 6 | G190: Protective Measures Index - Physical Security - Barriers - High-speed avenues of Approach - Yes - Type - Spike system/tire shredders | H190: Spike system/tire shredders | I190: FIELD | J190: Default Weight * IST Value | L190: PMI | M190: 6304 | N190: 6307 | O190: 1224
A191: 2380 | B191: 0.25 | C191: 1228 | D191: 6311 | E191: 6304 | F191: 6 | G191: Protective Measures Index - Physical Security - Barriers - High-speed avenues of Approach - Yes - Type - Natural barriers (e.g., trees) | H191: Natural barriers (e.g., trees) | I191: FIELD | J191: Default Weight * IST Value | L191: PMI | M191: 6304 | N191: 6311 | O191: 1228
A192: 2381 | B192: 0.5 | C192: 1225 | D192: 6308 | E192: 6304 | F192: 6 | G192: Protective Measures Index - Physical Security - Barriers - High-speed avenues of Approach - Yes - Type - Guard rail | H192: Guard rail | I192: FIELD | J192: Default Weight * IST Value | L192: PMI | M192: 6304 | N192: 6308 | O192: 1225
A193: 2492 | B193: 0.2857142857 | C193: 1420 | D193: 6103 | E193: 7300 | F193: 4 | G193: Protective Measures Index - Physical Security - Parking - Uncontrolled - Standoff | H193: Standoff | I193: STANDOFF | J193: Standoff Formula | L193: PMI | M193: 7300 | N193: 6103 | O193: 1420
A194: 2494 | B194: 0.4 | C194: 1304 | D194: 7081 | E194: 7078 | F194: 5 | G194: Protective Measures Index - Physical Security - Parking - Uncontrolled - Placement - Adjacent on street | H194: Adjacent on street | I194: FIELD | J194: Default Weight * IST Value | L194: PMI | M194: 7078 | N194: 7081 | O194: 1304
A195: 10909 | B195: 0.1017173052 | C195: 793 | D195: 3113 | E195: 3110 | F195: 4 | H195: Other Federal Law Enforcement | I195: FIELD_SUM | J195: If answered, Sum of all components | L195: PMI
A196: 2495 | B196: 0.6 | C196: 1305 | D196: 7082 | E196: 7078 | F196: 5 | G196: Protective Measures Index - Physical Security - Parking - Uncontrolled - Placement - Adjacent open lot | H196: Adjacent open lot | I196: FIELD | J196: Default Weight * IST Value | L196: PMI | M196: 7078 | N196: 7082 | O196: 1305
A197: 2496 | B197: 1 | C197: 1307 | D197: 7084 | E197: 7078 | F197: 5 | G197: Protective Measures Index - Physical Security - Parking - Uncontrolled - Placement - Adjacent multi-level garage | H197: Adjacent multi-level garage | I197: FIELD | J197: Default Weight * IST Value | L197: PMI | M197: 7078 | N197: 7084 | O197: 1307
A198: 2523 | B198: 1 | C198: 952 | D198: 5404 | E198: 5403 | F198: 5 | G198: Protective Measures Index - Physical Security - Building Envelope - In a building - Windows - No | H198: No | I198: FIELD | J198: Default Weight * IST Value | L198: PMI | M198: 5403 | N198: 5404 | O198: 952
A199: 2523 | B199: 1 | C199: 1273 | D199: 22312 | E199: 7031 | F199: 7 | G199: Protective Measures Index - Physical Security - IDS - Interior - Existence and Characterize - Characterize - Window Sensors - No Windows | H199: No Windows | I199: FIELD | J199: Default Weight * IST Value | L199: PMI | M199: 7031 | N199: 22312 | O199: 1273
A200: 2524 | B200: 1 | C200: 953 | D200: 5405 | E200: 5403 | F200: 5 | G200: Protective Measures Index - Physical Security - Building Envelope - In a building - Windows - Yes | H200: Yes | I200: FIELD_SUM | J200: If answered, Sum of all components | L200: PMI | M200: 5403 | N200: 5405 | O200: 953
... 1149 more rows

Sheet SubstationNotBldgChartValues_LS (hidden)
A1: Overview | D1: Substation not in a Building - Less Significant | P1: Start | Q1: Existing | R1: End | S1: Blank | T1: Scenario | U1: 1 | V1: Fill
A2: Weight ID | B2: Parent ID | C2: Detail Level | D2: Display Path | E2: Display | F2: Weight | G2: Default | H2: Existing | I2: Scenario | J2: Comparison Average | K2: Comparison Low | L2: Comparison High | N2: Comparison Average Default
A3: 1 | B3: 0 | C3: 0 | D3: Protective Measures Index | E3: Overall PMI | G3: =SUM(($F4*G4), ($F14*G14), ($F22*G22), ($F28*G28),($F31*G31)) -> 41.61006423 | H3: =SUM(($F4*H4), ($F14*H14), ($F22*H22), ($F28*H28),($F31*H31)) -> 56.97852243 | I3: =SUM(($F4*I4), ($F14*I14), ($F22*I22), ($F28*I28),($F31*I31)) -> 56.97852243 | J3: 42.89 | K3: 13.3836834 | L3: 68.868458 | N3: 55 | O3: =E3 & " Existing: " & ROUND(Q3, 2) & " Scenario: " & ROUND(T3, 2) -> Overall PMI Existing: 41.61 Scenario: 56.98 | P3: 0 | Q3: =G3 -> 41.61006423 | R3: =100-Q3 -> 58.38993577 | S3: 100 | T3: =H3 -> 56.97852243 | U3: 1 | V3: =200-T3+1 -> 144.0214776
A4: 5000 | B4: 1 | C4: 1 | D4: Protective Measures Index - Physical Security | E4: Physical Security | F4: 0.330855 | G4: =SUMPRODUCT($F5:$F13,G5:G13) -> 42.35612693 | H4: =SUMPRODUCT($F5:$F13,H5:H13) -> 32.01735078 | I4: =SUMPRODUCT($F5:$F13,I5:I13) -> 32.01735078 | J4: 42.93 | K4: 20.75782254 | L4: 67.46616759 | M4: Physical Security | N4: 40 | O4: =E4 & " Existing: " & ROUND(Q4, 2) & " Scenario: " & ROUND(T4, 2) -> Physical Security Existing: 42.36 Scenario: 32.02 | P4: 0 | Q4: =G4 -> 42.35612693 | R4: =100-Q4 -> 57.64387307 | S4: 100 | T4: =H4 -> 32.01735078 | U4: 1 | V4: =200-T4+1 -> 168.9826492 | W4: =E4&" Components" -> Physical Security Components
A5: 5100 | B5: 5000 | C5: 2 | D5: Protective Measures Index - Physical Security - Fences | E5: Fences | F5: 0.11634757 | G5: =SubstationNotInBldgAnswers!R466 -> 73.20422535 | H5: =SubstationNotInBldgAnswers_LS!S466 -> 0 | I5: =SubstationNotInBldgAnswers_LS!T466 -> 0 | J5: 38.29 | K5: 0 | L5: 82.84330986 | M5: Fences | N5: 30 | O5: =E5 & " Existing: " & ROUND(Q5, 2) & " Scenario: " & ROUND(T5, 2) -> Fences Existing: 73.2 Scenario: 0 | P5: 0 | Q5: =G5 -> 73.20422535 | R5: =100-Q5 -> 26.79577465 | S5: 100 | T5: =H5 -> 0 | U5: 1.5 | V5: =200-T5+1 -> 201 | W5: =E5&" Components" -> Fences Components
A6: 5400 | B6: 5000 | C6: 2 | D6: Physical Security - Building Envelope | E6: Building Envelope | F6: 0.1001472754 | G6: =SubstationNotInBldgAnswers_LS!Q691 -> 100 | H6: =SubstationNotInBldgAnswers_LS!R691 -> 100 | I6: =SubstationNotInBldgAnswers_LS!S691 -> 100 | J6: 70.04 | K6: 31.28501742 | L6: 100 | M6: Building Envelope | N6: 0 | O6: =E6 & " Existing: " & ROUND(Q6, 2) & " Scenario: " & ROUND(T6, 2) -> Building Envelope Existing: 100 Scenario: 100 | P6: 0 | Q6: =G6 -> 100 | R6: =100-Q6 -> 0 | S6: 100 | T6: =H6 -> 100 | U6: 1.5 | V6: =200-T6+1 -> 101 | W6: =E6&" Components" -> Building Envelope Components
A7: 5600 | B7: 5000 | C7: 2 | D7: Protective Measures Index - Physical Security - CCTV | E7: CCTV | F7: 0.0824742268 | G7: =SubstationNotInBldgAnswers_LS!Q810 -> 48.86351909 | H7: =SubstationNotInBldgAnswers_LS!R810 -> 0 | I7: =SubstationNotInBldgAnswers_LS!S810 -> 0 | J7: 27.63 | K7: 0 | L7: 74.31912502 | M7: CCTV | N7: 30 | O7: =E7 & " Existing: " & ROUND(Q7, 2) & " Scenario: " & ROUND(T7, 2) -> CCTV Existing: 48.86 Scenario: 0 | P7: 0 | Q7: =G7 -> 48.86351909 | R7: =100-Q7 -> 51.13648091 | S7: 100 | T7: =H7 -> 0 | U7: 1.5 | V7: =200-T7+1 -> 201 | W7: =E7&" Components" -> CCTV Components
A8: 5700 | B8: 5000 | C8: 2 | D8: Protective Measures Index - Physical Security - Gates | E8: Gates | F8: 0.1340206186 | G8: =SubstationNotInBldgAnswers_LS!R538 -> 33.73134328 | H8: =SubstationNotInBldgAnswers_LS!S538 -> 0 | I8: =SubstationNotInBldgAnswers_LS!T538 -> 0 | J8: 39.71 | K8: 0 | L8: 62.17017115 | M8: Gates | N8: 13 | O8: Gates Existing: 33.73 Scenario: 0 | P8: 0 | Q8: 33.73134328 | R8: 66.26865672 | S8: 100 | T8: 0 | U8: 1.5 | V8: 201 | W8: Gates Components
A9: 6000 | B9: 5000 | C9: 2 | D9: Physical Security - IDS | E9: IDS | F9: 0.1001472754 | G9: =SubstationNotInBldgAnswers_LS!R925 -> 0 | H9: =SubstationNotInBldgAnswers_LS!S925 -> 0 | I9: =SubstationNotInBldgAnswers_LS!T925 -> 0 | J9: 9.34 | K9: 0 | L9: 67.25968274 | M9: IDS | N9: 37 | O9: IDS Existing: 0 Scenario: 0 | P9: 0 | Q9: 0 | R9: 100 | S9: 100 | T9: 0 | U9: 1.5 | V9: 201 | W9: IDS Components
A10: 6100 | B10: 5000 | C10: 2 | D10: Physical Security - Parking | E10: Parking | F10: 0.08217967599 | G10: =SubstationNotInBldgAnswers_LS!S1075 -> 20.12396865 | H10: =SubstationNotInBldgAnswers_LS!T1075 -> 35.65561733 | I10: =SubstationNotInBldgAnswers_LS!U1075 -> 35.65561733 | J10: 37.13 | K10: 6.274467504 | L10: 100 | M10: Parking | N10: 42 | O10: Parking Existing: 20.12 Scenario: 35.66 | P10: 0 | Q10: 20.12396865 | R10: 79.87603135 | S10: 100 | T10: 35.65561733 | U10: 1.5 | V10: 165.3443827 | W10: Parking Components
A11: 6300 | B11: 5000 | C11: 2 | D11: Physical Security - Barriers | E11: Barriers | F11: 0.1275405007 | G11: =SubstationNotInBldgAnswers_LS!R1259 -> 0 | H11: =SubstationNotInBldgAnswers_LS!S1259 -> 0 | I11: =SubstationNotInBldgAnswers_LS!T1259 -> 0 | J11: 32.47 | K11: 0 | L11: 100 | M11: Barriers | N11: 66 | O11: Barriers Existing: 0 Scenario: 0 | P11: 0 | Q11: 0 | R11: 100 | S11: 100 | T11: 0 | U11: 1.5 | V11: 201 | W11: Barriers Components
A12: 7500 | B12: 5000 | C12: 2 | D12: Physical Security - Illumination | E12: Illumination | F12: 0.1098674521 | G12: =SubstationNotInBldgAnswers_LS!R1299 -> 50.29761905 | H12: =SubstationNotInBldgAnswers_LS!S1299 -> 95.53571429 | I12: =SubstationNotInBldgAnswers_LS!T1299 -> 95.53571429 | J12: 64.65 | K12: 17.86011907 | L12: 100 | M12: Illumination | N12: 42 | O12: Illumination Existing: 50.3 Scenario: 95.54 | P12: 0 | Q12: 50.29761905 | R12: 49.70238095 | S12: 100 | T12: 95.53571429 | U12: 1.5 | V12: 105.4642857 | W12: Illumination Components
A13: 21000 | B13: 5000 | C13: 2 | D13: Physical Security - Entry Control | E13: Entry Control | F13: 0.147275405 | G13: =SubstationNotInBldgAnswers_LS!R1436 -> 54.95647243 | H13: =SubstationNotInBldgAnswers_LS!S1436 -> 58.2323345 | I13: =SubstationNotInBldgAnswers_LS!T1436 -> 58.2323345 | J13: 58.58 | K13: 0 | L13: 93.27586207 | M13: Entry Control | N13: 65 | O13: Entry Control Existing: 54.96 Scenario: 58.23 | P13: 0 | Q13: 54.95647243 | R13: 45.04352757 | S13: 100 | T13: 58.2323345 | U13: 1.5 | V13: 142.7676655 | W13: Entry Control Components
A14: 2000 | B14: 1 | C14: 1 | D14: Protective Measures Index - Security Management | E14: Security Management | F14: 0.371747 | G14: =SUMPRODUCT($F15:$F21,G15:G21) -> 74.23416423 | H14: =SUMPRODUCT($F15:$F21,H15:H21) -> 84.80993308 | I14: =SUMPRODUCT($F15:$F21,I15:I21) -> 84.80993308 | J14: 52.32 | K14: 7.677148302 | L14: 93.11260574 | N14: 61 | O14: =E14 & " Existing: " & ROUND(Q14, 2) & " Scenario: " & ROUND(T14, 2) -> Security Management Existing: 74.23 Scenario: 84.81 | P14: 0 | Q14: =G14 -> 74.23416423 | R14: =100-Q14 -> 25.76583577 | S14: 100 | T14: =H14 -> 84.80993308 | U14: 1 | V14: =200-T14+1 -> 116.1900669 | W14: =E14&" Components" -> Security Management Components
A15: 2001 | B15: 2000 | C15: 2 | D15: Protective Measures Index - Security Management - Security Manager | E15: Security Manager | F15: 0.1666666667 | G15: =SubstationNotInBldgAnswers_LS!R211 -> 100 | H15: =SubstationNotInBldgAnswers_LS!S211 -> 100 | I15: =SubstationNotInBldgAnswers_LS!T211 -> 100 | J15: 46.02 | K15: 0 | L15: 100 | N15: 51 | O15: =E15 & " Existing: " & ROUND(Q15, 2) & " Scenario: " & ROUND(T15, 2) -> Security Manager Existing: 100 Scenario: 100 | P15: 0 | Q15: =G15 -> 100 | R15: 0 | S15: 100 | T15: =H15 -> 100 | U15: 1.5 | V15: =200-T15+1 -> 101 | W15: =E15&" Components" -> Security Manager Components
A16: 2062 | B16: 2000 | C16: 2 | D16: Protective Measures Index - Security Management - Security Plan | E16: Security Plan | F16: 0.1666666667 | G16: =SubstationNotInBldgAnswers_LS!$S$222 -> 99.30481521 | H16: =SubstationNotInBldgAnswers_LS!$T$222 -> 99.30481521 | I16: =SubstationNotInBldgAnswers_LS!$U$222 -> 99.30481521 | J16: 44.32 | K16: 0 | L16: 100 | N16: 64 | O16: Security Plan Existing: 99.3 Scenario: 99.3 | P16: 0 | Q16: 99.30481521 | R16: 0.6951847903 | S16: 100 | T16: 99.30481521 | U16: 1.5 | V16: =200-T16+1 -> 101.6951848 | W16: Security Plan Components
A17: 2105 | B17: 2000 | C17: 2 | D17: Protective Measures Index - Security Management - Security Communication | E17: Security Communication | F17: 0.125 | G17: =SubstationNotInBldgAnswers_LS!R334 -> 45.9 | H17: =SubstationNotInBldgAnswers_LS!S334 -> 79.7125 | I17: =SubstationNotInBldgAnswers_LS!T334 -> 79.7125 | J17: 54.19 | K17: 10.13513514 | L17: 100 | N17: 74 | O17: Security Communication Existing: 45.9 Scenario: 79.71 | P17: 0 | Q17: 45.9 | R17: 54.1 | S17: 100 | T17: 79.7125 | U17: 1.5 | V17: 121.2875 | W17: Security Communication Components
A18: 2115 | B18: 2000 | C18: 2 | D18: Protective Measures Index - Security Management - Suspicious Package Procedures | E18: Suspicious Package Procedures | F18: 0.125 | G18: =SubstationNotInBldgAnswers_LS!O356 -> 100 | H18: =SubstationNotInBldgAnswers_LS!P356 -> 100 | I18: =SubstationNotInBldgAnswers_LS!Q356 -> 100 | J18: 67.05 | K18: 0 | L18: 100 | N18: 86 | O18: Suspicious Package Procedures Existing: 100 Scenario: 100 | P18: 0 | Q18: 100 | R18: 0 | S18: 100 | T18: 100 | U18: 1.5 | V18: 101 | W18: Suspicious Package Procedures Components
A19: 2116 | B19: 2000 | C19: 2 | D19: Protective Measures Index - Security Management - Security Working Groups | E19: Security Working Groups | F19: 0.1 | G19: =SubstationNotInBldgAnswers_LS!O368 -> 50 | H19: =SubstationNotInBldgAnswers_LS!P368 -> 50 | I19: =SubstationNotInBldgAnswers_LS!Q368 -> 50 | J19: 33.6 | K19: 0 | L19: 100 | N19: 56 | O19: Security Working Groups Existing: 50 Scenario: 50 | P19: 0 | Q19: 50 | R19: 50 | S19: 100 | T19: 50 | U19: 1.5 | V19: 151 | W19: Security Working Groups Components
A20: 2165 | B20: 2000 | C20: 2 | D20: Protective Measures Index - Security Management - Sensitive Information | E20: Sensitive Information | F20: 0.15 | G20: =SubstationNotInBldgAnswers_LS!$R$372 -> 49.74489807 | H20: =SubstationNotInBldgAnswers_LS!$S$372 -> 49.74489807 | I20: =SubstationNotInBldgAnswers_LS!$T$372 -> 49.74489807 | J20: 62.89 | K20: 0 | L20: 100 | N20: 70 | O20: Sensitive Information Existing: 49.74 Scenario: 49.74 | P20: 0 | Q20: 49.74489807 | R20: 50.25510193 | S20: 100 | T20: 49.74489807 | U20: 1.5 | V20: 151.2551019 | W20: Sensitive Information Components
A21: 2180 | B21: 2000 | C21: 2 | D21: Protective Measures Index - Security Management - Background Checks | E21: Background Checks | F21: 0.1666666667 | G21: =SubstationNotInBldgAnswers_LS!R410 -> 61.9047619 | H21: =SubstationNotInBldgAnswers_LS!S410 -> 100 | I21: =SubstationNotInBldgAnswers_LS!T410 -> 100 | J21: 55.86 | K21: 0 | L21: 100 | N21: 49 | O21: Background Checks Existing: 61.9 Scenario: 100 | P21: 0 | Q21: 61.9047619 | R21: 38.0952381 | S21: 100 | T21: 100 | U21: 1.5 | V21: 101 | W21: Background Checks Components
A22: 1000 | B22: 1 | C22: 1 | D22: Protective Measures Index - Security Force Profile | E22: Security Force Profile | F22: 0.297398 | G22: =SUMPRODUCT($F23:$F27,G23:G27) -> 0 | H22: =SUMPRODUCT($F23:$F27,H23:H27) -> 49.95858627 | I22: =SUMPRODUCT($F23:$F27,I23:I27) -> 49.95858627 | J22: 42.58 | K22: 0 | L22: 88.22213985 | N22: 76 | O22: =E22 & " Existing: " & ROUND(Q22, 2) & " Scenario: " & ROUND(T22, 2) -> Security Force Profile Existing: 0 Scenario: 49.96 | P22: 0 | Q22: =G22 -> 0 | R22: =100-Q22 -> 100 | S22: 100 | T22: =H22 -> 49.95858627 | U22: 1 | V22: =200-T22+1 -> 151.0414137 | W22: =E22&" Components" -> Security Force Profile Components
A23: 1068 | B23: 1000 | C23: 2 | D23: Protective Measures Index - Security Force Profile - Training | E23: Training | F23: 0.2307692308 | G23: =SubstationNotInBldgAnswers_LS!R130 -> 0 | H23: =SubstationNotInBldgAnswers_LS!S130 -> 20.34255208 | I23: =SubstationNotInBldgAnswers_LS!T130 -> 20.34255208 | J23: 40.27 | K23: 0 | L23: 100 | N23: 73 | O23: =E23 & " Existing: " & ROUND(Q23, 2) & " Scenario: " & ROUND(T23, 2) -> Training Existing: 0 Scenario: 20.34 | P23: 0 | Q23: =G23 -> 0 | R23: 100 | S23: 100 | T23: =H23 -> 20.34255208 | U23: 1.5 | V23: =200-T23+1 -> 180.6574479 | W23: =E23&" Components" -> Training Components
A24: 1116 | B24: 1000 | C24: 2 | D24: Protective Measures Index - Security Force Profile - Post guidelines | E24: Post Guidelines | F24: 0.09230769231 | G24: =SubstationNotInBldgAnswers_LS!$O$201 -> 0 | H24: =SubstationNotInBldgAnswers_LS!$P$201 -> 100 | I24: =SubstationNotInBldgAnswers_LS!$Q$201 -> 100 | J24: 55.68 | K24: 0 | L24: 100 | N24: 79 | O24: Post Guidelines Existing: 0 Scenario: 100 | P24: 0 | Q24: 0 | R24: 100 | S24: 100 | T24: 100 | U24: 1.5 | V24: 101 | W24: Post Guidelines Components
A25: 1117 | B25: 1000 | C25: 2 | D25: Protective Measures Index - Security Force Profile - Command and control | E25: Command and Control | F25: 0.1153846154 | G25: =SubstationNotInBldgAnswers_LS!$O$205 -> 0 | H25: =SubstationNotInBldgAnswers_LS!$P$205 -> 100 | I25: =SubstationNotInBldgAnswers_LS!$Q$205 -> 100 | J25: 56.82 | K25: 0 | L25: 100 | N25: 90 | O25: Command and Control Existing: 0 Scenario: 100 | P25: 0 | Q25: 0 | R25: 100 | S25: 100 | T25: 100 | U25: 1.5 | V25: 101 | W25: Command and Control Components
A26: 1001 | B26: 1000 | C26: 2 | D26: Protective Measures Index - Security Force Profile - Staffing | E26: Staffing | F26: 0.4 | G26: =SubstationNotInBldgAnswers_LS!O10 -> 0 | H26: =SubstationNotInBldgAnswers_LS!P10 -> 45.90517241 | I26: =SubstationNotInBldgAnswers_LS!Q10 -> 45.90517241 | J26: 41.48 | K26: 0 | L26: 92.24137931 | N26: 72 | O26: Staffing Existing: 0 Scenario: 45.91 | P26: 0 | Q26: 0 | R26: 100 | S26: 100 | T26: 45.90517241 | U26: 1.5 | V26: 155.0948276 | W26: Staffing Components
A27: 1051 | B27: 1000 | C27: 2 | D27: Protective Measures Index - Security Force Profile - Equipment | E27: Equipment | F27: 0.1615384615 | G27: =SubstationNotInBldgAnswers_LS!R84 -> 0 | H27: =SubstationNotInBldgAnswers_LS!S84 -> 37.96527085 | I27: =SubstationNotInBldgAnswers_LS!T84 -> 37.96527085 | J27: 30.96 | K27: 0 | L27: 93.68560985 | N27: 75 | O27: Equipment Existing: 0 Scenario: 37.97 | P27: 0 | Q27: 0 | R27: 100 | S27: 100 | T27: 37.96527085 | U27: 1.5 | V27: 163.0347291 | W27: Equipment Components
A28: 3000 | B28: 1 | C28: 1 | D28: Protective Measures Index - Information Sharing | E28: Information Sharing | F28: 0 | G28: 35.81031041 | H28: 35.81031041 | I28: 35.81031041 | J28: 29.61 | K28: 0 | L28: 81.62157385 | N28: 50 | O28: =E28 & " Existing: " & ROUND(Q28, 2) & " Scenario: " & ROUND(T28, 2) -> Information Sharing Existing: 35.81 Scenario: 35.81 | P28: 0 | Q28: =G28 -> 35.81031041 | R28: =100-Q28 -> 64.18968959 | S28: 100 | T28: =H28 -> 35.81031041 | U28: 1 | V28: =200-T28+1 -> 165.1896896 | W28: =E28&" Components" -> Information Sharing Components
A29: 3100 | B29: 3000 | C29: 2 | D29: Protective Measures Index - Information Sharing - Agencies | E29: Agencies | F29: 0.4736842105 | G29: 34.10833174 | H29: 34.10833174 | I29: 34.10833174 | J29: 30.04 | K29: 0 | L29: 87.4800638 | N29: 44 | O29: Agencies Existing: 34.11 Scenario: 34.11 | P29: 0 | Q29: 34.10833174 | R29: 65.89166826 | S29: 100 | T29: 34.10833174 | U29: 1.5 | V29: 166.8916683 | W29: Agencies Components
A30: 3200 | B30: 3000 | C30: 2 | D30: Protective Measures Index - Information Sharing - Mechanisms | E30: Mechanisms | F30: 0.5263157895 | G30: 37.34406978 | H30: 37.34406978 | I30: 37.34406978 | J30: 29.23 | K30: 0 | L30: 100 | N30: 55 | O30: Mechanisms Existing: 37.34 Scenario: 37.34 | P30: 0 | Q30: =G30 -> 37.34406978 | R30: 62.65593022 | S30: 100 | T30: 37.34406978 | U30: 1.5 | V30: 163.6559302 | W30: Mechanisms Components
A31: 4000 | B31: 1 | C31: 1 | D31: Protective Measures Index - Security Activity Background | E31: Security Activity Background | F31: 0 | G31: 35.81031041 | H31: 35.81031041 | I31: 35.81031041 | J31: 24.29 | K31: 0 | L31: 76.06679035 | N31: 29 | O31: =E31 & " Existing: " & ROUND(Q31, 2) & " Scenario: " & ROUND(T31, 2) -> Security Activity Background Existing: 35.81 Scenario: 35.81 | P31: 0 | Q31: =G31 -> 35.81031041 | R31: =100-Q31 -> 64.18968959 | S31: 100 | T31: =H31 -> 35.81031041 | U31: 1 | V31: =200-T31+1 -> 165.1896896 | W31: =E31&" Components" -> Security Activity Background Components
A32: 4001 | B32: 4000 | C32: 2 | D32: Protective Measures Index - Security Activity Background - Prior/New | E32: Prior/New | F32: 0.4285714286 | G32: 26.90857143 | H32: 26.90857143 | I32: 26.90857143 | J32: 23.66 | K32: 0 | L32: 74.28571429 | N32: 30 | O32: =E32 & " Existing: " & ROUND(Q32, 2) & " Scenario: " & ROUND(T32, 2) -> Prior/New Existing: 26.91 Scenario: 26.91 | P32: 0 | Q32: =G32 -> 26.90857143 | R32: 73.09142857 | S32: 100 | T32: =H32 -> 26.90857143 | U32: 1.5 | V32: =200-T32+1 -> 174.0914286 | W32: =E32&" Components" -> Prior/New Components
A33: 4122 | B33: 4000 | C33: 2 | D33: Protective Measures Index - Security Activity Background - Additional Protective Measures | E33: Additional Protective Measures | F33: 0.5714285714 | G33: 21.50383776 | H33: 21.50383776 | I33: 21.50383776 | J33: 24.76 | K33: 0 | L33: 98.96103896 | N33: 28 | O33: =E33 & " Existing: " & ROUND(Q33, 2) & " Scenario: " & ROUND(T33, 2) -> Additional Protective Measures Existing: 21.5 Scenario: 21.5 | P33: 0 | Q33: =G33 -> 21.50383776 | R33: 78.49616224 | S33: 100 | T33: =H33 -> 21.50383776 | U33: 1.5 | V33: =200-T33+1 -> 179.4961622 | W33: =E33&" Components" -> Additional Protective Measures Components

Sheet SubstationNotBldgChartValues (hidden)
A1: Overview | D1: Substation not in a Building - Significant | P1: Start | Q1: Existing | R1: End | S1: Blank | T1: Scenario | U1: 1 | V1: Fill
A2: Weight ID | B2: Parent ID | C2: Detail Level | D2: Display Path | E2: Display | F2: Weight | G2: Default | H2: Existing | I2: Scenario | J2: Comparison Average | K2: Comparison Low | L2: Comparison High | N2: Comparison Average Default
A3: 1 | B3: 0 | C3: 0 | D3: Protective Measures Index | E3: Overall PMI | G3: =SUM(($F4*G4), ($F14*G14), ($F22*G22), ($F28*G28),($F31*G31)) -> 41.61006423 | H3: =SUM(($F4*H4), ($F14*H14), ($F22*H22), ($F28*H28),($F31*H31)) -> 56.97852243 | I3: =SUM(($F4*I4), ($F14*I14), ($F22*I22), ($F28*I28),($F31*I31)) -> 56.97852243 | J3: 42.89 | K3: 13.3836834 | L3: 68.868458 | N3: 55 | O3: =E3 & " Existing: " & ROUND(Q3, 2) & " Scenario: " & ROUND(T3, 2) -> Overall PMI Existing: 41.61 Scenario: 56.98 | P3: 0 | Q3: =G3 -> 41.61006423 | R3: =100-Q3 -> 58.38993577 | S3: 100 | T3: =H3 -> 56.97852243 | U3: 1 | V3: =200-T3+1 -> 144.0214776
A4: 5000 | B4: 1 | C4: 1 | D4: Protective Measures Index - Physical Security | E4: Physical Security | F4: 0.330855 | G4: =SUMPRODUCT($F5:$F13,G5:G13) -> 42.35612693 | H4: =SUMPRODUCT($F5:$F13,H5:H13) -> 32.01735078 | I4: =SUMPRODUCT($F5:$F13,I5:I13) -> 32.01735078 | J4: 42.93 | K4: 20.75782254 | L4: 67.46616759 | M4: Physical Security | N4: 40 | O4: =E4 & " Existing: " & ROUND(Q4, 2) & " Scenario: " & ROUND(T4, 2) -> Physical Security Existing: 42.36 Scenario: 32.02 | P4: 0 | Q4: =G4 -> 42.35612693 | R4: =100-Q4 -> 57.64387307 | S4: 100 | T4: =H4 -> 32.01735078 | U4: 1 | V4: =200-T4+1 -> 168.9826492 | W4: =E4&" Components" -> Physical Security Components
A5: 5100 | B5: 5000 | C5: 2 | D5: Protective Measures Index - Physical Security - Fences | E5: Fences | F5: 0.11634757 | G5: =SubstationNotInBldgAnswers!R466 -> 73.20422535 | H5: =SubstationNotInBldgAnswers!S466 -> 0 | I5: =SubstationNotInBldgAnswers!T466 -> 0 | J5: 38.29 | K5: 0 | L5: 82.84330986 | M5: Fences | N5: 30 | O5: =E5 & " Existing: " & ROUND(Q5, 2) & " Scenario: " & ROUND(T5, 2) -> Fences Existing: 73.2 Scenario: 0 | P5: 0 | Q5: =G5 -> 73.20422535 | R5: =100-Q5 -> 26.79577465 | S5: 100 | T5: =H5 -> 0 | U5: 1.5 | V5: =200-T5+1 -> 201 | W5: =E5&" Components" -> Fences Components
A6: 5400 | B6: 5000 | C6: 2 | D6: Physical Security - Building Envelope | E6: Building Envelope | F6: 0.1001472754 | G6: =SubstationNotInBldgAnswers!Q691 -> 100 | H6: =SubstationNotInBldgAnswers!R691 -> 100 | I6: =SubstationNotInBldgAnswers!S691 -> 100 | J6: 70.04 | K6: 31.28501742 | L6: 100 | M6: Building Envelope | N6: 0 | O6: =E6 & " Existing: " & ROUND(Q6, 2) & " Scenario: " & ROUND(T6, 2) -> Building Envelope Existing: 100 Scenario: 100 | P6: 0 | Q6: =G6 -> 100 | R6: =100-Q6 -> 0 | S6: 100 | T6: =H6 -> 100 | U6: 1.5 | V6: =200-T6+1 -> 101 | W6: =E6&" Components" -> Building Envelope Components
A7: 5600 | B7: 5000 | C7: 2 | D7: Protective Measures Index - Physical Security - CCTV | E7: CCTV | F7: 0.0824742268 | G7: =SubstationNotInBldgAnswers!Q810 -> 48.86351909 | H7: =SubstationNotInBldgAnswers!R810 -> 0 | I7: =SubstationNotInBldgAnswers!S810 -> 0 | J7: 27.63 | K7: 0 | L7: 74.31912502 | M7: CCTV | N7: 30 | O7: =E7 & " Existing: " & ROUND(Q7, 2) & " Scenario: " & ROUND(T7, 2) -> CCTV Existing: 48.86 Scenario: 0 | P7: 0 | Q7: =G7 -> 48.86351909 | R7: =100-Q7 -> 51.13648091 | S7: 100 | T7: =H7 -> 0 | U7: 1.5 | V7: =200-T7+1 -> 201 | W7: =E7&" Components" -> CCTV Components
A8: 5700 | B8: 5000 | C8: 2 | D8: Protective Measures Index - Physical Security - Gates | E8: Gates | F8: 0.1340206186 | G8: =SubstationNotInBldgAnswers!R538 -> 33.73134328 | H8: =SubstationNotInBldgAnswers!S538 -> 0 | I8: =SubstationNotInBldgAnswers!T538 -> 0 | J8: 39.71 | K8: 0 | L8: 62.17017115 | M8: Gates | N8: 13 | O8: Gates Existing: 33.73 Scenario: 0 | P8: 0 | Q8: 33.73134328 | R8: 66.26865672 | S8: 100 | T8: 0 | U8: 1.5 | V8: 201 | W8: Gates Components
A9: 6000 | B9: 5000 | C9: 2 | D9: Physical Security - IDS | E9: IDS | F9: 0.1001472754 | G9: =SubstationNotInBldgAnswers!R925 -> 0 | H9: =SubstationNotInBldgAnswers!S925 -> 0 | I9: =SubstationNotInBldgAnswers!T925 -> 0 | J9: 9.34 | K9: 0 | L9: 67.25968274 | M9: IDS | N9: 37 | O9: IDS Existing: 0 Scenario: 0 | P9: 0 | Q9: 0 | R9: 100 | S9: 100 | T9: 0 | U9: 1.5 | V9: 201 | W9: IDS Components
A10: 6100 | B10: 5000 | C10: 2 | D10: Physical Security - Parking | E10: Parking | F10: 0.08217967599 | G10: =SubstationNotInBldgAnswers!S1075 -> 20.12396865 | H10: =SubstationNotInBldgAnswers!T1075 -> 35.65561733 | I10: =SubstationNotInBldgAnswers!U1075 -> 35.65561733 | J10: 37.13 | K10: 6.274467504 | L10: 100 | M10: Parking | N10: 42 | O10: Parking Existing: 20.12 Scenario: 35.66 | P10: 0 | Q10: 20.12396865 | R10: 79.87603135 | S10: 100 | T10: 35.65561733 | U10: 1.5 | V10: 165.3443827 | W10: Parking Components
A11: 6300 | B11: 5000 | C11: 2 | D11: Physical Security - Barriers | E11: Barriers | F11: 0.1275405007 | G11: =SubstationNotInBldgAnswers!R1259 -> 0 | H11: =SubstationNotInBldgAnswers!S1259 -> 0 | I11: =SubstationNotInBldgAnswers!T1259 -> 0 | J11: 32.47 | K11: 0 | L11: 100 | M11: Barriers | N11: 66 | O11: Barriers Existing: 0 Scenario: 0 | P11: 0 | Q11: 0 | R11: 100 | S11: 100 | T11: 0 | U11: 1.5 | V11: 201 | W11: Barriers Components
A12: 7500 | B12: 5000 | C12: 2 | D12: Physical Security - Illumination | E12: Illumination | F12: 0.1098674521 | G12: =SubstationNotInBldgAnswers!R1299 -> 50.29761905 | H12: =SubstationNotInBldgAnswers!S1299 -> 95.53571429 | I12: =SubstationNotInBldgAnswers!T1299 -> 95.53571429 | J12: 64.65 | K12: 17.86011907 | L12: 100 | M12: Illumination | N12: 42 | O12: Illumination Existing: 50.3 Scenario: 95.54 | P12: 0 | Q12: 50.29761905 | R12: 49.70238095 | S12: 100 | T12: 95.53571429 | U12: 1.5 | V12: 105.4642857 | W12: Illumination Components
A13: 21000 | B13: 5000 | C13: 2 | D13: Physical Security - Entry Control | E13: Entry Control | F13: 0.147275405 | G13: =SubstationNotInBldgAnswers!R1436 -> 54.95647243 | H13: =SubstationNotInBldgAnswers!S1436 -> 58.2323345 | I13: =SubstationNotInBldgAnswers!T1436 -> 58.2323345 | J13: 58.58 | K13: 0 | L13: 93.27586207 | M13: Entry Control | N13: 65 | O13: Entry Control Existing: 54.96 Scenario: 58.23 | P13: 0 | Q13: 54.95647243 | R13: 45.04352757 | S13: 100 | T13: 58.2323345 | U13: 1.5 | V13: 142.7676655 | W13: Entry Control Components
A14: 2000 | B14: 1 | C14: 1 | D14: Protective Measures Index - Security Management | E14: Security Management | F14: 0.371747 | G14: =SUMPRODUCT($F15:$F21,G15:G21) -> 74.23416423 | H14: =SUMPRODUCT($F15:$F21,H15:H21) -> 84.80993308 | I14: =SUMPRODUCT($F15:$F21,I15:I21) -> 84.80993308 | J14: 52.32 | K14: 7.677148302 | L14: 93.11260574 | N14: 61 | O14: =E14 & " Existing: " & ROUND(Q14, 2) & " Scenario: " & ROUND(T14, 2) -> Security Management Existing: 74.23 Scenario: 84.81 | P14: 0 | Q14: =G14 -> 74.23416423 | R14: =100-Q14 -> 25.76583577 | S14: 100 | T14: =H14 -> 84.80993308 | U14: 1 | V14: =200-T14+1 -> 116.1900669 | W14: =E14&" Components" -> Security Management Components
A15: 2001 | B15: 2000 | C15: 2 | D15: Protective Measures Index - Security Management - Security Manager | E15: Security Manager | F15: 0.1666666667 | G15: =SubstationNotInBldgAnswers!R211 -> 100 | H15: =SubstationNotInBldgAnswers!S211 -> 100 | I15: =SubstationNotInBldgAnswers!T211 -> 100 | J15: 46.02 | K15: 0 | L15: 100 | N15: 51 | O15: =E15 & " Existing: " & ROUND(Q15, 2) & " Scenario: " & ROUND(T15, 2) -> Security Manager Existing: 100 Scenario: 100 | P15: 0 | Q15: =G15 -> 100 | R15: 0 | S15: 100 | T15: =H15 -> 100 | U15: 1.5 | V15: =200-T15+1 -> 101 | W15: =E15&" Components" -> Security Manager Components
A16: 2062 | B16: 2000 | C16: 2 | D16: Protective Measures Index - Security Management - Security Plan | E16: Security Plan | F16: 0.1666666667 | G16: =SubstationNotInBldgAnswers!$S$222 -> 99.30481521 | H16: =SubstationNotInBldgAnswers!$T$222 -> 99.30481521 | I16: =SubstationNotInBldgAnswers!$U$222 -> 99.30481521 | J16: 44.32 | K16: 0 | L16: 100 | N16: 64 | O16: Security Plan Existing: 99.3 Scenario: 99.3 | P16: 0 | Q16: 99.30481521 | R16: 0.6951847903 | S16: 100 | T16: 99.30481521 | U16: 1.5 | V16: =200-T16+1 -> 101.6951848 | W16: Security Plan Components
A17: 2105 | B17: 2000 | C17: 2 | D17: Protective Measures Index - Security Management - Security Communication | E17: Security Communication | F17: 0.125 | G17: =SubstationNotInBldgAnswers!R334 -> 45.9 | H17: =SubstationNotInBldgAnswers!S334 -> 79.7125 | I17: =SubstationNotInBldgAnswers!T334 -> 79.7125 | J17: 54.19 | K17: 10.13513514 | L17: 100 | N17: 74 | O17: Security Communication Existing: 45.9 Scenario: 79.71 | P17: 0 | Q17: 45.9 | R17: 54.1 | S17: 100 | T17: 79.7125 | U17: 1.5 | V17: 121.2875 | W17: Security Communication Components
A18: 2115 | B18: 2000 | C18: 2 | D18: Protective Measures Index - Security Management - Suspicious Package Procedures | E18: Suspicious Package Procedures | F18: 0.125 | G18: =SubstationNotInBldgAnswers!O356 -> 100 | H18: =SubstationNotInBldgAnswers!P356 -> 100 | I18: =SubstationNotInBldgAnswers!Q356 -> 100 | J18: 67.05 | K18: 0 | L18: 100 | N18: 86 | O18: Suspicious Package Procedures Existing: 100 Scenario: 100 | P18: 0 | Q18: 100 | R18: 0 | S18: 100 | T18: 100 | U18: 1.5 | V18: 101 | W18: Suspicious Package Procedures Components
A19: 2116 | B19: 2000 | C19: 2 | D19: Protective Measures Index - Security Management - Security Working Groups | E19: Security Working Groups | F19: 0.1 | G19: =SubstationNotInBldgAnswers!O368 -> 50 | H19: =SubstationNotInBldgAnswers!P368 -> 50 | I19: =SubstationNotInBldgAnswers!Q368 -> 50 | J19: 33.6 | K19: 0 | L19: 100 | N19: 56 | O19: Security Working Groups Existing: 50 Scenario: 50 | P19: 0 | Q19: 50 | R19: 50 | S19: 100 | T19: 50 | U19: 1.5 | V19: 151 | W19: Security Working Groups Components
A20: 2165 | B20: 2000 | C20: 2 | D20: Protective Measures Index - Security Management - Sensitive Information | E20: Sensitive Information | F20: 0.15 | G20: =SubstationNotInBldgAnswers!$R$372 -> 49.74489807 | H20: =SubstationNotInBldgAnswers!$S$372 -> 49.74489807 | I20: =SubstationNotInBldgAnswers!$T$372 -> 49.74489807 | J20: 62.89 | K20: 0 | L20: 100 | N20: 70 | O20: Sensitive Information Existing: 49.74 Scenario: 49.74 | P20: 0 | Q20: 49.74489807 | R20: 50.25510193 | S20: 100 | T20: 49.74489807 | U20: 1.5 | V20: 151.2551019 | W20: Sensitive Information Components
A21: 2180 | B21: 2000 | C21: 2 | D21: Protective Measures Index - Security Management - Background Checks | E21: Background Checks | F21: 0.1666666667 | G21: =SubstationNotInBldgAnswers!R410 -> 61.9047619 | H21: =SubstationNotInBldgAnswers!S410 -> 100 | I21: =SubstationNotInBldgAnswers!T410 -> 100 | J21: 55.86 | K21: 0 | L21: 100 | N21: 49 | O21: Background Checks Existing: 61.9 Scenario: 100 | P21: 0 | Q21: 61.9047619 | R21: 38.0952381 | S21: 100 | T21: 100 | U21: 1.5 | V21: 101 | W21: Background Checks Components
A22: 1000 | B22: 1 | C22: 1 | D22: Protective Measures Index - Security Force Profile | E22: Security Force Profile | F22: 0.297398 | G22: =SUMPRODUCT($F23:$F27,G23:G27) -> 0 | H22: =SUMPRODUCT($F23:$F27,H23:H27) -> 49.95858627 | I22: =SUMPRODUCT($F23:$F27,I23:I27) -> 49.95858627 | J22: 42.58 | K22: 0 | L22: 88.22213985 | N22: 76 | O22: =E22 & " Existing: " & ROUND(Q22, 2) & " Scenario: " & ROUND(T22, 2) -> Security Force Profile Existing: 0 Scenario: 49.96 | P22: 0 | Q22: =G22 -> 0 | R22: =100-Q22 -> 100 | S22: 100 | T22: =H22 -> 49.95858627 | U22: 1 | V22: =200-T22+1 -> 151.0414137 | W22: =E22&" Components" -> Security Force Profile Components
A23: 1068 | B23: 1000 | C23: 2 | D23: Protective Measures Index - Security Force Profile - Training | E23: Training | F23: 0.2307692308 | G23: =SubstationNotInBldgAnswers!R130 -> 0 | H23: =SubstationNotInBldgAnswers!S130 -> 20.34255208 | I23: =SubstationNotInBldgAnswers!T130 -> 20.34255208 | J23: 40.27 | K23: 0 | L23: 100 | N23: 73 | O23: =E23 & " Existing: " & ROUND(Q23, 2) & " Scenario: " & ROUND(T23, 2) -> Training Existing: 0 Scenario: 20.34 | P23: 0 | Q23: =G23 -> 0 | R23: 100 | S23: 100 | T23: =H23 -> 20.34255208 | U23: 1.5 | V23: =200-T23+1 -> 180.6574479 | W23: =E23&" Components" -> Training Components
A24: 1116 | B24: 1000 | C24: 2 | D24: Protective Measures Index - Security Force Profile - Post guidelines | E24: Post Guidelines | F24: 0.09230769231 | G24: =SubstationNotInBldgAnswers!$O$201 -> 0 | H24: =SubstationNotInBldgAnswers!$P$201 -> 100 | I24: =SubstationNotInBldgAnswers!$Q$201 -> 100 | J24: 55.68 | K24: 0 | L24: 100 | N24: 79 | O24: Post Guidelines Existing: 0 Scenario: 100 | P24: 0 | Q24: 0 | R24: 100 | S24: 100 | T24: 100 | U24: 1.5 | V24: 101 | W24: Post Guidelines Components
A25: 1117 | B25: 1000 | C25: 2 | D25: Protective Measures Index - Security Force Profile - Command and control | E25: Command and Control | F25: 0.1153846154 | G25: =SubstationNotInBldgAnswers!$O$205 -> 0 | H25: =SubstationNotInBldgAnswers!$P$205 -> 100 | I25: =SubstationNotInBldgAnswers!$Q$205 -> 100 | J25: 56.82 | K25: 0 | L25: 100 | N25: 90 | O25: Command and Control Existing: 0 Scenario: 100 | P25: 0 | Q25: 0 | R25: 100 | S25: 100 | T25: 100 | U25: 1.5 | V25: 101 | W25: Command and Control Components
A26: 1001 | B26: 1000 | C26: 2 | D26: Protective Measures Index - Security Force Profile - Staffing | E26: Staffing | F26: 0.4 | G26: =SubstationNotInBldgAnswers!O10 -> 0 | H26: =SubstationNotInBldgAnswers!P10 -> 45.90517241 | I26: =SubstationNotInBldgAnswers!Q10 -> 45.90517241 | J26: 41.48 | K26: 0 | L26: 92.24137931 | N26: 72 | O26: Staffing Existing: 0 Scenario: 45.91 | P26: 0 | Q26: 0 | R26: 100 | S26: 100 | T26: 45.90517241 | U26: 1.5 | V26: 155.0948276 | W26: Staffing Components
A27: 1051 | B27: 1000 | C27: 2 | D27: Protective Measures Index - Security Force Profile - Equipment | E27: Equipment | F27: 0.1615384615 | G27: =SubstationNotInBldgAnswers!R84 -> 0 | H27: =SubstationNotInBldgAnswers!S84 -> 37.96527085 | I27: =SubstationNotInBldgAnswers!T84 -> 37.96527085 | J27: 30.96 | K27: 0 | L27: 93.68560985 | N27: 75 | O27: Equipment Existing: 0 Scenario: 37.97 | P27: 0 | Q27: 0 | R27: 100 | S27: 100 | T27: 37.96527085 | U27: 1.5 | V27: 163.0347291 | W27: Equipment Components
A28: 3000 | B28: 1 | C28: 1 | D28: Protective Measures Index - Information Sharing | E28: Information Sharing | F28: 0 | G28: 35.81031041 | H28: 35.81031041 | I28: 35.81031041 | J28: 29.61 | K28: 0 | L28: 81.62157385 | N28: 50 | O28: =E28 & " Existing: " & ROUND(Q28, 2) & " Scenario: " & ROUND(T28, 2) -> Information Sharing Existing: 35.81 Scenario: 35.81 | P28: 0 | Q28: =G28 -> 35.81031041 | R28: =100-Q28 -> 64.18968959 | S28: 100 | T28: =H28 -> 35.81031041 | U28: 1 | V28: =200-T28+1 -> 165.1896896 | W28: =E28&" Components" -> Information Sharing Components
A29: 3100 | B29: 3000 | C29: 2 | D29: Protective Measures Index - Information Sharing - Agencies | E29: Agencies | F29: 0.4736842105 | G29: 34.10833174 | H29: 34.10833174 | I29: 34.10833174 | J29: 30.04 | K29: 0 | L29: 87.4800638 | N29: 44 | O29: Agencies Existing: 34.11 Scenario: 34.11 | P29: 0 | Q29: 34.10833174 | R29: 65.89166826 | S29: 100 | T29: 34.10833174 | U29: 1.5 | V29: 166.8916683 | W29: Agencies Components
A30: 3200 | B30: 3000 | C30: 2 | D30: Protective Measures Index - Information Sharing - Mechanisms | E30: Mechanisms | F30: 0.5263157895 | G30: 37.34406978 | H30: 37.34406978 | I30: 37.34406978 | J30: 29.23 | K30: 0 | L30: 100 | N30: 55 | O30: Mechanisms Existing: 37.34 Scenario: 37.34 | P30: 0 | Q30: =G30 -> 37.34406978 | R30: 62.65593022 | S30: 100 | T30: 37.34406978 | U30: 1.5 | V30: 163.6559302 | W30: Mechanisms Components
A31: 4000 | B31: 1 | C31: 1 | D31: Protective Measures Index - Security Activity Background | E31: Security Activity Background | F31: 0 | G31: 35.81031041 | H31: 35.81031041 | I31: 35.81031041 | J31: 24.29 | K31: 0 | L31: 76.06679035 | N31: 29 | O31: =E31 & " Existing: " & ROUND(Q31, 2) & " Scenario: " & ROUND(T31, 2) -> Security Activity Background Existing: 35.81 Scenario: 35.81 | P31: 0 | Q31: =G31 -> 35.81031041 | R31: =100-Q31 -> 64.18968959 | S31: 100 | T31: =H31 -> 35.81031041 | U31: 1 | V31: =200-T31+1 -> 165.1896896 | W31: =E31&" Components" -> Security Activity Background Components
A32: 4001 | B32: 4000 | C32: 2 | D32: Protective Measures Index - Security Activity Background - Prior/New | E32: Prior/New | F32: 0.4285714286 | G32: 26.90857143 | H32: 26.90857143 | I32: 26.90857143 | J32: 23.66 | K32: 0 | L32: 74.28571429 | N32: 30 | O32: =E32 & " Existing: " & ROUND(Q32, 2) & " Scenario: " & ROUND(T32, 2) -> Prior/New Existing: 26.91 Scenario: 26.91 | P32: 0 | Q32: =G32 -> 26.90857143 | R32: 73.09142857 | S32: 100 | T32: =H32 -> 26.90857143 | U32: 1.5 | V32: =200-T32+1 -> 174.0914286 | W32: =E32&" Components" -> Prior/New Components
A33: 4122 | B33: 4000 | C33: 2 | D33: Protective Measures Index - Security Activity Background - Additional Protective Measures | E33: Additional Protective Measures | F33: 0.5714285714 | G33: 21.50383776 | H33: 21.50383776 | I33: 21.50383776 | J33: 24.76 | K33: 0 | L33: 98.96103896 | N33: 28 | O33: =E33 & " Existing: " & ROUND(Q33, 2) & " Scenario: " & ROUND(T33, 2) -> Additional Protective Measures Existing: 21.5 Scenario: 21.5 | P33: 0 | Q33: =G33 -> 21.50383776 | R33: 78.49616224 | S33: 100 | T33: =H33 -> 21.50383776 | U33: 1.5 | V33: =200-T33+1 -> 179.4961622 | W33: =E33&" Components" -> Additional Protective Measures Components

Sheet ADDCAL (hidden)
A1: Existing | G1: Scenario
B2: #of | C2: Conseq | H2: #of | I2: Conseq
A3: Sub In Building | B3: =SUM(B4:B5) -> 0 | C3: 1 | G3: Sub In Building | H3: =SUM(H4:H5) -> 0 | I3: 1
A4: Sub In Building Sign | B4: 0 | C4: 1 | G4: Sub In Building Sign | H4: 0 | I4: 1
A5: Sub In Building Less Sign | B5: 0 | C5: 1 | G5: Sub In Building Less Sign | H5: 0 | I5: 1
A6: Sub Not In Building | B6: =SUM(B7:B8) -> 0 | C6: 1 | G6: Sub Not In Building | H6: =SUM(H7:H8) -> 0 | I6: 1
A7: Sub Not In Building Sign | B7: 0 | C7: 1 | G7: Sub Not In Building Sign | H7: 0 | I7: 1
A8: Sub Not In Building Less Sign | B8: 0 | C8: 1 | G8: Sub Not In Building Less Sign | H8: 0 | I8: 1
A9: Control Room | B9: 0 | C9: 1 | G9: Control Room | H9: 0 | I9: 1
A10: Power Plant Fossil | B10: 0 | C10: 1 | G10: Power Plant Fossil | H10: 0 | I10: 1
A11: Power Plant Renewable | B11: 0 | C11: 1 | G11: Power Plant Renewable | H11: 0 | I11: 1
